Workbook

Sheet Title
A1: The column titles for this worksheet are in row 2. They span cells C2. The data spans cells A3 through C29. There is information in every cell for column A through C inclusive. If you are not using a screen reader, you can press Alt + R, T for the Review Ribbon, Edit Comment to move to and open a Comment once you are on a cell with a Comment. When you are finished reading the Comment, press Escape to close the comment and return to the worksheet. If you are using the JAWS screen reader, press Ctrl + Shift + Apostrophe to get a list of Comments and their cell coordinates in the worksheet. Press Enter on the Comment you want to go to or Escape once you’ve read the Comment for a cell. You are returned to the workbook. Note that there is no keyboard command with JAWS to reread Comments or read Comments once you are on them in a cell. You must use the ability to list Comments in order to read them if you are using the JAWS screen reader.
C2: California Intermodal Freight Benefit/Cost Analysis Model for 2026 INFRA/RAISE Applications (Cal-B/C IF) Version 8.1
B22: Office of State Planning- Transportation Economics Branch
B23: Division of Transportation Planning
C24: January 2026
B27: For questions and comments, please contact:
B29: Transportation Economics Branch | C29: eab@dot.ca.gov

Sheet Instructions

Sheet 1) Project Information
C2: District: | E2: HQ | P2: EA:
P3: PPNO:
C4: PROJECT: | E4: Hypothetical Project
C7: 1A | D7: PROJECT DATA | L7: 1E | M7: HIGHWAY CRASH DATA | W7: 1I | X7: PROJECT COSTS (enter costs in thousands of dollars)
L9: Actual Historical Crash Data | Q9: Count | R9: Rate | X9: DIRECT PROJECT COSTS | AD9: Other
C10: Project Location (enter 1 for So. Cal., 2 for No. Cal., or 3 for rural) | M10: Total Crashes During Reporting Period | R10: =IF(ISNUMBER(Q10), (Q10/$Q$15)*10^6, SUM(StateFatRate, StateInjRate, StatePDORate)) -> 0.826 | X10: INITIAL COSTS | AA10: SUBSEQUENT COSTS | AD10: Agency | AE10: Total Costs (in dollars)
M11: Fatal Crashes | R11: =IF(ISNUMBER(Q11), (Q11/$Q$15)*10^6, StateFatRate) -> 0.006 | W11: Year | X11: Project | AA11: Maint./ | AD11: Cost | AE11: Constant | AF11: Present
D12: Current Year | M12: Injury Crashes | R12: =IF(ISNUMBER(Q12), (Q12/$Q$15)*10^6, StateInjRate) -> 0.26 | X12: Support | Y12: R / W | Z12: Construction | AA12: Op. | AB12: Rehab. | AC12: Mitigation | AD12: Savings | AE12: Dollars | AF12: Value
D13: Year Project Development Begins | M13: Property Damage Only Crashes | Q13: =IF(ISNUMBER(Q10), Q10-Q11-Q12, "") ->  | R13: =IF(ISNUMBER(Q13), (Q13/$Q$15)*10^6, StatePDORate) -> 0.56 | W13: Construction Period
D14: Year Project Opens (Year 1) | W14: =YearConstruct -> 0 | AA14: =IF(AND(YearStart>W14, SUM(X14:Z14, AC14:AD14)<=0), "<-- Must enter a cost -->", "") ->  | AE14: =SUM(X14:AD14)*1000 -> 0 | AF14: =AE14/(1+DiscRate)^($W14-CurrentYear) -> 0
M15: Vehicle-Miles Traveled During Reporting Period | W15: =W14+1 -> 1 | AE15: =SUM(X15:AD15)*1000 -> 0 | AF15: 0
W16: =W15+1 -> 2 | AE16: =SUM(X16:AD16)*1000 -> 0 | AF16: 0
W17: 3 | AE17: 0 | AF17: 0
W18: 4 | AE18: 0 | AF18: 0
C19: 1B | D19: FREIGHT CAPACITY | L19: 1F | M19: FREIGHT SHIPPING COSTS | W19: 5 | AE19: 0 | AF19: 0
W20: 6 | AE20: 0 | AF20: 0
C21: Average Bulk/Breakbulk Shipments (Short Tons) | L21: Shipper Costs | W21: 7 | AE21: 0 | AF21: 0
D22: Freight Trucks | G22: No Build | H22: Build | M22: Bulk/Breakbulk Shipping Costs (Current Year Total Rates) | Q22: No Build | R22: Build | W22: 8 | AE22: 0 | AF22: 0
E23: Average Short Tons per Truck | H23: =TonsPerTruckNB -> 0 | N23: Per Truckload | R23: =SHCostTonTNB -> 0 | W23: Project Open
E24: Average Trip Distance (Miles, 1-Way) | H24: =G24 -> 0 | N24: Per Carload | R24: =SHCostTonRNB -> 0 | W24: =YearStart -> 0 | AE24: =SUM(X24:AD24)*1000 -> 0 | AF24: =AE24/(1+DiscRate)^($W24-CurrentYear) -> 0
D25: Freight Rail | M25: Container Shipping Costs (Current Year Total Rates) | W25: =W24+1 -> 1 | AE25: =SUM(X25:AD25)*1000 -> 0 | AF25: 0
E26: Average Short Tons per Railcar | H26: =TonsPerRailcarNB -> 0 | N26: Per TEU Moved by Truck | R26: =SHCostTEUTNB -> 0 | W26: =W25+1 -> 2 | AE26: =SUM(X26:AD26)*1000 -> 0 | AF26: 0
E27: Average Number of Railcars per Train | H27: =RailcarPerTrainNB -> 0 | N27: Per TEU Moved by Rail | R27: =SHCostTEURNB -> 0 | W27: 3 | AE27: 0 | AF27: 0
E28: Average Trip Distance (Miles, 1-Way) | H28: =G28 -> 0 | M28: Annual Increase in Shipper Costs (Net of Inflation) | W28: 4 | AE28: 0 | AF28: 0
C29: Average Container Shipments (TEUs) | N29: Long-Haul Truck Shipments | Q29: 0 | R29: =SHCostGrowthTNB -> 0 | W29: 5 | AE29: 0 | AF29: 0
D30: Freight Trucks | G30: No Build | H30: Build | N30: Rail Shipments | Q30: 0 | R30: =Q30 -> 0 | W30: 6 | AE30: 0 | AF30: 0
E31: Average Number of TEUs per Truck | H31: =TEUPerTruckNB -> 0 | W31: 7 | AE31: 0 | AF31: 0
E32: Average Trip Distance (Miles, 1-Way) | H32: =TEUDistTNB -> 0 | W32: =W31+1 -> 8 | AE32: 0 | AF32: 0
D33: Freight Rail | W33: 9 | AE33: =SUM(X33:AD33)*1000 -> 0 | AF33: 0
E34: Average Number of TEUs per Railcar | H34: =TEUPerRailcarNB -> 0 | W34: 10 | AE34: 0 | AF34: 0
E35: Average Number of Railcars per Train | H35: =TEURailcarPerTrainNB -> 0 | W35: 11 | AE35: 0 | AF35: 0
E36: Average Trip Distance (Miles, 1-Way) | H36: =TEUDistRNB -> 0 | W36: 12 | AE36: 0 | AF36: 0
E37: Average Short Tons per TEU | G37: 10 | H37: =TonsPerTEUNB -> 10 | W37: 13 | AE37: 0 | AF37: 0
W38: 14 | AE38: 0 | AF38: 0
W39: 15 | AE39: 0 | AF39: 0
W40: 16 | AE40: 0 | AF40: 0
C41: 1C | D41: FREIGHT VOLUMES BY MODE | L41: 1G | M41: TRANSLOAD OPERATIONS DATA | W41: 17 | AE41: 0 | AF41: 0
W42: 18 | AE42: 0 | AF42: 0
C43: Annual Bulk/Breakbulk Shipments (Short Tons) | L43: Transload Operations | W43: 19 | AE43: 0 | AF43: 0
D44: Current Year | M44: Proportion of Bulk/Breakbulk Volumes Transloaded | Q44: Truck Volumes | R44: Rail Volumes | W44: Total | X44: =SUM(X14:X43) -> 0 | Y44: 0 | Z44: 0 | AA44: 0 | AB44: 0 | AC44: 0 | AD44: 0 | AE44: 0 | AF44: 0
E45: Total Tons Shipped by Truck | N45: ="Base Year ("&IF(ISBLANK(YearStart), 0, YearStart)&")" -> Base Year (0) | Q45: 1 | R45: 1
E46: Total Tons Shipped by Rail | N46: ="Forecast Year ("&YearStart+20-1&")" -> Forecast Year (19) | Q46: =TLTonTruck1 -> 1 | R46: =TLTonRail1 -> 1
E47: Total Tons Shipped | H47: =TonsTruckYrCurr+TonsRailYrCurr -> 0 | M47: Proportion of Container Volumes Transloaded per Year
D48: ="Base Year ("&IF(ISBLANK(YearStart), 0, YearStart)&")" -> Base Year (0) | G48: No Build | H48: Build | N48: ="Base Year ("&IF(ISBLANK(YearStart), 0, YearStart)&")" -> Base Year (0) | Q48: 1 | R48: 1
E49: Total Tons Shipped by Truck | G49: =IF(TonsNB20<>0, IF(TonsTruckNB20>TonsTruckYrCurr, MIN(TonsTruckYrCurr+((TonsYrCurr*(1+TonGrowthNB)^(YearStart+20-1-CurrentYear)*TonsTruckNB20/TonsNB20)-TonsTruckYrCurr)/(YearStart+20-1-CurrentYear)*(YearStart-CurrentYear),TonsTruckNB20), MAX(TonsTruckYrCurr+((TonsYrCurr*(1+TonGrowthNB)^(YearStart+20-1-CurrentYear)*TonsTruckNB20/TonsNB20)-TonsTruckYrCurr)/(YearStart+20-1-CurrentYear)*(YearStart-CurrentYear),TonsTruckNB20)),0) -> 0 | H49: =IF(TonsB20<>0, IF(TonsTruckB20>TonsTruckYrCurr, MIN(TonsTruckYrCurr+((TonsYrCurr*(1+TonGrowthNB)^(YearStart-1-CurrentYear)*(1+TonGrowthB)^(20)*TonsTruckB20/TonsB20)-TonsTruckYrCurr)/(YearStart+20-1-CurrentYear)*(YearStart-CurrentYear),TonsTruckB20), MAX(TonsTruckYrCurr+((TonsYrCurr*(1+TonGrowthNB)^(YearStart-1-CurrentYear)*(1+TonGrowthB)^(20)*TonsTruckB20/TonsB20)-TonsTruckYrCurr)/(YearStart+20-1-CurrentYear)*(YearStart-CurrentYear),TonsTruckB20)),0) -> 0 | N49: ="Forecast Year ("&YearStart+20-1&")" -> Forecast Year (19) | Q49: =TLTEUTruck1 -> 1 | R49: =TLTEURail1 -> 1
E50: Total Tons Shipped by Rail | G50: =IF(TonsNB20<>0, IF(TonsRailNB20>TonsRailYrCurr, MIN(TonsRailYrCurr+((TonsYrCurr*(1+TonGrowthNB)^(YearStart+20-1-CurrentYear)*TonsRailNB20/TonsNB20)-TonsRailYrCurr)/(YearStart+20-1-CurrentYear)*(YearStart-CurrentYear), TonsRailNB20), MAX(TonsRailYrCurr+((TonsYrCurr*(1+TonGrowthNB)^(YearStart+20-1-CurrentYear)*TonsRailNB20/TonsNB20)-TonsRailYrCurr)/(YearStart+20-1-CurrentYear)*(YearStart-CurrentYear), TonsRailNB20)),0) -> 0 | H50: =IF(TonsB20<>0, IF(TonsRailB20>TonsRailYrCurr, MIN(TonsRailYrCurr+((TonsYrCurr*(1+TonGrowthNB)^(YearStart-1-CurrentYear)*(1+TonGrowthB)^(20)*TonsRailB20/TonsB20)-TonsRailYrCurr)/(YearStart+20-1-CurrentYear)*(YearStart-CurrentYear), TonsRailB20), MAX(TonsRailYrCurr+((TonsYrCurr*(1+TonGrowthNB)^(YearStart-1-CurrentYear)*(1+TonGrowthB)^(20)*TonsRailB20/TonsB20)-TonsRailYrCurr)/(YearStart+20-1-CurrentYear)*(YearStart-CurrentYear), TonsRailB20)),0) -> 0 | Q50: No Build | R50: Build
E51: Total Tons Shipped | G51: =TonsTruckNB1+TonsRailNB1 -> 0 | H51: =TonsTruckB1+TonsRailB1 -> 0 | M51: Transload Cost per Short Ton | R51: =TLCostTonNB -> 0
D52: ="Forecast Year ("&YearStart+20-1&")" -> Forecast Year (19) | M52: Transload Cost per TEU | R52: =TLCostTEUNB -> 0
E53: Total Tons Shipped by Truck | M53: Annual Increase in Transload Costs (Net of Inflation)
E54: Total Tons Shipped by Rail | N54: Bulk/Breakbulk (Short Tons) | Q54: 0 | R54: =Q54 -> 0
E55: Total Tons Shipped | G55: =TonsTruckNB20+TonsRailNB20 -> 0 | H55: =TonsTruckB20+TonsRailB20 -> 0 | N55: Containers (TEU) | Q55: 0 | R55: =Q55 -> 0
C57: Annual Container Shipments (TEUs) | L57: Freight Drayage
D58: Current Year | M58: Proportion of Bulk/Breakbulk Volumes Drayed | Q58: Truck Volumes | R58: Rail Volumes
E59: Total TEUs Shipped by Truck | N59: ="Base Year ("&IF(ISBLANK(YearStart), 0, YearStart)&")" -> Base Year (0) | Q59: 1 | R59: 1
E60: Total TEUs Shipped by Rail | N60: ="Forecast Year ("&YearStart+20-1&")" -> Forecast Year (19) | Q60: =DraysTonTruck1 -> 1 | R60: =DraysTonRail1 -> 1
E61: Total TEUs Shipped | H61: =TEUTruckYrCurr+TEURailYrCurr -> 0 | M61: Proportion of Container Volumes Drayed
D62: ="Base Year ("&IF(ISBLANK(YearStart), 0, YearStart)&")" -> Base Year (0) | G62: No Build | H62: Build | N62: ="Base Year ("&IF(ISBLANK(YearStart), 0, YearStart)&")" -> Base Year (0) | Q62: 1 | R62: 1
E63: Total TEUs Shipped by Truck | G63: =IF(TEUNB20<>0, IF(TEUTruckNB20>TEUTruckYrCurr, MIN(TEUTruckYrCurr+((TEUYrCurr*(1+TEUGrowthNB)^(YearStart+20-1-CurrentYear)*TEUTruckNB20/TEUNB20)-TEUTruckYrCurr)/(YearStart+20-1-CurrentYear)*(YearStart-CurrentYear),TEUTruckNB20), MAX(TEUTruckYrCurr+((TEUYrCurr*(1+TEUGrowthNB)^(YearStart+20-1-CurrentYear)*TEUTruckNB20/TEUNB20)-TEUTruckYrCurr)/(YearStart+20-1-CurrentYear)*(YearStart-CurrentYear),TEUTruckNB20)),0) -> 0 | H63: =IF(TEUB20<>0, IF(TEUTruckB20>TEUTruckYrCurr, MIN(TEUTruckYrCurr+((TEUYrCurr*(1+TEUGrowthNB)^(YearStart-1-CurrentYear)*(1+TEUGrowthB)^(20)*TEUTruckB20/TEUB20)-TEUTruckYrCurr)/(YearStart+20-1-CurrentYear)*(YearStart-CurrentYear),TEUTruckB20), MAX(TEUTruckYrCurr+((TEUYrCurr*(1+TEUGrowthNB)^(YearStart-1-CurrentYear)*(1+TEUGrowthB)^(20)*TEUTruckB20/TEUB20)-TEUTruckYrCurr)/(YearStart+20-1-CurrentYear)*(YearStart-CurrentYear),TEUTruckB20)),0) -> 0 | N63: ="Forecast Year ("&YearStart+20-1&")" -> Forecast Year (19) | Q63: =DraysTEUTruck1 -> 1 | R63: =DraysTEURail1 -> 1
E64: Total TEUs Shipped by Rail | G64: =IF(TEUNB20<>0, IF(TEURailNB20>TEURailYrCurr, MIN(TEURailYrCurr+((TEUYrCurr*(1+TEUGrowthNB)^(YearStart+20-1-CurrentYear)*TEURailNB20/TEUNB20)-TEURailYrCurr)/(YearStart+20-1-CurrentYear)*(YearStart-CurrentYear), TEURailNB20), MAX(TEURailYrCurr+((TEUYrCurr*(1+TEUGrowthNB)^(YearStart+20-1-CurrentYear)*TEURailNB20/TEUNB20)-TEURailYrCurr)/(YearStart+20-1-CurrentYear)*(YearStart-CurrentYear), TEURailNB20)),0) -> 0 | H64: =IF(TEUB20<>0, IF(TEURailB20>TEURailYrCurr, MIN(TEURailYrCurr+((TEUYrCurr*(1+TEUGrowthNB)^(YearStart-1-CurrentYear)*(1+TEUGrowthB)^(20)*TEURailB20/TEUB20)-TEURailYrCurr)/(YearStart+20-1-CurrentYear)*(YearStart-CurrentYear), TEURailB20), MAX(TEURailYrCurr+((TEUYrCurr*(1+TEUGrowthNB)^(YearStart-1-CurrentYear)*(1+TEUGrowthB)^(20)*TEURailB20/TEUB20)-TEURailYrCurr)/(YearStart+20-1-CurrentYear)*(YearStart-CurrentYear), TEURailB20)),0) -> 0 | Q64: No Build | R64: Build
E65: Total TEUs Shipped | G65: =TEUYrCurr*(1+TEUGrowthNB)^(YearStart-CurrentYear) -> 0 | H65: =TEUYrCurr*(1+TEUGrowthB)^(YearStart-CurrentYear) -> 0 | M65: Distance Drayed (Miles, 1-Way) | R65: =DrayDistTNB -> 0
D66: ="Forecast Year ("&YearStart+20-1&")" -> Forecast Year (19) | M66: Drayage Cost per Truck | R66: =DrayCostNB -> 0
E67: Total TEUs Shipped by Truck | M67: Annual Increase in Drayage Costs (Net of Inflation) | Q67: 0 | R67: =DrayCostGrowthNB -> 0
E68: Total TEUs Shipped by Rail
E69: Total TEUs Shipped | G69: =TEUTruckNB20+TEURailNB20 -> 0 | H69: =TEUTruckB20+TEURailB20 -> 0 | L69: Average Freight Truck Speed for Drayage (mph) | Q69: No Build | R69: Build
N70: ="Base Year ("&IF(ISBLANK(YearStart), 0, YearStart)&")" -> Base Year (0) | R70: =MPHDrayNB1 -> 0
C71: Annual Increase in Freight Volumes | G71: No Build | H71: Build | N71: ="Forecast Year ("&YearStart+20-1&")" -> Forecast Year (19) | Q71: =MPHDrayNB1 -> 0 | R71: =MPHDrayNB20 -> 0
D72: Bulk/Breakbulk Shipments | G72: =IF(TonsYrCurr<>0, ((TonsNB20)/(TonsYrCurr))^(1/(YearStart+20-1-CurrentYear))-1, 0) -> 0 | H72: =IF(TonsYrCurr<>0, ((TonsB20)/(TonsYrCurr))^(1/(YearStart+20-1-CurrentYear))-1, 0) -> 0
D73: Container Shipments | G73: =IF(TEUYrCurr<>0, ((TEUNB20)/(TEUYrCurr))^(1/(YearStart+20-1-CurrentYear))-1, 0) -> 0 | H73: =IF(TEUYrCurr<>0, ((TEUB20)/(TEUYrCurr))^(1/(YearStart+20-1-CurrentYear))-1, 0) -> 0
C77: 1D | D77: FREIGHT SHIPMENTS BY MODE | L77: 1H | M77: CHANGES IN TERMINAL EFFICIENCY
C79: Number of Loaded Shipments per Year | L79: Average Delay/Dwell Time per Vehicle | Q79: No Build | R79: Build
D80: Current Year | M80: Average Minutes per Truck
E81: Trucks per Year | H81: =(IF(TonsPerTruckNB<>0,TonsTruckYrCurr/TonsPerTruckNB, 0)+IF(TEUPerTruckNB<>0, TEUTruckYrCurr/TEUPerTruckNB,0)) -> 0 | M81: Average Minutes per Train
E82: Trains per Year | H82: =(IF(TonsPerRailcarNB*RailcarPerTrainNB<>0,TonsRailYrCurr/(TonsPerRailcarNB*RailcarPerTrainNB), 0)+IF(TEUPerRailcarNB*TEURailcarPerTrainNB<>0, TEURailYrCurr/(TEUPerRailcarNB*TEURailcarPerTrainNB),0)) -> 0 | M82: Annual Increase in Average Delay/Dwell Time
D83: ="Base Year ("&IF(ISBLANK(YearStart), 0, YearStart)&")" -> Base Year (0) | G83: No Build | H83: Build | N83: Trucks | Q83: 0 | R83: =Q83 -> 0
E84: Trucks per Year | G84: =(IF(TonsPerTruckNB<>0,TonsTruckNB1/TonsPerTruckNB, 0)+IF(TEUPerTruckNB<>0, TEUTruckNB1/TEUPerTruckNB,0)) -> 0 | H84: =(IF(TonsPerTruckB<>0,TonsTruckB1/TonsPerTruckB, 0)+IF(TEUPerTruckB<>0, TEUTruckB1/TEUPerTruckB,0)) -> 0 | N84: Trains | Q84: 0 | R84: =IdleGrowthRNB -> 0
E85: Trains per Year | G85: =(IF((TonsPerRailcarNB*RailcarPerTrainNB)<>0,TonsRailNB1/(TonsPerRailcarNB*RailcarPerTrainNB), 0)+IF((TEUPerRailcarNB*TEURailcarPerTrainNB)<>0, TEURailNB1/(TEUPerRailcarNB*TEURailcarPerTrainNB),0)) -> 0 | H85: =(IF((TonsPerRailcarB*RailcarPerTrainB)<>0,TonsRailB1/(TonsPerRailcarB*RailcarPerTrainB), 0)+IF((TEUPerRailcarB*TEURailcarPerTrainB)<>0, TEURailB1/(TEUPerRailcarB*TEURailcarPerTrainB),0)) -> 0
D86: ="Forecast Year ("&YearStart+20-1&")" -> Forecast Year (19) | L86: Average Operator Cost per Hour of Delay | Q86: No Build | R86: Build
E87: Trucks per Year | G87: =(IF(TonsPerTruckNB<>0,TonsTruckNB20/TonsPerTruckNB, 0)+IF(TEUPerTruckNB<>0, TEUTruckNB20/TEUPerTruckNB,0)) -> 0 | H87: =(IF(TonsPerTruckB<>0,TonsTruckB20/TonsPerTruckB, 0)+IF(TEUPerTruckB<>0, TEUTruckB20/TEUPerTruckB,0)) -> 0 | M87: Freight Truck Delays
E88: Trains per Year | G88: =(IF((TonsPerRailcarNB*RailcarPerTrainNB)<>0,TonsRailNB20/(TonsPerRailcarNB*RailcarPerTrainNB), 0)+IF((TEUPerRailcarNB*TEURailcarPerTrainNB)<>0, TEURailNB20/(TEUPerRailcarNB*TEURailcarPerTrainNB),0)) -> 0 | H88: =(IF((TonsPerRailcarB*RailcarPerTrainB)<>0,TonsRailB20/(TonsPerRailcarB*RailcarPerTrainB), 0)+IF((TEUPerRailcarB*TEURailcarPerTrainB)<>0, TEURailB20/(TEUPerRailcarB*TEURailcarPerTrainB),0)) -> 0 | M88: Train Delays
M89: Annual Increase in Operator Costs (Net of Inflation)
C90: Number of Empty-Haul Return Trips for Every Full Truck/Carload | N90: Freight Truck Delays | Q90: 0 | R90: =Q90 -> 0
G91: Truck | H91: Rail | N91: Train Delays | Q91: 0 | R91: =OpCostGrowthRNB -> 0
D92: Bulk/Breakbulk Shipments | G92: 1 | H92: 1
D93: Container Shipments | G93: 1 | H93: 1
C95: Average Truck Speed (mph)
D96: Freight Truck Shipments | G96: No Build | H96: Build
E97: ="Base Year ("&IF(ISBLANK(YearStart), 0, YearStart)&")" -> Base Year (0) | H97: =MPHTruckNB1 -> 0
E98: ="Forecast Year ("&YearStart+20-1&")" -> Forecast Year (19) | G98: =MPHTruckNB1 -> 0 | H98: =MPHTruckNB20 -> 0

Sheet 2) Model Inputs
C3: 2A | D3: FREIGHT VOLUME INPUTS | Q3: 2B | R3: TRANSLOAD OPERATIONS INPUTS | AE3: 2D | AF3: CRASH RATE INPUTS
H5: Caculated by Model | I5: Changed by User | J5: Used for Proj. Eval. | K5: Reason for Change | V5: Caculated by Model | W5: Changed by User | X5: Used for Proj. Eval. | Y5: Reason for Change | AJ5: Caculated by Model | AK5: Changed by User | AL5: Used for Proj. Eval. | AM5: Reason for Change
C6: No Build | Q6: No Build | AE6: Freight Truck
D7: ="Base Year ("&IF(ISBLANK(YearStart), 0, YearStart)&")" -> Base Year (0) | R7: ="Base Year ("&IF(ISBLANK(YearStart), 0, YearStart)&")" -> Base Year (0) | AF7: No Build
E8: Freight Truck | S8: Transload | AG8: Fatal Crash Rate | AJ8: =AnnFatTruck -> 0.006 | AL8: =IF(ISNUMBER(AK8),AK8,AJ8) -> 0.006
F9: Bulk/Breakbulk (Short Tons) | U9: Transload Cost per Short Ton | V9: =TLCostTonNB -> 0 | X9: =IF(ISNUMBER(W9), W9, V9) -> 0 | AG9: Injury Crash Rate | AJ9: =AnnInjTruck -> 0.26 | AL9: =IF(ISNUMBER(AK9),AK9,AJ9) -> 0.26
G10: Laden Truck Miles Traveled | H10: =IF(TonsPerTruckNB<>0, (TonsTruckNB1/TonsPerTruckNB),0)*DistTNB -> 0 | J10: =IF(ISNUMBER(I10), I10, H10) -> 0 | U10: Transload Cost per TEU | V10: =TLCostTEUNB -> 0 | X10: =IF(ISNUMBER(W10), W10, V10) -> 0 | AG10: PDO Crash Rate | AJ10: =AnnPDOTruck -> 0.56 | AL10: =IF(ISNUMBER(AK10),AK10,AJ10) -> 0.56
G11: Empty Truck Miles Traveled | H11: =IF(TonsPerTruckNB<>0, (TonsTruckNB1/TonsPerTruckNB),0)*DistTNB*TruckAdjFactor -> 0 | J11: =IF(ISNUMBER(I11), I11, H11) -> 0 | AF11: Total Crashes | AJ11: =SUM(AJ8:AJ10) -> 0.826
G12: Laden Ton-Miles | H12: =DistTNB*TonsTruckNB1 -> 0 | J12: =IF(ISNUMBER(I12), I12, H12) -> 0 | S12: Drayage
G13: Shipping Cost per Truck | H13: =SHCostTonTNB -> 0 | J13: =IF(ISNUMBER(I13), I13, H13) -> 0 | T13: Bulk/Breakbulk (Short Tons) | AE13: Crash Reduction Factors
F14: Containers (TEUs) | U14: Truck Miles Drayed | V14: =IF(TonsPerTruckNB*DrayDistTNB<>0, (IF(DistTNB<>0, DraysTonTruck1*TonMiTNB1/DistTNB, 0)+IF(DistRNB<>0, DraysTonRail1*TonMiRNB1/DistRNB, 0))/TonsPerTruckNB*DrayDistTNB, 0) -> 0 | X14: =IF(ISNUMBER(W14), W14, V14) -> 0 | AG14: Fatal Crash Rate | AL14: =IF(ISNUMBER(AK14),AK14,1) -> 1
G15: Laden Truck Miles Traveled | H15: =IF(TEUPerTruckNB<>0, (TEUTruckNB1/TEUPerTruckNB),0)*TEUDistTNB -> 0 | J15: =IF(ISNUMBER(I15), I15, H15) -> 0 | T15: Containers (TEUs) | AG15: Injury Crash Rate | AL15: =IF(ISNUMBER(AK15),AK15,1) -> 1
G16: Empty Truck Miles Traveled | H16: =IF(TEUPerTruckNB<>0, (TEUTruckNB1/TEUPerTruckNB),0)*TEUDistTNB*TruckAdjFactorTEU -> 0 | J16: =IF(ISNUMBER(I16), I16, H16) -> 0 | U16: Truck Miles Drayed | V16: =IF(TEUPerTruckNB*DrayDistTNB<>0, (IF(DistTNB<>0, DraysTEUTruck1*ConMiTNB1/TEUDistTNB, 0)+IF(DistRNB<>0, DraysTEURail1*ConMiRNB1/TEUDistRNB, 0))/TEUPerTruckNB*DrayDistTNB, 0) -> 0 | X16: =IF(ISNUMBER(W16), W16, V16) -> 0 | AG16: PDO Crash Rate | AL16: =IF(ISNUMBER(AK16),AK16,1) -> 1
G17: Laden Container-Miles | H17: =TEUDistTNB*TEUTruckNB1 -> 0 | J17: =IF(ISNUMBER(I17), I17, H17) -> 0 | T17: General
G18: Shipping Cost per Truck | H18: =SHCostTEUTNB*TEUPerTruckNB -> 0 | J18: =IF(ISNUMBER(I18), I18, H18) -> 0 | U18: Trucks per Day | V18: =IF(DrayDistTNB<>0, ((VMTDrayTonNB1+VMTDrayTEUNB1)/DrayDistTNB)/AnnualFactor, 0) -> 0 | X18: =IF(ISNUMBER(W18), W18, V18) -> 0 | AF18: Build
U19: Drayage Cost per Truck | V19: =DrayCostNB -> 0 | X19: =IF(ISNUMBER(W19), W19, V19) -> 0 | AG19: Fatal Crash Rate | AJ19: =AL8*AL14 -> 0.006 | AL19: =IF(ISNUMBER(AK19),AK19,AJ19) -> 0.006
E20: Freight Train | AG20: Injury Crash Rate | AJ20: =AL9*AL15 -> 0.26 | AL20: =IF(ISNUMBER(AK20),AK20,AJ20) -> 0.26
F21: Bulk/Breakbulk (Short Tons) | R21: ="Forecast Year ("&YearStart+20-1&")" -> Forecast Year (19) | AG21: PDO Crash Rate | AJ21: =AL10*AL16 -> 0.56 | AL21: =IF(ISNUMBER(AK21),AK21,AJ21) -> 0.56
G22: Laden Train Miles Traveled | H22: =IF(TonsPerRailcarNB*RailcarPerTrainNB<>0, TonsRailNB1/(TonsPerRailcarNB*RailcarPerTrainNB),0)*DistRNB -> 0 | J22: =IF(ISNUMBER(I22), I22, H22) -> 0 | S22: Transload | AF22: Total Crashes | AJ22: =SUM(AJ19:AJ21) -> 0.826
G23: Empty Train Miles Traveled | H23: =IF(TonsPerRailcarNB*RailcarPerTrainNB<>0, TonsRailNB1/(TonsPerRailcarNB*RailcarPerTrainNB),0)*DistRNB*RailAdjFactor -> 0 | J23: =IF(ISNUMBER(I23), I23, H23) -> 0 | U23: Transload Cost per Short Ton | V23: =TLCostTonNB*(1+TLCostGrowthTonNB)^(20-1) -> 0 | X23: =IF(ISNUMBER(W23), W23, V23) -> 0
G24: Laden Ton-Miles | H24: =DistRNB*TonsRailNB1 -> 0 | J24: =IF(ISNUMBER(I24), I24, H24) -> 0 | U24: Transload Cost per TEU | V24: =TLCostTEUNB*(1+TLCostGrowthTEUNB)^(20-1) -> 0 | X24: =IF(ISNUMBER(W24), W24, V24) -> 0
G25: Shipping Cost per Carload | H25: =SHCostTonRNB -> 0 | J25: =IF(ISNUMBER(I25), I25, H25) -> 0
F26: Containers (TEUs) | S26: Drayage
G27: Laden Train Miles Traveled | H27: =IF(TEUPerRailcarNB*TEURailcarPerTrainNB<>0, TEURailNB1/(TEUPerRailcarNB*TEURailcarPerTrainNB),0)*TEUDistRNB -> 0 | J27: =IF(ISNUMBER(I27), I27, H27) -> 0 | T27: Bulk/Breakbulk (Short Tons)
G28: Empty Train Miles Traveled | H28: =IF(TEUPerRailcarNB*TEURailcarPerTrainNB<>0, TEURailNB1/(TEUPerRailcarNB*TEURailcarPerTrainNB),0)*TEUDistRNB*RailAdjFactor -> 0 | J28: =IF(ISNUMBER(I28), I28, H28) -> 0 | U28: Truck Miles Drayed | V28: =IF(TonsPerTruckNB*DrayDistTNB<>0, (IF(DistTNB<>0, (DraysTonTruck20*TonMiTNB20/DistTNB), 0)+IF(DistRNB<>0, DraysTonRail20*TonMiRNB20/DistRNB, 0))/TonsPerTruckNB*DrayDistTNB, 0) -> 0 | X28: =IF(ISNUMBER(W28), W28, V28) -> 0
G29: Laden Container-Miles | H29: =TEUDistRNB*TEURailNB1 -> 0 | J29: =IF(ISNUMBER(I29), I29, H29) -> 0 | T29: Containers (TEUs)
G30: Shipping Cost per Carload | H30: =SHCostTEURNB*TEUPerRailcarNB -> 0 | J30: =IF(ISNUMBER(I30), I30, H30) -> 0 | U30: Truck Miles Drayed | V30: =IF(TEUPerTruckNB*DrayDistTNB<>0, (IF(DistTNB<>0, DraysTEUTruck20*ConMiTNB20/TEUDistTNB, 0)+IF(DistRNB<>0, DraysTEURail20*ConMiRNB20/TEUDistRNB, 0))/TEUPerTruckNB*DrayDistTNB, 0) -> 0 | X30: =IF(ISNUMBER(W30), W30, V30) -> 0
D31: ="Forecast Year ("&YearStart+20-1&")" -> Forecast Year (19) | T31: General
E32: Freight Truck | U32: Trucks per Day | V32: =IF(DrayDistTNB<>0, ((VMTDrayTonNB20+VMTDrayTEUNB20)/DrayDistTNB)/AnnualFactor, 0) -> 0 | X32: =IF(ISNUMBER(W32), W32, V32) -> 0
F33: Bulk/Breakbulk (Short Tons) | U33: Drayage Cost per Truck | V33: =DrayCostNB*(1+DrayCostGrowthNB)^(20-1) -> 0 | X33: =IF(ISNUMBER(W33), W33, V33) -> 0
G34: Laden Truck Miles Traveled | H34: =IF(TonsPerTruckNB<>0, (TonsTruckNB20/TonsPerTruckNB),0)*DistTNB -> 0 | J34: =IF(ISNUMBER(I34), I34, H34) -> 0
G35: Empty Truck Miles Traveled | H35: =IF(TonsPerTruckNB<>0, (TonsTruckNB20/TonsPerTruckNB),0)*DistTNB*TruckAdjFactor -> 0 | J35: =IF(ISNUMBER(I35), I35, H35) -> 0
G36: Laden Ton-Miles | H36: =DistTNB*TonsTruckNB20 -> 0 | J36: =IF(ISNUMBER(I36), I36, H36) -> 0 | Q36: Build
G37: Shipping Cost per Truck | H37: =SHCostTonTNB*(1+SHCostGrowthTNB)^(20-1) -> 0 | J37: =IF(ISNUMBER(I37), I37, H37) -> 0 | R37: ="Base Year ("&IF(ISBLANK(YearStart), 0, YearStart)&")" -> Base Year (0)
F38: Containers (TEUs) | S38: Transload
G39: Laden Truck Miles Traveled | H39: =IF(TEUPerTruckNB<>0, (TEUTruckNB20/TEUPerTruckNB),0)*TEUDistTNB -> 0 | J39: =IF(ISNUMBER(I39), I39, H39) -> 0 | U39: Transload Cost per Short Ton | V39: =TLCostTonB -> 0 | X39: =IF(ISNUMBER(W39), W39, V39) -> 0
G40: Empty Truck Miles Traveled | H40: =IF(TEUPerTruckNB<>0, (TEUTruckNB20/TEUPerTruckNB),0)*TEUDistTNB*TruckAdjFactorTEU -> 0 | J40: =IF(ISNUMBER(I40), I40, H40) -> 0 | U40: Transload Cost per TEU | V40: =TLCostTEUB -> 0 | X40: =IF(ISNUMBER(W40), W40, V40) -> 0
G41: Laden Container-Miles | H41: =TEUDistTNB*TEUTruckNB20 -> 0 | J41: =IF(ISNUMBER(I41), I41, H41) -> 0
G42: Shipping Cost per Truck | H42: =SHCostTEUTNB*TEUPerTruckNB*(1+SHCostGrowthTNB)^(20-1) -> 0 | J42: =IF(ISNUMBER(I42), I42, H42) -> 0 | S42: Drayage
T43: Bulk/Breakbulk (Short Tons)
E44: Freight Train | U44: Truck Miles Drayed | V44: =IF(TonsPerTruckB*DrayDistTB<>0, (IF(DistTB<>0, (DraysTonTruck1*TonMiTB1/DistTB), 0)+IF(DistRB<>0, DraysTonRail1*TonMiRB1/DistRB, 0))/TonsPerTruckB*DrayDistTB, 0) -> 0 | X44: =IF(ISNUMBER(W44), W44, V44) -> 0
F45: Bulk/Breakbulk (Short Tons) | T45: Containers (TEUs)
G46: Laden Train Miles Traveled | H46: =IF(TonsPerRailcarNB*RailcarPerTrainNB<>0, TonsRailNB20/(TonsPerRailcarNB*RailcarPerTrainNB),0)*DistRNB -> 0 | J46: =IF(ISNUMBER(I46), I46, H46) -> 0 | U46: Truck Miles Drayed | V46: =IF(TEUPerTruckB*DrayDistTB<>0, (IF(DistTB<>0, DraysTEUTruck1*ConMiTB1/TEUDistTB, 0)+IF(DistRB<>0, DraysTEURail1*ConMiRB1/TEUDistRB, 0))/TEUPerTruckB*DrayDistTB, 0) -> 0 | X46: =IF(ISNUMBER(W46), W46, V46) -> 0
G47: Empty Train Miles Traveled | H47: =IF(TonsPerRailcarNB*RailcarPerTrainNB<>0, TonsRailNB20/(TonsPerRailcarNB*RailcarPerTrainNB),0)*DistRNB*RailAdjFactor -> 0 | J47: =IF(ISNUMBER(I47), I47, H47) -> 0 | T47: General
G48: Laden Ton-Miles | H48: =DistRNB*TonsRailNB20 -> 0 | J48: =IF(ISNUMBER(I48), I48, H48) -> 0 | U48: Trucks per Day | V48: =IF(DrayDistTNB<>0, ((VMTDrayTonB1+VMTDrayTEUB1)/DrayDistTB)/AnnualFactor, 0) -> 0 | X48: =IF(ISNUMBER(W48), W48, V48) -> 0
G49: Shipping Cost per Carload | H49: =SHCostTonRNB*(1+SHCostGrowthRNB)^(20-1) -> 0 | J49: =IF(ISNUMBER(I49), I49, H49) -> 0 | U49: Drayage Cost per Truck | V49: =DrayCostB -> 0 | X49: =IF(ISNUMBER(W49), W49, V49) -> 0
F50: Containers (TEUs)
G51: Laden Train Miles Traveled | H51: =IF(TEUPerRailcarNB*TEURailcarPerTrainNB<>0, TEURailNB20/(TEUPerRailcarNB*TEURailcarPerTrainNB),0)*TEUDistRNB -> 0 | J51: =IF(ISNUMBER(I51), I51, H51) -> 0 | R51: ="Forecast Year ("&YearStart+20-1&")" -> Forecast Year (19)
G52: Empty Train Miles Traveled | H52: =IF(TEUPerRailcarNB*TEURailcarPerTrainNB<>0, TEURailNB20/(TEUPerRailcarNB*TEURailcarPerTrainNB),0)*TEUDistRNB*RailAdjFactor -> 0 | J52: =IF(ISNUMBER(I52), I52, H52) -> 0 | S52: Transload
G53: Laden Container-Miles | H53: =TEUDistRNB*TEURailNB20 -> 0 | J53: =IF(ISNUMBER(I53), I53, H53) -> 0 | U53: Transload Cost per Short Ton | V53: =TLCostTonB*(1+TLCostGrowthTonB)^(20-1) -> 0 | X53: =IF(ISNUMBER(W53), W53, V53) -> 0
G54: Shipping Cost per Carload | H54: =SHCostTEURNB*TEUPerRailcarNB*(1+SHCostGrowthRNB)^(20-1) -> 0 | J54: =IF(ISNUMBER(I54), I54, H54) -> 0 | U54: Transload Cost per TEU | V54: =TLCostTEUB*(1+TLCostGrowthTEUB)^(20-1) -> 0 | X54: =IF(ISNUMBER(W54), W54, V54) -> 0
S56: Drayage
C57: Build | T57: Bulk/Breakbulk (Short Tons)
D58: ="Base Year ("&IF(ISBLANK(YearStart), 0, YearStart)&")" -> Base Year (0) | U58: Truck Miles Drayed | V58: =IF(TonsPerTruckB*DrayDistTB<>0, (IF(DistTB<>0, DraysTonTruck20*TonMiTB20/DistTB, 0)+IF(DistRB<>0, DraysTonRail20*TonMiRB20/DistRB, 0))/TonsPerTruckB*DrayDistTB, 0) -> 0 | X58: =IF(ISNUMBER(W58), W58, V58) -> 0
E59: Freight Truck | T59: Containers (TEUs)
F60: Bulk/Breakbulk (Short Tons) | U60: Truck Miles Drayed | V60: =IF(TEUPerTruckB*DrayDistTB<>0, (IF(DistTB<>0, DraysTEUTruck20*ConMiTB20/TEUDistTB, 0)+IF(DistRB<>0, DraysTEURail20*ConMiRB20/TEUDistRB, 0))/TEUPerTruckB*DrayDistTB, 0) -> 0 | X60: =IF(ISNUMBER(W60), W60, V60) -> 0
G61: Laden Truck Miles Traveled | H61: =IF(TonsPerTruckB<>0, (TonsTruckB1/TonsPerTruckB),0)*DistTB -> 0 | J61: =IF(ISNUMBER(I61), I61, H61) -> 0 | T61: General
G62: Empty Truck Miles Traveled | H62: =IF(TonsPerTruckB<>0, (TonsTruckB1/TonsPerTruckB),0)*DistTB*TruckAdjFactor -> 0 | J62: =IF(ISNUMBER(I62), I62, H62) -> 0 | U62: Trucks per Day | V62: =IF(DrayDistTB<>0, ((VMTDrayTonB20+VMTDrayTEUB20)/DrayDistTB)/AnnualFactor, 0) -> 0 | X62: =IF(ISNUMBER(W62), W62, V62) -> 0
G63: Laden Ton-Miles | H63: =DistTB*TonsTruckB1 -> 0 | J63: =IF(ISNUMBER(I63), I63, H63) -> 0 | U63: Drayage Cost per Truck | V63: =DrayCostB*(1+DrayCostGrowthB)^(20-1) -> 0 | X63: =IF(ISNUMBER(W63), W63, V63) -> 0
G64: Shipping Cost per Truck | H64: =SHCostTonTB -> 0 | J64: =IF(ISNUMBER(I64), I64, H64) -> 0
F65: Containers (TEUs)
G66: Laden Truck Miles Traveled | H66: =IF(TEUPerTruckB<>0, (TEUTruckB1/TEUPerTruckB),0)*TEUDistTB -> 0 | J66: =IF(ISNUMBER(I66), I66, H66) -> 0
G67: Empty Truck Miles Traveled | H67: =IF(TEUPerTruckB<>0, (TEUTruckB1/TEUPerTruckB),0)*TEUDistTB*TruckAdjFactorTEU -> 0 | J67: 0
G68: Laden Container-Miles | H68: =TEUDistTB*TEUTruckB1 -> 0 | J68: 0 | Q68: 2C | R68: TERMINAL EFFICIENCY INPUTS
G69: Shipping Cost per Truck | H69: =SHCostTEUTB*TEUPerTruckB -> 0 | J69: 0
E71: Freight Train | Q71: No Build
F72: Bulk/Breakbulk (Short Tons) | R72: ="Base Year ("&IF(ISBLANK(YearStart), 0, YearStart)&")" -> Base Year (0)
G73: Laden Train Miles Traveled | H73: =IF(TonsPerRailcarB*RailcarPerTrainB<>0, TonsRailB1/(TonsPerRailcarB*RailcarPerTrainB),0)*DistRB -> 0 | J73: =IF(ISNUMBER(I73), I73, H73) -> 0 | S73: Efficiency
G74: Empty Train Miles Traveled | H74: =IF(TonsPerRailcarB*RailcarPerTrainB<>0, TonsRailB1/(TonsPerRailcarB*RailcarPerTrainB),0)*DistRB*RailAdjFactor -> 0 | J74: =IF(ISNUMBER(I74), I74, H74) -> 0 | U74: Freight Truck Operating Cost per Hour | V74: =OpCostTruckNB -> 0 | X74: =IF(ISNUMBER(W74), W74, V74) -> 0
G75: Laden Ton-Miles | H75: =DistRB*TonsRailB1 -> 0 | J75: =IF(ISNUMBER(I75), I75, H75) -> 0 | U75: Freight Truck Idle Hours per Year | V75: =IdleTruckNB*(IF(DistTNB<>0, TLTonTruck1*VMTLTonTNB1/DistTNB, 0)+IF(TEUDistTNB<>0, TLTEUTruck1*VMTLTEUTNB1/TEUDistTNB, 0))/60 -> 0 | X75: =IF(ISNUMBER(W75), W75, V75) -> 0
G76: Shipping Cost per Carload | H76: =SHCostTonRB -> 0 | J76: =IF(ISNUMBER(I76), I76, H76) -> 0 | U76: Freight Train Operating Cost per Hour | V76: =OpCostRailNB -> 0 | X76: =IF(ISNUMBER(W76), W76, V76) -> 0
F77: Containers (TEUs) | U77: Freight Train Dwell Hours per Year | V77: =IdleRailNB*(IF(DistRNB<>0, TLTonRail1*VMTLTonRNB1/DistRNB, 0) +IF(TEUDistRNB<>0, TLTEURail1*VMTLTEURNB1/TEUDistRNB, 0))/60 -> 0 | X77: =IF(ISNUMBER(W77), W77, V77) -> 0
G78: Laden Train Miles Traveled | H78: =IF(TEUPerRailcarB*TEURailcarPerTrainB<>0, TEURailB1/(TEUPerRailcarB*TEURailcarPerTrainB),0)*TEUDistRB -> 0 | J78: =IF(ISNUMBER(I78), I78, H78) -> 0
G79: Empty Train Miles Traveled | H79: =IF(TEUPerRailcarB*TEURailcarPerTrainB<>0, TEURailB1/(TEUPerRailcarB*TEURailcarPerTrainB),0)*TEUDistRB*RailAdjFactor -> 0 | J79: =IF(ISNUMBER(I79), I79, H79) -> 0 | R79: ="Forecast Year ("&YearStart+20-1&")" -> Forecast Year (19)
G80: Laden Container-Miles | H80: =TEUDistRB*TEURailB1 -> 0 | J80: =IF(ISNUMBER(I80), I80, H80) -> 0 | S80: Efficiency
G81: Shipping Cost per Carload | H81: =SHCostTEURB*TEUPerRailcarB -> 0 | J81: =IF(ISNUMBER(I81), I81, H81) -> 0 | U81: Freight Truck Operating Cost per Hour | V81: =OpCostTruckNB*(1+OpCostGrowthRNB)^(20-1) -> 0 | X81: =IF(ISNUMBER(W81), W81, V81) -> 0
U82: Freight Truck Idle Hours per Year | V82: =IdleTruckNB*(IF(DistTNB<>0, TLTonTruck20*VMTLTonTNB20/DistTNB, 0)+IF(TEUDistTNB<>0, TLTEUTruck20*VMTLTEUTNB20/TEUDistTNB, 0))*(1+IdleGrowthTNB)^(20-1)/60 -> 0 | X82: =IF(ISNUMBER(W82), W82, V82) -> 0
D83: ="Forecast Year ("&YearStart+20-1&")" -> Forecast Year (19) | U83: Freight Train Operating Cost per Hour | V83: =OpCostRailNB*(1+OpCostGrowthRNB)^(20-1) -> 0 | X83: =IF(ISNUMBER(W83), W83, V83) -> 0
E84: Freight Truck | U84: Freight Train Dwell Hours per Year | V84: =IdleRailNB*(IF(DistRNB<>0, TLTonRail20*VMTLTonRNB20/DistRNB, 0)+IF(TEUDistRNB<>0, TLTEURail20*VMTLTEURNB20/TEUDistRNB, 0))*(1+IdleGrowthRNB)^(20-1)/60 -> 0 | X84: =IF(ISNUMBER(W84), W84, V84) -> 0
F85: Bulk/Breakbulk (Short Tons)
G86: Laden Truck Miles Traveled | H86: =IF(TonsPerTruckB<>0, (TonsTruckB20/TonsPerTruckB),0)*DistTB -> 0 | J86: =IF(ISNUMBER(I86), I86, H86) -> 0
G87: Empty Truck Miles Traveled | H87: =IF(TonsPerTruckB<>0, (TonsTruckB20/TonsPerTruckB),0)*DistTB*TruckAdjFactor -> 0 | J87: =IF(ISNUMBER(I87), I87, H87) -> 0 | Q87: Build
G88: Laden Ton-Miles | H88: =DistTB*TonsTruckB20 -> 0 | J88: =IF(ISNUMBER(I88), I88, H88) -> 0 | R88: ="Base Year ("&IF(ISBLANK(YearStart), 0, YearStart)&")" -> Base Year (0)
G89: Shipping Cost per Truck | H89: =SHCostTonTB*(1+SHCostGrowthTB)^(20-1) -> 0 | J89: =IF(ISNUMBER(I89), I89, H89) -> 0 | S89: Efficiency
F90: Containers (TEUs) | U90: Freight Truck Operating Cost per Hour | V90: =OpCostTruckB -> 0 | X90: =IF(ISNUMBER(W90), W90, V90) -> 0
G91: Laden Truck Miles Traveled | H91: =IF(TEUPerTruckB<>0, (TEUTruckB20/TEUPerTruckB),0)*TEUDistTB -> 0 | J91: =IF(ISNUMBER(I91), I91, H91) -> 0 | U91: Freight Truck Idle Hours per Year | V91: =IdleTruckB*(IF(DistTB<>0, TLTonTruck1*VMTLTonTB1/DistTB, 0)+IF(TEUDistTB<>0, TLTEUTruck1*VMTLTEUTB1/TEUDistTB, 0))/60 -> 0 | X91: =IF(ISNUMBER(W91), W91, V91) -> 0
G92: Empty Truck Miles Traveled | H92: =IF(TEUPerTruckB<>0, (TEUTruckB20/TEUPerTruckB),0)*TEUDistTB*TruckAdjFactorTEU -> 0 | J92: 0 | U92: Freight Train Operating Cost per Hour | V92: =OpCostRailB -> 0 | X92: =IF(ISNUMBER(W92), W92, V92) -> 0
G93: Laden Container-Miles | H93: =TEUDistTB*TEUTruckB20 -> 0 | J93: 0 | U93: Freight Train Dwell Hours per Year | V93: =IdleRailB*(IF(DistRB<>0, TLTonRail1*VMTLTonRB1/DistRB, 0)+IF(TEUDistRB<>0, TLTEURail1*VMTLTEURB1/TEUDistRB, 0))/60 -> 0 | X93: =IF(ISNUMBER(W93), W93, V93) -> 0
G94: Shipping Cost per Truck | H94: =SHCostTEUTB*TEUPerTruckB*(1+SHCostGrowthTB)^(20-1) -> 0 | J94: 0
R95: ="Forecast Year ("&YearStart+20-1&")" -> Forecast Year (19)
E96: Freight Train | S96: Efficiency
F97: Bulk/Breakbulk (Short Tons) | U97: Freight Truck Operating Cost per Hour | V97: =OpCostTruckB*(1+OpCostGrowthRB)^(20-1) -> 0 | X97: =IF(ISNUMBER(W97), W97, V97) -> 0
G98: Laden Train Miles Traveled | H98: =IF(TonsPerRailcarB*RailcarPerTrainB<>0, TonsRailB20/(TonsPerRailcarB*RailcarPerTrainB),0)*DistRB -> 0 | J98: =IF(ISNUMBER(I98), I98, H98) -> 0 | U98: Freight Truck Idle Hours per Year | V98: =IdleTruckB*(IF(DistTB<>0, TLTonTruck20*(VMTLTonTB20/DistTB), 0)+IF(TEUDistTB<>0, TLTEUTruck20*VMTLTEUTB20/TEUDistTB, 0))*(1+IdleGrowthTB)^(20-1)/60 -> 0 | X98: =IF(ISNUMBER(W98), W98, V98) -> 0
G99: Empty Train Miles Traveled | H99: =IF(TonsPerRailcarB*RailcarPerTrainB<>0, TonsRailB20/(TonsPerRailcarB*RailcarPerTrainB),0)*DistRB*RailAdjFactor -> 0 | J99: =IF(ISNUMBER(I99), I99, H99) -> 0 | U99: Freight Train Operating Cost per Hour | V99: =OpCostRailB*(1+OpCostGrowthRB)^(20-1) -> 0 | X99: =IF(ISNUMBER(W99), W99, V99) -> 0
G100: Laden Ton-Miles | H100: =DistRB*TonsRailB20 -> 0 | J100: =IF(ISNUMBER(I100), I100, H100) -> 0 | U100: Freight Train Dwell Hours per Year | V100: =IdleRailB*(IF(DistRB<>0, TLTonRail20*VMTLTonRB20/DistRB, 0)+IF(TEUDistRB<>0, TLTEURail20*VMTLTEURB20/TEUDistRB, 0))*(1+IdleGrowthRB)^(20-1)/60 -> 0 | X100: =IF(ISNUMBER(W100), W100, V100) -> 0
G101: Shipping Cost per Carload | H101: =SHCostTonRB*(1+SHCostGrowthRB)^(20-1) -> 0 | J101: =IF(ISNUMBER(I101), I101, H101) -> 0
F102: Containers (TEUs)
G103: Laden Train Miles Traveled | H103: =IF(TEUPerRailcarB*TEURailcarPerTrainB<>0, TEURailB20/(TEUPerRailcarB*TEURailcarPerTrainB),0)*TEUDistRB -> 0 | J103: =IF(ISNUMBER(I103), I103, H103) -> 0
G104: Empty Train Miles Traveled | H104: =IF(TEUPerRailcarB*TEURailcarPerTrainB<>0, TEURailB20/(TEUPerRailcarB*TEURailcarPerTrainB),0)*TEUDistRB*RailAdjFactor -> 0 | J104: 0
G105: Laden Container-Miles | H105: =TEUDistRB*TEURailB20 -> 0 | J105: 0
G106: Shipping Cost per Carload | H106: =SHCostTEURB*TEUPerRailcarB*(1+SHCostGrowthRB)^(20-1) -> 0 | J106: 0

Sheet 3) Results
B2: District: | E2: ='1) Project Information'!E2 -> HQ
Q3: EA: | R3: ='1) Project Information'!Q2 -> 0
B4: PROJECT: | E4: =ProjName -> Hypothetical Project | Q4: PPNO: | R4: ='1) Project Information'!Q3 -> 0
D9: 3 | E9: INVESTMENT ANALYSIS
E10: SUMMARY RESULTS
Q12: Total Over | R12: Average
E13: Life-Cycle Costs (mil. $) | H13: =LifeCycleCost/1000000 -> 0 | L13: ITEMIZED BENEFITS (mil. $) | Q13: 20 Years | R13: Annual
E14: Life-Cycle Benefits (mil. $) | H14: =LifeCycleBene/1000000 ->  | L14: Shipper Cost Savings | Q14: ='Final Calculations'!C55/1000000 -> 0 | R14: =Q14/20 -> 0
E15: Net Present Value (mil. $) | H15: =NetPresentValue/1000000 ->  | L15: Modal Diversion and Freight Network Improvements | Q15: =IF(Transport="Y", ('Shipper Costs'!R48+'Shipper Costs'!S48)/1000000, 0) -> 0 | R15: 0
L16: Transload and Operational Efficiency Improvements | Q16: =IF(Transport="Y", ('Shipper Costs'!T48+'Shipper Costs'!U48++'Shipper Costs'!V48)/1000000, 0) -> 0 | R16: 0
E17: Benefit / Cost Ratio: | H17: =IF(LifeCycleCost=0,"N/A",LifeCycleBene/LifeCycleCost) -> N/A | L17: Accident Cost Savings | Q17: ='Final Calculations'!D55/1000000 -> 0 | R17: 0
L18: Emission Cost Savings | Q18: ='Final Calculations'!E55/1000000 -> 
E19: Rate of Return on Investment: | H19: =ReturnOnInvest ->  | L19: TOTAL BENEFITS | Q19: =SUM(Q14, Q17:Q18) -> 
E21: Payback Period: | H21: =Payback -> N/A
D24: Should benefit-cost results include: | O24: Tons | Q24: Value (mil. $)
O25: Total Over | P25: Average | Q25: Total Over | R25: Average
E26: 1) Shipper Costs? (y/n) | H26: Y | L26: EMISSIONS REDUCTION | O26: 20 Years | P26: Annual | Q26: 20 Years | R26: Annual
H27: Default = Y | L27: CO Emissions Saved | O27: ='Final Calculations'!C60 ->  | P27: =O27/20 ->  | Q27: =('Final Calculations'!D60)/1000000 ->  | R27: =Q27/20 -> 
E28: 2) Accident Costs? (y/n) | H28: Y | L28: CO2 Emissions Saved | O28: ='Final Calculations'!C61 ->  | P28: =O28/20 ->  | Q28: =('Final Calculations'!D61/1000000) ->  | R28: =Q28/20 -> 
H29: Default = Y | L29: NOX Emissions Saved | O29: ='Final Calculations'!C62 ->  | Q29: =('Final Calculations'!D62/1000000) ->  | R29: =Q29/20 -> 
E30: 3) Vehicle Emissions? (y/n) | H30: Y | L30: PM10 Emissions Saved | O30: ='Final Calculations'!C63 ->  | Q30: =('Final Calculations'!D63)/1000000 ->  | R30: =Q30/20 -> 
E31: includes value for CO2e | H31: Default = Y | L31: PM2.5 Emissions Saved | O31: ='Final Calculations'!C64 -> 
L32: SOX Emissions Saved | O32: ='Final Calculations'!C65 ->  | Q32: =('Final Calculations'!D65)/1000000 ->  | R32: =Q32/20 -> 
L33: VOC Emissions Saved | O33: ='Final Calculations'!C66 ->  | Q33: =('Final Calculations'!D66)/1000000 ->  | R33: =Q33/20 -> 

Sheet Shipper Costs
B1: Transportation Cost Savings
B3: This sheet calculates total shipper cost benefits for modal diversion, drayage, terminal efficiency and transload operations.
B5: Formulas:
B6: Annual Shipments = Volume by Mode / Volume per Vehicle | H6: Modal Diversion Costs = Ann. Shipments x Shipment Cost x Growth in Shipment Cost
B7: (trucks / trains) / yr (tons / TEUs) / yr (tons / TEUs) / (truck / train) | H7: $ / year (trucks / trains) / yr $ / (truck / train) % growth in $ / (truck / train)
B8: Transload Shipments = Ann. Shipments x % of Shipments Transloaded | H8: Transload Cost = Transload Shipments x Unit Cost x Growth in Unit Cost
B9: (trucks / trains) / yr (trucks / trains) / yr % of (trucks / trains) transloaded / yr | H9: $ / year (trucks / trains) / yr $ / (ton / TEU) % growth in $ / (ton / TEU)
B10: Drayage Shipments = Vol. by Mode x % of Ship. Drayed / Vol. per Truck | H10: Drayage Cost = Drayage Shipments x Drayage Cost x Growth in Drayage Cost
B11: trucks / yr (tons / TEUs) / yr % of volume drayed / yr (tons / TEUs) / truck | H11: $ / year trucks / yr $ / truck % growth in $ / truck
B12: Annual Delay = Delay per Veh. x Growth in Delay per Veh. | H12: Terminal Eff. Cost = Transload Shipments x Ann. Delay x Op. Cost x Growth in Op. Cost
B13: hrs / year hrs / (truck / train) % growth in delay hrs / (truck / train) | H13: $ / year (trucks / trains) / yr hrs / yr $ / hr delay % growth in $ / hr delay
B17: A | C17: FREIGHT BENEFITS | Q17: B | R17: SUMMARY OF SHIPPING COST BENEFITS
B20: Modal Diversion Costs - Bulk/Breakbulk (Short Tons)
C22: TRUCKLOADS PER YEAR | E22: TRAINLOADS PER YEAR | G22: TRUCK COST | I22: RAIL COST | K22: MODAL DIVERSION BENEFIT | R22: FREIGHT | W22: Present
C23: (shipments/yr) | E23: (shipments/yr) | G23: ($/truck) | I23: ($/train) | K23: ($/yr) | R23: Modal Diversion | S23: Modal Diversion | V23: Terminal | W23: Value of
B24: Year | M24: Constant | N24: Present | Q24: Year | R24: Bulk/Breakbulk | S24: Container | T24: Transload | U24: Drayage | V24: Efficiency | W24: Shipping Cost | Y24: Constant
C25: No Build | D25: Build | E25: No Build | F25: Build | G25: No Build | H25: Build | I25: No Build | J25: Build | K25: Truck | L25: Rail | M25: Dollars | N25: Value | R25: Costs | S25: Costs | T25: Costs | U25: Costs | V25: Costs | W25: =IF(Transport="Y","Benefits","Benefits*") -> Benefits | Y25: Dollars
B26: =YearStart -> 0 | C26: =IF(TonsPerTruckNB<>0, TonsTruckNB1/TonsPerTruckNB, 0) -> 0 | D26: =IF(TonsPerTruckB<>0, TonsTruckB1/TonsPerTruckB, 0) -> 0 | E26: =IF((TonsPerRailcarNB*RailcarPerTrainNB)<>0, TonsRailNB1/(TonsPerRailcarNB*RailcarPerTrainNB), 0) -> 0 | F26: =IF((TonsPerRailcarB*RailcarPerTrainB)<>0, TonsRailB1/(TonsPerRailcarB*RailcarPerTrainB), 0) -> 0 | G26: =SHCostTonTNB1 -> 0 | H26: =SHCostTonTB1 -> 0 | I26: =SHCostTonRNB1*RailcarPerTrainNB -> 0 | J26: =SHCostTonRB1*RailcarPerTrainB -> 0 | K26: =G26*C26-H26*D26 -> 0 | L26: =I26*E26-J26*F26 -> 0 | M26: =SUM($K26:$L26) -> 0 | N26: =$M26/(1+DiscRate)^($B26-CurrentYear) -> 0 | Q26: =YearStart -> 0 | R26: =N26 -> 0 | S26: =N57 -> 0 | T26: =N88 -> 0 | U26: =N119 -> 0 | V26: =N150 -> 0 | W26: =IF(Transport<>"N", SUM(R26:V26), 0) -> 0 | Y26: =$W26*(1+DiscRate)^($B26-CurrentYear) -> 0
B27: =YearStart+20-1 -> 19 | C27: =IF(TonsPerTruckNB<>0, TonsTruckNB20/TonsPerTruckNB, 0) -> 0 | D27: =IF(TonsPerTruckB<>0, TonsTruckB20/TonsPerTruckB, 0) -> 0 | E27: =IF((TonsPerRailcarNB*RailcarPerTrainNB)<>0, TonsRailNB20/(TonsPerRailcarNB*RailcarPerTrainNB), 0) -> 0 | F27: =IF((TonsPerRailcarB*RailcarPerTrainB)<>0, TonsRailB20/(TonsPerRailcarB*RailcarPerTrainB), 0) -> 0 | G27: =SHCostTonTNB20 -> 0 | H27: =SHCostTonTB20 -> 0 | I27: =SHCostTonRNB20*RailcarPerTrainNB -> 0 | J27: =SHCostTonRB20*RailcarPerTrainB -> 0 | K27: =G27*C27-H27*D27 -> 0 | L27: =I27*E27-J27*F27 -> 0 | M27: =SUM($K27:$L27) -> 0 | N27: =$M27/(1+DiscRate)^($B27-CurrentYear) -> 0 | Q27: =YearStart+20-1 -> 19 | R27: =N27 -> 0 | S27: =N58 -> 0 | T27: =N89 -> 0 | U27: =N120 -> 0 | V27: =N151 -> 0 | W27: =IF(Transport<>"N",SUM(R27:V27), 0) -> 0 | Y27: =$W27*(1+DiscRate)^($B27-CurrentYear) -> 0
B29: =B26+1 -> 1 | C29: =IF(AND(TonsNB20<>0, TonsPerTruckNB<>0), IF(C$27<C$26, MAX(C$27,C$26+((TonsYrCurr*(1+TonGrowthNB)^(YearStart+20-1-CurrentYear)*TonsTruckNB20/TonsNB20)/(TonsPerTruckNB)-C$26)/(20-1)*($B29-YearStart)), MIN(C$27,C$26+((TonsYrCurr*(1+TonGrowthNB)^(YearStart+20-1-CurrentYear)*TonsTruckNB20/TonsNB20)/(TonsPerTruckNB)-C$26)/(20-1)*($B29-YearStart))), 0) -> 0 | D29: =IF(AND(TonsB20<>0, TonsPerTruckB<>0), IF(D$27<D$26, MAX(D$27,D$26+((TonsYrCurr*(1+TonGrowthB)^(YearStart+20-1-CurrentYear)*TonsTruckB20/TonsB20)/(TonsPerTruckB)-D$26)/(20-1)*($B29-YearStart)), MIN(D$27,D$26+((TonsYrCurr*(1+TonGrowthB)^(YearStart+20-1-CurrentYear)*TonsTruckB20/TonsB20)/(TonsPerTruckB)-D$26)/(20-1)*($B29-YearStart))), 0) -> 0 | E29: =IF(AND(TonsNB20<>0, (TonsPerRailcarNB*RailcarPerTrainNB)<>0), IF(E$26>E$27, MAX(E$27,E$26+((TonsYrCurr*(1+TonGrowthNB)^(YearStart+20-1-CurrentYear)*TonsRailNB20/TonsNB20)/(TonsPerRailcarNB*RailcarPerTrainNB)-E$26)/(20-1)*($B29-YearStart)), MIN(E$27,E$26+((TonsYrCurr*(1+TonGrowthNB)^(YearStart+20-1-CurrentYear)*TonsRailNB20/TonsNB20)/(TonsPerRailcarNB*RailcarPerTrainNB)-E$26)/(20-1)*($B29-YearStart))), 0) -> 0 | F29: =IF(AND(TonsB20<>0, (TonsPerRailcarB*RailcarPerTrainB)<>0), IF(F$26>F$27, MAX(F$27,F$26+((TonsYrCurr*(1+TonGrowthB)^(YearStart+20-1-CurrentYear)*TonsRailB20/TonsB20)/(TonsPerRailcarB*RailcarPerTrainB)-F$26)/(20-1)*($B29-YearStart)), MIN(F$27,F$26+((TonsYrCurr*(1+TonGrowthB)^(YearStart+20-1-CurrentYear)*TonsRailB20/TonsB20)/(TonsPerRailcarB*RailcarPerTrainB)-F$26)/(20-1)*($B29-YearStart))), 0) -> 0 | G29: =G$26*(1+SHCostGrowthTNB)^($B29-YearStart) -> 0 | H29: =H$26*(1+SHCostGrowthTB)^($B29-YearStart) -> 0 | I29: =I$26*(1+SHCostGrowthRNB)^($B29-YearStart) -> 0 | J29: =J$26*(1+SHCostGrowthRB)^($B29-YearStart) -> 0 | K29: =G29*C29-H29*D29 -> 0 | L29: =I29*E29-J29*F29 -> 0 | M29: =SUM($K29:$L29) -> 0 | N29: =$M29/(1+DiscRate)^($B29-CurrentYear) -> 0 | Q29: =Q26+1 -> 1 | R29: =N29 -> 0 | S29: =N60 -> 0 | T29: =N91 -> 0 | U29: =N122 -> 0 | V29: =N153 -> 0 | W29: =IF(Transport<>"N", SUM(R29:V29), 0) -> 0 | Y29: =$W29*(1+DiscRate)^($B29-CurrentYear) -> 0
B30: =B29+1 -> 2 | C30: 0 | D30: 0 | E30: 0 | F30: 0 | G30: 0 | H30: 0 | I30: 0 | J30: 0 | K30: 0 | L30: 0 | M30: 0 | N30: 0 | Q30: =Q29+1 -> 2 | R30: 0 | S30: 0 | T30: 0 | U30: 0 | V30: 0 | W30: =IF(Transport<>"N",SUM(R30:V30), 0) -> 0 | Y30: 0
B31: =B30+1 -> 3 | C31: 0 | D31: 0 | E31: 0 | F31: 0 | G31: 0 | H31: 0 | I31: 0 | J31: 0 | K31: 0 | L31: 0 | M31: 0 | N31: 0 | Q31: =Q30+1 -> 3 | R31: 0 | S31: 0 | T31: 0 | U31: 0 | V31: 0 | W31: 0 | Y31: 0
B32: 4 | C32: 0 | D32: 0 | E32: 0 | F32: 0 | G32: 0 | H32: 0 | I32: 0 | J32: 0 | K32: 0 | L32: 0 | M32: 0 | N32: 0 | Q32: 4 | R32: 0 | S32: 0 | T32: 0 | U32: 0 | V32: 0 | W32: 0 | Y32: 0
B33: 5 | C33: 0 | D33: 0 | E33: 0 | F33: 0 | G33: 0 | H33: 0 | I33: 0 | J33: 0 | K33: 0 | L33: 0 | M33: 0 | N33: 0 | Q33: 5 | R33: 0 | S33: 0 | T33: 0 | U33: 0 | V33: 0 | W33: 0 | Y33: 0
B34: 6 | C34: 0 | D34: 0 | E34: 0 | F34: 0 | G34: 0 | H34: 0 | I34: 0 | J34: 0 | K34: 0 | L34: 0 | M34: 0 | N34: 0 | Q34: 6 | R34: 0 | S34: 0 | T34: 0 | U34: 0 | V34: 0 | W34: 0 | Y34: 0
B35: 7 | C35: 0 | D35: 0 | E35: 0 | F35: 0 | G35: 0 | H35: 0 | I35: 0 | J35: 0 | K35: 0 | L35: 0 | M35: 0 | N35: 0 | Q35: 7 | R35: 0 | S35: 0 | T35: 0 | U35: 0 | V35: 0 | W35: 0 | Y35: 0
B36: 8 | C36: 0 | D36: 0 | E36: 0 | F36: 0 | G36: 0 | H36: 0 | I36: 0 | J36: 0 | K36: 0 | L36: 0 | M36: 0 | N36: 0 | Q36: 8 | R36: 0 | S36: 0 | T36: 0 | U36: 0 | V36: 0 | W36: 0 | Y36: 0
B37: 9 | C37: 0 | D37: 0 | E37: 0 | F37: 0 | G37: 0 | H37: 0 | I37: 0 | J37: 0 | K37: 0 | L37: 0 | M37: 0 | N37: 0 | Q37: 9 | R37: 0 | S37: 0 | T37: 0 | U37: 0 | V37: 0 | W37: 0 | Y37: 0
B38: 10 | C38: 0 | D38: 0 | E38: 0 | F38: 0 | G38: 0 | H38: 0 | I38: 0 | J38: 0 | K38: 0 | L38: 0 | M38: 0 | N38: 0 | Q38: 10 | R38: 0 | S38: 0 | T38: 0 | U38: 0 | V38: 0 | W38: 0 | Y38: 0
B39: 11 | C39: 0 | D39: 0 | E39: 0 | F39: 0 | G39: 0 | H39: 0 | I39: 0 | J39: 0 | K39: 0 | L39: 0 | M39: 0 | N39: 0 | Q39: 11 | R39: 0 | S39: 0 | T39: 0 | U39: 0 | V39: 0 | W39: 0 | Y39: 0
B40: 12 | C40: 0 | D40: 0 | E40: 0 | F40: 0 | G40: 0 | H40: 0 | I40: 0 | J40: 0 | K40: 0 | L40: 0 | M40: 0 | N40: 0 | Q40: 12 | R40: 0 | S40: 0 | T40: 0 | U40: 0 | V40: 0 | W40: 0 | Y40: 0
B41: 13 | C41: 0 | D41: 0 | E41: 0 | F41: 0 | G41: 0 | H41: 0 | I41: 0 | J41: 0 | K41: 0 | L41: 0 | M41: 0 | N41: 0 | Q41: 13 | R41: 0 | S41: 0 | T41: 0 | U41: 0 | V41: 0 | W41: 0 | Y41: 0
B42: 14 | C42: 0 | D42: 0 | E42: 0 | F42: 0 | G42: 0 | H42: 0 | I42: 0 | J42: 0 | K42: 0 | L42: 0 | M42: 0 | N42: 0 | Q42: 14 | R42: 0 | S42: 0 | T42: 0 | U42: 0 | V42: 0 | W42: 0 | Y42: 0
B43: 15 | C43: 0 | D43: 0 | E43: 0 | F43: 0 | G43: 0 | H43: 0 | I43: 0 | J43: 0 | K43: 0 | L43: 0 | M43: 0 | N43: 0 | Q43: 15 | R43: 0 | S43: 0 | T43: 0 | U43: 0 | V43: 0 | W43: 0 | Y43: 0
B44: 16 | C44: 0 | D44: 0 | E44: 0 | F44: 0 | G44: 0 | H44: 0 | I44: 0 | J44: 0 | K44: 0 | L44: 0 | M44: 0 | N44: 0 | Q44: 16 | R44: 0 | S44: 0 | T44: 0 | U44: 0 | V44: 0 | W44: 0 | Y44: 0
B45: 17 | C45: 0 | D45: 0 | E45: 0 | F45: 0 | G45: 0 | H45: 0 | I45: 0 | J45: 0 | K45: 0 | L45: 0 | M45: 0 | N45: 0 | Q45: 17 | R45: 0 | S45: 0 | T45: 0 | U45: 0 | V45: 0 | W45: 0 | Y45: 0
B46: 18 | C46: 0 | D46: 0 | E46: 0 | F46: 0 | G46: 0 | H46: 0 | I46: 0 | J46: 0 | K46: 0 | L46: 0 | M46: 0 | N46: 0 | Q46: 18 | R46: 0 | S46: 0 | T46: 0 | U46: 0 | V46: 0 | W46: 0 | Y46: 0
B48: Total | N48: =SUM(N26:N46) -> 0 | Q48: Total | R48: =SUM(R26:R46) -> 0 | S48: 0 | T48: 0 | U48: 0 | V48: 0 | W48: 0 | Y48: =SUM(Y26:Y46) -> 0
B51: Modal Diversion Costs - Containers (TEUs)
C53: TRUCKLOADS PER YEAR | E53: TRAINLOADS PER YEAR | G53: TRUCK COST | I53: RAIL COST | K53: MODAL DIVERSION BENEFIT
C54: (shipments/yr) | E54: (shipments/yr) | G54: ($/truck) | I54: ($/train) | K54: ($/yr)
B55: Year | M55: Constant | N55: Present
C56: No Build | D56: Build | E56: No Build | F56: Build | G56: No Build | H56: Build | I56: No Build | J56: Build | K56: Truck | L56: Rail | M56: Dollars | N56: Value
B57: =YearStart -> 0 | C57: =IF(TEUPerTruckNB<>0, TEUTruckNB1/TEUPerTruckNB, 0) -> 0 | D57: =IF(TEUPerTruckB<>0, TEUTruckB1/TEUPerTruckB, 0) -> 0 | E57: =IF((TEUPerRailcarNB*TEURailcarPerTrainNB)<>0, TEURailNB1/(TEUPerRailcarNB*TEURailcarPerTrainNB), 0) -> 0 | F57: =IF((TEUPerRailcarB*TEURailcarPerTrainB)<>0, TEURailB1/(TEUPerRailcarB*TEURailcarPerTrainB), 0) -> 0 | G57: =SHCostTEUTNB1 -> 0 | H57: =SHCostTEUTB1 -> 0 | I57: =SHCostTEURNB1*TEURailcarPerTrainNB -> 0 | J57: =SHCostTEURB1*TEURailcarPerTrainB -> 0 | K57: =G57*C57-H57*D57 -> 0 | L57: =E57*I57-F57*J57 -> 0 | M57: =SUM($K57:$L57) -> 0 | N57: =$M57/(1+DiscRate)^($B57-CurrentYear) -> 0
B58: =YearStart+20-1 -> 19 | C58: =IF(TEUPerTruckNB<>0, TEUTruckNB20/TEUPerTruckNB, 0) -> 0 | D58: =IF(TEUPerTruckB<>0, TEUTruckB20/TEUPerTruckB, 0) -> 0 | E58: =IF((TEUPerRailcarNB*TEURailcarPerTrainNB)<>0, TEURailNB20/(TEUPerRailcarNB*TEURailcarPerTrainNB), 0) -> 0 | F58: =IF((TEUPerRailcarB*TEURailcarPerTrainB)<>0, TEURailB20/(TEUPerRailcarB*TEURailcarPerTrainB), 0) -> 0 | G58: =SHCostTEUTNB20 -> 0 | H58: =SHCostTEUTB20 -> 0 | I58: =SHCostTEURNB20*TEURailcarPerTrainNB -> 0 | J58: =SHCostTEURB20*TEURailcarPerTrainB -> 0 | K58: =C58*G58-D58*H58 -> 0 | L58: =E58*I58-F58*J58 -> 0 | M58: =SUM($K58:$L58) -> 0 | N58: =$M58/(1+DiscRate)^($B58-CurrentYear) -> 0
B60: =B57+1 -> 1 | C60: =IF(AND(TEUNB20<>0, TEUPerTruckNB<>0), IF(C$58<C$57, MAX(C$58,C$57+((TEUYrCurr*(1+TEUGrowthNB)^(YearStart+20-1-CurrentYear)*TEUTruckNB20/TEUNB20)/(TEUPerTruckNB)-C$57)/(20-1)*($B60-YearStart)), MIN(C$58,C$57+((TEUYrCurr*(1+TEUGrowthNB)^(YearStart+20-1-CurrentYear)*TEUTruckNB20/TEUNB20)/(TEUPerTruckNB)-C$57)/(20-1)*($B60-YearStart))), 0) -> 0 | D60: =IF(AND(TEUB20<>0, TEUPerTruckB<>0), IF(D$58<D$57, MAX(D$58,D$57+((TEUYrCurr*(1+TEUGrowthB)^(YearStart+20-1-CurrentYear)*TEUTruckB20/TEUB20)/(TEUPerTruckB)-D$57)/(20-1)*($B60-YearStart)), MIN(D$58,D$57+((TEUYrCurr*(1+TEUGrowthB)^(YearStart+20-1-CurrentYear)*TEUTruckB20/TEUB20)/(TEUPerTruckB)-D$57)/(20-1)*($B60-YearStart))), 0) -> 0 | E60: =IF(AND(TEUNB20<>0, (TEUPerRailcarNB*TEURailcarPerTrainNB)<>0), IF(E$58<E$57,MAX(E$58,E$57+((TEUYrCurr*(1+TEUGrowthNB)^(YearStart+20-1-CurrentYear)*TEURailNB20/TEUNB20)/(TEUPerRailcarNB*TEURailcarPerTrainNB)-E$57)/(20-1)*($B60-YearStart)), MIN(E$58,E$57+((TEUYrCurr*(1+TEUGrowthNB)^(YearStart+20-1-CurrentYear)*TEURailNB20/TEUNB20)/(TEUPerRailcarNB*TEURailcarPerTrainNB)-E$57)/(20-1)*($B60-YearStart))), 0) -> 0 | F60: =IF(AND(TEUB20<>0, (TEUPerRailcarB*TEURailcarPerTrainB)<>0), IF(F$58<F$57,MAX(F$58,F$57+((TEUYrCurr*(1+TEUGrowthB)^(YearStart+20-1-CurrentYear)*TEURailB20/TEUB20)/(TEUPerRailcarB*TEURailcarPerTrainB)-F$57)/(20-1)*($B60-YearStart)), MIN(F$58,F$57+((TEUYrCurr*(1+TEUGrowthB)^(YearStart+20-1-CurrentYear)*TEURailB20/TEUB20)/(TEUPerRailcarB*TEURailcarPerTrainB)-F$57)/(20-1)*($B60-YearStart))), 0) -> 0 | G60: =G$57*(1+SHCostGrowthTNB)^($B60-YearStart) -> 0 | H60: =H$57*(1+SHCostGrowthTB)^($B60-YearStart) -> 0 | I60: =I$57*(1+SHCostGrowthRNB)^($B60-YearStart) -> 0 | J60: =J$57*(1+SHCostGrowthRB)^($B60-YearStart) -> 0 | K60: =G60*C60-H60*D60 -> 0 | L60: =E60*I60-F60*J60 -> 0 | M60: =SUM($K60:$L60) -> 0 | N60: =$M60/(1+DiscRate)^($B60-CurrentYear) -> 0
B61: =B60+1 -> 2 | C61: 0 | D61: 0 | E61: 0 | F61: 0 | G61: 0 | H61: 0 | I61: 0 | J61: 0 | K61: 0 | L61: 0 | M61: 0 | N61: 0
B62: =B61+1 -> 3 | C62: 0 | D62: 0 | E62: 0 | F62: 0 | G62: 0 | H62: 0 | I62: 0 | J62: 0 | K62: 0 | L62: 0 | M62: 0 | N62: 0
B63: 4 | C63: 0 | D63: 0 | E63: 0 | F63: 0 | G63: 0 | H63: 0 | I63: 0 | J63: 0 | K63: 0 | L63: 0 | M63: 0 | N63: 0
B64: 5 | C64: 0 | D64: 0 | E64: 0 | F64: 0 | G64: 0 | H64: 0 | I64: 0 | J64: 0 | K64: 0 | L64: 0 | M64: 0 | N64: 0
B65: 6 | C65: 0 | D65: 0 | E65: 0 | F65: 0 | G65: 0 | H65: 0 | I65: 0 | J65: 0 | K65: 0 | L65: 0 | M65: 0 | N65: 0
B66: 7 | C66: 0 | D66: 0 | E66: 0 | F66: 0 | G66: 0 | H66: 0 | I66: 0 | J66: 0 | K66: 0 | L66: 0 | M66: 0 | N66: 0
B67: 8 | C67: 0 | D67: 0 | E67: 0 | F67: =IF(AND(TEUB20<>0, (TEUPerRailcarB*TEURailcarPerTrainB)<>0), IF(F$58<F$57,MAX(F$58,F$57+((TEUYrCurr*(1+TEUGrowthB)^(YearStart+20-1-CurrentYear)*TEURailB20/TEUB20)/(TEUPerRailcarB*TEURailcarPerTrainB)-F$57)/(20-1)*($B67-YearStart)), MIN(F$58,F$57+((TEUYrCurr*(1+TEUGrowthB)^(YearStart+20-1-CurrentYear)*TEURailB20/TEUB20)/(TEUPerRailcarB*TEURailcarPerTrainB)-F$57)/(20-1)*($B67-YearStart))), 0) -> 0 | G67: 0 | H67: 0 | I67: 0 | J67: 0 | K67: 0 | L67: 0 | M67: 0 | N67: 0
B68: 9 | C68: 0 | D68: 0 | E68: 0 | F68: 0 | G68: 0 | H68: 0 | I68: 0 | J68: 0 | K68: 0 | L68: 0 | M68: 0 | N68: 0
B69: 10 | C69: 0 | D69: 0 | E69: 0 | F69: 0 | G69: 0 | H69: 0 | I69: 0 | J69: 0 | K69: 0 | L69: 0 | M69: 0 | N69: 0
B70: 11 | C70: 0 | D70: 0 | E70: 0 | F70: 0 | G70: 0 | H70: 0 | I70: 0 | J70: 0 | K70: 0 | L70: 0 | M70: 0 | N70: 0
B71: 12 | C71: 0 | D71: 0 | E71: 0 | F71: 0 | G71: 0 | H71: 0 | I71: 0 | J71: 0 | K71: 0 | L71: 0 | M71: 0 | N71: 0
B72: 13 | C72: 0 | D72: 0 | E72: 0 | F72: 0 | G72: 0 | H72: 0 | I72: 0 | J72: 0 | K72: 0 | L72: 0 | M72: 0 | N72: 0
B73: 14 | C73: 0 | D73: 0 | E73: 0 | F73: 0 | G73: 0 | H73: 0 | I73: 0 | J73: 0 | K73: 0 | L73: 0 | M73: 0 | N73: 0
B74: 15 | C74: 0 | D74: 0 | E74: 0 | F74: 0 | G74: 0 | H74: 0 | I74: 0 | J74: 0 | K74: 0 | L74: 0 | M74: 0 | N74: 0
B75: 16 | C75: 0 | D75: 0 | E75: 0 | F75: 0 | G75: 0 | H75: 0 | I75: 0 | J75: 0 | K75: 0 | L75: 0 | M75: 0 | N75: 0
B76: 17 | C76: 0 | D76: 0 | E76: 0 | F76: 0 | G76: 0 | H76: 0 | I76: 0 | J76: 0 | K76: 0 | L76: 0 | M76: 0 | N76: 0
B77: 18 | C77: 0 | D77: 0 | E77: 0 | F77: 0 | G77: 0 | H77: 0 | I77: 0 | J77: 0 | K77: 0 | L77: 0 | M77: 0 | N77: 0
B79: Total | N79: =SUM(N57:N77) -> 0
B82: Transload Costs
C84: BULK/BREAKBULK | E84: CONTAINERS | G84: BULK/BREAKBULK COST | I84: CONTAINER COST | K84: TRANSLOAD BENEFIT
C85: (short tons/yr) | E85: (TEUs/yr) | G85: ($/ton) | I85: ($/TEU) | K85: ($/yr)
B86: Year | M86: Constant | N86: Present
C87: No Build | D87: Build | E87: No Build | F87: Build | G87: No Build | H87: Build | I87: No Build | J87: Build | K87: Bulk/Breakbulk | L87: Containers | M87: Dollars | N87: Value
B88: =YearStart -> 0 | C88: =TLTonTruck1*TonsTruckNB1+TLTonRail1*TonsRailNB1 -> 0 | D88: =TLTonTruck1*TonsTruckB1+TLTonRail1*TonsRailB1 -> 0 | E88: =TLTEUTruck1*TEUTruckNB1+TLTEURail1*TEURailNB1 -> 0 | F88: =TLTEUTruck1*TEUTruckB1+TLTEURail1*TEURailB1 -> 0 | G88: =TLCostTonNB1 -> 0 | H88: =TLCostTonB1 -> 0 | I88: =TLCostTEUNB1 -> 0 | J88: =TLCostTEUB1 -> 0 | K88: =G88*C88-H88*D88 -> 0 | L88: =I88*E88-J88*F88 -> 0 | M88: =SUM($K88:$L88) -> 0 | N88: =$M88/(1+DiscRate)^($B88-CurrentYear) -> 0
B89: =YearStart+20-1 -> 19 | C89: =TLTonTruck20*TonsTruckNB20+TLTonRail20*TonsRailNB20 -> 0 | D89: =TLTonTruck20*TonsTruckB20+TLTonRail20*TonsRailB20 -> 0 | E89: =TLTEUTruck20*TEUTruckNB20+TLTEURail20*TEURailNB20 -> 0 | F89: =TLTEUTruck20*TEUTruckB20+TLTEURail20*TEURailB20 -> 0 | G89: =TLCostTonNB20 -> 0 | H89: =TLCostTonB20 -> 0 | I89: =TLCostTEUNB20 -> 0 | J89: =TLCostTEUB20 -> 0 | K89: =G89*C89-H89*D89 -> 0 | L89: =I89*E89-J89*F89 -> 0 | M89: =SUM($K89:$L89) -> 0 | N89: =$M89/(1+DiscRate)^($B89-CurrentYear) -> 0
B91: =B88+1 -> 1 | C91: =C29*(TLTonTruck1+(TLTonTruck20-TLTonTruck1)/(20-1)*($B91-YearStart))*TonsPerTruckNB+E29*(TLTonRail1+(TLTonRail20-TLTonRail1)/(20-1)*($B91-YearStart))*(TonsPerRailcarNB*RailcarPerTrainNB) -> 0 | D91: =D29*(TLTonTruck1+(TLTonTruck20-TLTonTruck1)/(20-1)*($B91-YearStart))*TonsPerTruckB+F29*(TLTonRail1+(TLTonRail20-TLTonRail1)/(20-1)*($B91-YearStart))*(TonsPerRailcarB*RailcarPerTrainB) -> 0 | E91: =C60*(TLTEUTruck1+(TLTEUTruck20-TLTEUTruck1)/(20-1)*($B91-YearStart))*TEUPerTruckNB+E60*(TLTEURail1+(TLTEURail20-TLTEURail1)/(20-1)*($B91-YearStart))*(TEUPerRailcarNB*TEURailcarPerTrainNB) -> 0 | F91: =D60*(TLTEUTruck1+(TLTEUTruck20-TLTEUTruck1)/(20-1)*($B91-YearStart))*TEUPerTruckB+F60*(TLTEURail1+(TLTEURail20-TLTEURail1)/(20-1)*($B91-YearStart))*(TEUPerRailcarB*TEURailcarPerTrainB) -> 0 | G91: =G$88*(1+TLCostGrowthTonNB)^($B91-YearStart) -> 0 | H91: =H$88*(1+TLCostGrowthTonB)^($B91-YearStart) -> 0 | I91: =I$88*(1+TLCostGrowthTEUNB)^($B91-YearStart) -> 0 | J91: =J$88*(1+TLCostGrowthTEUB)^($B91-YearStart) -> 0 | K91: =G91*C91-H91*D91 -> 0 | L91: =I91*E91-J91*F91 -> 0 | M91: =SUM($K91:$L91) -> 0 | N91: =$M91/(1+DiscRate)^($B91-CurrentYear) -> 0
B92: =B91+1 -> 2 | C92: 0 | D92: 0 | E92: 0 | F92: 0 | G92: 0 | H92: 0 | I92: 0 | J92: 0 | K92: 0 | L92: 0 | M92: 0 | N92: 0
B93: =B92+1 -> 3 | C93: 0 | D93: 0 | E93: 0 | F93: 0 | G93: 0 | H93: 0 | I93: 0 | J93: 0 | K93: 0 | L93: 0 | M93: 0 | N93: 0
B94: 4 | C94: 0 | D94: 0 | E94: 0 | F94: 0 | G94: 0 | H94: 0 | I94: 0 | J94: 0 | K94: 0 | L94: 0 | M94: 0 | N94: 0
B95: 5 | C95: 0 | D95: 0 | E95: 0 | F95: 0 | G95: 0 | H95: 0 | I95: 0 | J95: 0 | K95: 0 | L95: 0 | M95: 0 | N95: 0
B96: 6 | C96: 0 | D96: 0 | E96: 0 | F96: 0 | G96: 0 | H96: 0 | I96: 0 | J96: 0 | K96: 0 | L96: 0 | M96: 0 | N96: 0
B97: 7 | C97: 0 | D97: 0 | E97: 0 | F97: 0 | G97: 0 | H97: 0 | I97: 0 | J97: 0 | K97: 0 | L97: 0 | M97: 0 | N97: 0
B98: 8 | C98: 0 | D98: 0 | E98: 0 | F98: 0 | G98: 0 | H98: 0 | I98: 0 | J98: 0 | K98: 0 | L98: 0 | M98: 0 | N98: 0
B99: 9 | C99: 0 | D99: 0 | E99: 0 | F99: 0 | G99: 0 | H99: 0 | I99: 0 | J99: 0 | K99: 0 | L99: 0 | M99: 0 | N99: 0
B100: 10 | C100: 0 | D100: 0 | E100: 0 | F100: 0 | G100: 0 | H100: 0 | I100: 0 | J100: 0 | K100: 0 | L100: 0 | M100: 0 | N100: 0
B101: 11 | C101: 0 | D101: 0 | E101: 0 | F101: 0 | G101: 0 | H101: 0 | I101: 0 | J101: 0 | K101: 0 | L101: 0 | M101: 0 | N101: 0
B102: 12 | C102: 0 | D102: 0 | E102: 0 | F102: 0 | G102: 0 | H102: 0 | I102: 0 | J102: 0 | K102: 0 | L102: 0 | M102: 0 | N102: 0
B103: 13 | C103: 0 | D103: 0 | E103: 0 | F103: 0 | G103: 0 | H103: 0 | I103: 0 | J103: 0 | K103: 0 | L103: 0 | M103: 0 | N103: 0
B104: 14 | C104: 0 | D104: 0 | E104: 0 | F104: 0 | G104: 0 | H104: 0 | I104: 0 | J104: 0 | K104: 0 | L104: 0 | M104: 0 | N104: 0
B105: 15 | C105: 0 | D105: 0 | E105: 0 | F105: 0 | G105: 0 | H105: 0 | I105: 0 | J105: 0 | K105: 0 | L105: 0 | M105: 0 | N105: 0
B106: 16 | C106: 0 | D106: 0 | E106: 0 | F106: 0 | G106: 0 | H106: 0 | I106: 0 | J106: 0 | K106: 0 | L106: 0 | M106: 0 | N106: 0
B107: 17 | C107: 0 | D107: 0 | E107: 0 | F107: 0 | G107: 0 | H107: 0 | I107: 0 | J107: 0 | K107: 0 | L107: 0 | M107: 0 | N107: 0
B108: 18 | C108: 0 | D108: 0 | E108: 0 | F108: 0 | G108: 0 | H108: 0 | I108: 0 | J108: 0 | K108: 0 | L108: 0 | M108: 0 | N108: 0
B110: Total | N110: =SUM(N88:N108) -> 0
B113: Drayage Costs
C115: NUMBER OF TRUCKS | I115: DRAYAGE COST | K115: DRAYAGE BENEFIT
C116: (trucks/yr) | I116: ($/truck) | K116: ($/yr)
B117: Year | M117: Constant | N117: Present
C118: No Build | D118: Build | I118: No Build | J118: Build | M118: Dollars | N118: Value
B119: =YearStart -> 0 | C119: =DrayTruckNB1*AnnualFactor -> 0 | D119: =DrayTruckB1*AnnualFactor -> 0 | I119: =DrayCostNB1 -> 0 | J119: =DrayCostB1 -> 0 | L119: =I119*C119-J119*D119 -> 0 | M119: =SUM(L119) -> 0 | N119: =$M119/(1+DiscRate)^($B119-CurrentYear) -> 0
B120: =YearStart+20-1 -> 19 | C120: =DrayTruckNB20*AnnualFactor -> 0 | D120: =DrayTruckB20*AnnualFactor -> 0 | I120: =DrayCostNB20 -> 0 | J120: =DrayCostB20 -> 0 | L120: =I120*C120-J120*D120 -> 0 | M120: =SUM($L120) -> 0 | N120: =$M120/(1+DiscRate)^($B120-CurrentYear) -> 0
B122: =B119+1 -> 1 | C122: =IF(TonsPerTruckNB<>0, (C29*TonsPerTruckNB*(DraysTonTruck1+(DraysTonTruck20-DraysTonTruck1)/(20-1)*($B122-YearStart))+E29*(TonsPerRailcarNB*RailcarPerTrainNB)*(DraysTonRail1+(DraysTonRail20-DraysTonRail1)/(20-1)*($B122-YearStart)))/TonsPerTruckNB, 0)+IF(TEUPerTruckNB<>0, (C60*TEUPerTruckNB*(DraysTEUTruck1+(DraysTEUTruck20-DraysTEUTruck1)/(20-1)*($B122-YearStart))+E60*(TEUPerRailcarNB*TEURailcarPerTrainNB)*(DraysTEURail1+(DraysTEURail20-DraysTEURail1)/(20-1)*($B122-YearStart)))/TEUPerTruckNB, 0) -> 0 | D122: =IF(TonsPerTruckB<>0, (D29*TonsPerTruckB*(DraysTonTruck1+(DraysTonTruck20-DraysTonTruck1)/(20-1)*($B122-YearStart))+F29*(TonsPerRailcarB*RailcarPerTrainB)*(DraysTonRail1+(DraysTonRail20-DraysTonRail1)/(20-1)*($B122-YearStart)))/TonsPerTruckB, 0)+IF(TEUPerTruckB<>0, (D60*TEUPerTruckB*(DraysTEUTruck1+(DraysTEUTruck20-DraysTEUTruck1)/(20-1)*($B122-YearStart))+F60*(TEUPerRailcarB*TEURailcarPerTrainB)*(DraysTEURail1+(DraysTEURail20-DraysTEURail1)/(20-1)*($B122-YearStart)))/TEUPerTruckB, 0) -> 0 | I122: =I$119*(1+DrayCostGrowthNB)^($B122-YearStart) -> 0 | J122: =J$119*(1+DrayCostGrowthB)^($B122-YearStart) -> 0 | L122: =I122*C122-J122*D122 -> 0 | M122: =SUM($L122) -> 0 | N122: =$M122/(1+DiscRate)^($B122-CurrentYear) -> 0
B123: =B122+1 -> 2 | C123: 0 | D123: 0 | I123: 0 | J123: 0 | L123: 0 | M123: 0 | N123: 0
B124: =B123+1 -> 3 | C124: 0 | D124: 0 | I124: 0 | J124: 0 | L124: 0 | M124: 0 | N124: 0
B125: 4 | C125: 0 | D125: 0 | I125: 0 | J125: 0 | L125: 0 | M125: 0 | N125: 0
B126: 5 | C126: 0 | D126: 0 | I126: 0 | J126: 0 | L126: 0 | M126: 0 | N126: 0
B127: 6 | C127: 0 | D127: 0 | I127: 0 | J127: 0 | L127: 0 | M127: 0 | N127: 0
B128: 7 | C128: 0 | D128: 0 | I128: 0 | J128: 0 | L128: 0 | M128: 0 | N128: 0
B129: 8 | C129: 0 | D129: 0 | I129: 0 | J129: 0 | L129: 0 | M129: 0 | N129: 0
B130: 9 | C130: 0 | D130: 0 | I130: 0 | J130: 0 | L130: 0 | M130: 0 | N130: 0
B131: 10 | C131: 0 | D131: 0 | I131: 0 | J131: 0 | L131: 0 | M131: 0 | N131: 0
B132: 11 | C132: 0 | D132: 0 | I132: 0 | J132: 0 | L132: 0 | M132: 0 | N132: 0
B133: 12 | C133: 0 | D133: 0 | I133: 0 | J133: 0 | L133: 0 | M133: 0 | N133: 0
B134: 13 | C134: 0 | D134: 0 | I134: 0 | J134: 0 | L134: 0 | M134: 0 | N134: 0
B135: 14 | C135: 0 | D135: 0 | I135: 0 | J135: 0 | L135: 0 | M135: 0 | N135: 0
B136: 15 | C136: 0 | D136: 0 | I136: 0 | J136: 0 | L136: 0 | M136: 0 | N136: 0
B137: 16 | C137: 0 | D137: 0 | I137: 0 | J137: 0 | L137: 0 | M137: 0 | N137: 0
B138: 17 | C138: 0 | D138: 0 | I138: 0 | J138: 0 | L138: 0 | M138: 0 | N138: 0
B139: 18 | C139: 0 | D139: 0 | I139: 0 | J139: 0 | L139: 0 | M139: 0 | N139: 0
B141: Total | N141: =SUM(N119:N139) -> 0
B144: Terminal Efficiency Costs
C146: TRUCK DELAY TIME | E146: RAIL DWELL TIME | G146: TRUCK OPERATING COST | I146: RAIL OPERATING COST | K146: EFFICIENCY BENEFITS
C147: (hrs/yr) | E147: (hrs/yr) | G147: ($/hr) | I147: ($/hr) | K147: ($/yr)
B148: Year | M148: Constant | N148: Present
C149: No Build | D149: Build | E149: No Build | F149: Build | G149: No Build | H149: Build | I149: No Build | J149: Build | K149: Truck | L149: Rail | M149: Dollars | N149: Value
B150: =YearStart -> 0 | C150: =DwellTNB1 -> 0 | D150: =DwellTB1 -> 0 | E150: =DwellRNB1 -> 0 | F150: =DwellRB1 -> 0 | G150: =OpCostTNB1 -> 0 | H150: =OpCostTB1 -> 0 | I150: =OpCostRNB1 -> 0 | J150: =OpCostRB1 -> 0 | K150: =C150*G150-D150*H150 -> 0 | L150: =E150*I150-F150*J150 -> 0 | M150: =SUM($K150:$L150) -> 0 | N150: =$M150/(1+DiscRate)^($B150-CurrentYear) -> 0
B151: =YearStart+20-1 -> 19 | C151: =DwellTNB20 -> 0 | D151: =DwellTB20 -> 0 | E151: =DwellRNB20 -> 0 | F151: =DwellRB20 -> 0 | G151: =OpCostTNB20 -> 0 | H151: =OpCostTB20 -> 0 | I151: =OpCostRNB20 -> 0 | J151: =OpCostRB20 -> 0 | K151: =C151*G151-D151*H151 -> 0 | L151: =E151*I151-F151*J151 -> 0 | M151: =SUM($K151:$L151) -> 0 | N151: =$M151/(1+DiscRate)^($B151-CurrentYear) -> 0
B153: =B150+1 -> 1 | C153: =($C60*(TLTEUTruck1+(TLTEUTruck20-TLTEUTruck1)/(20-1)*($B153-YearStart))+$C29*(TLTonTruck1+(TLTonTruck20-TLTonTruck1)/(20-1)*($B153-YearStart)))*IdleTruckNB*(1+IdleGrowthTNB)^($B153-YearStart)/60 -> 0 | D153: =($D60*(TLTEUTruck1+(TLTEUTruck20-TLTEUTruck1)/(20-1)*($B153-YearStart))+$D29*(TLTonTruck1+(TLTonTruck20-TLTonTruck1)/(20-1)*($B153-YearStart)))*IdleTruckB*(1+IdleGrowthTB)^($B153-YearStart)/60 -> 0 | E153: =($E29*(TLTonRail1+(TLTonRail20-TLTonRail1)/(20-1)*($B153-YearStart))+$E60*(TLTEURail1+(TLTEURail20-TLTEURail1)/(20-1)*($B153-YearStart)))*IdleRailNB*(1+IdleGrowthRNB)^($B153-YearStart)/60 -> 0 | F153: =($F29*(TLTonRail1+(TLTonRail20-TLTonRail1)/(20-1)*($B153-YearStart))+$F60*(TLTEURail1+(TLTEURail20-TLTEURail1)/(20-1)*($B153-YearStart)))*IdleRailB*(1+IdleGrowthRB)^($B153-YearStart)/60 -> 0 | G153: =G$150*(1+OpCostGrowthTNB)^($B153-YearStart) -> 0 | H153: =H$150*(1+OpCostGrowthTB)^($B153-YearStart) -> 0 | I153: =I$150*(1+OpCostGrowthRNB)^($B153-YearStart) -> 0 | J153: =J$150*(1+OpCostGrowthRB)^($B153-YearStart) -> 0 | K153: =C153*G153-D153*H153 -> 0 | L153: =E153*I153-F153*J153 -> 0 | M153: =SUM($K153:$L153) -> 0 | N153: =$M153/(1+DiscRate)^($B153-CurrentYear) -> 0
B154: =B153+1 -> 2 | C154: 0 | D154: 0 | E154: 0 | F154: 0 | G154: 0 | H154: 0 | I154: 0 | J154: 0 | K154: 0 | L154: 0 | M154: 0 | N154: 0
B155: =B154+1 -> 3 | C155: 0 | D155: 0 | E155: 0 | F155: 0 | G155: 0 | H155: 0 | I155: 0 | J155: 0 | K155: 0 | L155: 0 | M155: 0 | N155: 0
B156: 4 | C156: 0 | D156: 0 | E156: 0 | F156: 0 | G156: 0 | H156: 0 | I156: 0 | J156: 0 | K156: 0 | L156: 0 | M156: 0 | N156: 0
B157: 5 | C157: 0 | D157: 0 | E157: 0 | F157: 0 | G157: 0 | H157: 0 | I157: 0 | J157: 0 | K157: 0 | L157: 0 | M157: 0 | N157: 0
B158: 6 | C158: 0 | D158: 0 | E158: 0 | F158: 0 | G158: 0 | H158: 0 | I158: 0 | J158: 0 | K158: 0 | L158: 0 | M158: 0 | N158: 0
B159: 7 | C159: 0 | D159: 0 | E159: 0 | F159: 0 | G159: 0 | H159: 0 | I159: 0 | J159: 0 | K159: 0 | L159: 0 | M159: 0 | N159: 0
B160: 8 | C160: 0 | D160: 0 | E160: 0 | F160: 0 | G160: 0 | H160: 0 | I160: 0 | J160: 0 | K160: 0 | L160: 0 | M160: 0 | N160: 0
B161: 9 | C161: 0 | D161: 0 | E161: 0 | F161: 0 | G161: 0 | H161: 0 | I161: 0 | J161: 0 | K161: 0 | L161: 0 | M161: 0 | N161: 0
B162: 10 | C162: 0 | D162: 0 | E162: 0 | F162: 0 | G162: 0 | H162: 0 | I162: 0 | J162: 0 | K162: 0 | L162: 0 | M162: 0 | N162: 0
B163: 11 | C163: 0 | D163: 0 | E163: 0 | F163: 0 | G163: 0 | H163: 0 | I163: 0 | J163: 0 | K163: 0 | L163: 0 | M163: 0 | N163: 0
B164: 12 | C164: 0 | D164: 0 | E164: 0 | F164: 0 | G164: 0 | H164: 0 | I164: 0 | J164: 0 | K164: 0 | L164: 0 | M164: 0 | N164: 0
B165: 13 | C165: 0 | D165: 0 | E165: 0 | F165: 0 | G165: 0 | H165: 0 | I165: 0 | J165: 0 | K165: 0 | L165: 0 | M165: 0 | N165: 0
B166: 14 | C166: 0 | D166: 0 | E166: 0 | F166: 0 | G166: 0 | H166: 0 | I166: 0 | J166: 0 | K166: 0 | L166: 0 | M166: 0 | N166: 0
B167: 15 | C167: 0 | D167: 0 | E167: 0 | F167: 0 | G167: 0 | H167: 0 | I167: 0 | J167: 0 | K167: 0 | L167: 0 | M167: 0 | N167: 0
B168: 16 | C168: 0 | D168: 0 | E168: 0 | F168: 0 | G168: 0 | H168: 0 | I168: 0 | J168: 0 | K168: 0 | L168: 0 | M168: 0 | N168: 0
B169: 17 | C169: 0 | D169: 0 | E169: 0 | F169: 0 | G169: 0 | H169: 0 | I169: 0 | J169: 0 | K169: 0 | L169: 0 | M169: 0 | N169: 0
B170: 18 | C170: 0 | D170: 0 | E170: 0 | F170: 0 | G170: 0 | H170: 0 | I170: 0 | J170: 0 | K170: 0 | L170: 0 | M170: 0 | N170: 0
B172: Total | N172: =SUM(N150:N170) -> 0
K175: Present Value = Future Value (in Constant Dollars)
L176: ( 1 + Real Discount Rate) ^ Year

Sheet Accident Costs
B1: Accident Reduction Benefits
B3: This sheet calculates accident benefits for modal diversion and drayage.
B5: Formulas:
B7: Vehicle Miles Traveled = Dist. Traveled x No. of Vehicles | H7: Rail Acc. Cost = Train-Miles x Acc. Cost/Mile
B8: (truck / train)-miles / yr miles / trip (trucks / trains) / yr | H8: $ / yr train-miles / yr $ / mile
B10: Truck Acc. Cost = (Truck-Miles x Rate x Acc. Cost) by Acc. Type | H10: Rail Acc. Cost/Mile from PARAMETERS
B11: $ / yr truck-miles / yr acc / mile $ / acc
B15: A | C15: FREIGHT BENEFITS | N15: B | O15: SUMMARY OF ACCIDENT REDUCTION BENEFITS
B18: Modal Diversion Costs - Bulk/Breakbulk (Short Tons)
C20: TRUCK VMT | E20: RAIL VMT | G20: TRUCK CRASH COSTS | I20: RAIL ACCIDENT COSTS | O20: FREIGHT | R20: Present
C21: (veh-miles/yr) | E21: (veh-miles/yr) | G21: ($/yr) | I21: ($/yr) | R21: Value of
B22: Year | K22: Constant | L22: Present | N22: Year | R22: Accident | T22: Constant
C23: No Build | D23: Build | E23: No Build | F23: Build | G23: No Build | H23: Build | I23: No Build | J23: Build | K23: Dollars | L23: Value | O23: Bulk/Breakbulk | P23: Containers | Q23: Drayage | R23: =IF(Accidents<>"N","Benefits","* Benefits") -> Benefits | T23: Dollars
B24: =YearStart -> 0 | C24: =VMTEmTonTNB1+VMTLTonTNB1 -> 0 | D24: =VMTEmTonTB1+VMTLTonTB1 -> 0 | E24: =VMTEmTonRNB1+VMTLTonRNB1 -> 0 | F24: =VMTEmTonRB1+VMTLTonRB1 -> 0 | G24: =C24/1000000*(HwyFatCost*FatRateTruckNB+HwyInjCost*InjRateTruckNB+HwyPDOCost*PDORateTruckNB) -> 0 | H24: =D24/1000000*(HwyFatCost*FatRateTruckB+HwyInjCost*InjRateTruckB+HwyPDOCost*PDORateTruckB) -> 0 | I24: =E24/1000000*FreightRailAccCost -> 0 | J24: =F24/1000000*FreightRailAccCost -> 0 | K24: =G24-H24+I24-J24 -> 0 | L24: =$K24/(1+DiscRate)^($B24-CurrentYear) -> 0 | N24: =YearStart -> 0 | O24: =L24 -> 0 | P24: =L55 -> 0 | Q24: =J86 -> 0 | R24: =IF(Accidents<>"N",SUM(O24:Q24),0) -> 0 | T24: =R24*(1+DiscRate)^(N24-CurrentYear) -> 0
B25: =B24+20-1 -> 19 | C25: =VMTEmTonTNB20+VMTLTonTNB20 -> 0 | D25: =VMTEmTonTB20+VMTLTonTB20 -> 0 | E25: =VMTEmTonRNB20+VMTLTonRNB20 -> 0 | F25: =VMTEmTonRB20+VMTLTonRB20 -> 0 | G25: =C25/1000000*(HwyFatCost*FatRateTruckNB+HwyInjCost*InjRateTruckNB+HwyPDOCost*PDORateTruckNB) -> 0 | H25: =D25/1000000*(HwyFatCost*FatRateTruckB+HwyInjCost*InjRateTruckB+HwyPDOCost*PDORateTruckB) -> 0 | I25: =E25/1000000*FreightRailAccCost -> 0 | J25: =F25/1000000*FreightRailAccCost -> 0 | K25: =G25-H25+I25-J25 -> 0 | L25: =$K25/(1+DiscRate)^($B25-CurrentYear) -> 0 | N25: =YearStart+20-1 -> 19 | O25: =L25 -> 0 | P25: =L56 -> 0 | Q25: =J87 -> 0 | R25: =IF(Accidents<>"N",SUM(O25:Q25),0) -> 0 | T25: =R25*(1+DiscRate)^(N25-CurrentYear) -> 0
B27: =B24+1 -> 1 | C27: =IF(AND(TonsNB20<>0, TonsPerTruckNB<>0), IF(C$25<C$24, MAX(TonsTruckNB20/TonsPerTruckNB,TonsTruckNB1/TonsPerTruckNB+((TonsYrCurr*(1+TonGrowthNB)^(YearStart+20-1-CurrentYear)*TonsTruckNB20/TonsNB20)/(TonsPerTruckNB)-TonsTruckNB1/TonsPerTruckNB)/(20-1)*($B27-YearStart)), MIN(TonsTruckNB20/TonsPerTruckNB,TonsTruckNB1/TonsPerTruckNB+((TonsYrCurr*(1+TonGrowthNB)^(YearStart+20-1-CurrentYear)*TonsTruckNB20/TonsNB20)/(TonsPerTruckNB)-TonsTruckNB1/TonsPerTruckNB)/(20-1)*($B27-YearStart))), 0)*DistTNB*(1+TruckAdjFactor) -> 0 | D27: =IF(AND(TonsB20<>0, TonsPerTruckB<>0), IF(D$25<D$24, MAX(TonsTruckB20/TonsPerTruckB,TonsTruckB1/TonsPerTruckB+((TonsYrCurr*(1+TonGrowthB)^(YearStart+20-1-CurrentYear)*TonsTruckB20/TonsB20)/(TonsPerTruckB)-TonsTruckB1/TonsPerTruckB)/(20-1)*($B27-YearStart)), MIN(TonsTruckB20/TonsPerTruckB,TonsTruckB1/TonsPerTruckB+((TonsYrCurr*(1+TonGrowthB)^(YearStart+20-1-CurrentYear)*TonsTruckB20/TonsB20)/(TonsPerTruckB)-TonsTruckB1/TonsPerTruckB)/(20-1)*($B27-YearStart))), 0)*DistTB*(1+TruckAdjFactor) -> 0 | E27: =IF(AND(TonsNB20<>0, (TonsPerRailcarNB*RailcarPerTrainNB)<>0), IF(E$24>E$25, MAX(TonsRailNB20/(TonsPerRailcarNB*RailcarPerTrainNB),TonsRailNB1/(TonsPerRailcarNB*RailcarPerTrainNB)+((TonsYrCurr*(1+TonGrowthNB)^(YearStart+20-1-CurrentYear)*TonsRailNB20/TonsNB20)/(TonsPerRailcarNB*RailcarPerTrainNB)-TonsRailNB1/(TonsPerRailcarNB*RailcarPerTrainNB))/(20-1)*($B27-YearStart)), MIN(TonsRailNB20/(TonsPerRailcarNB*RailcarPerTrainNB),TonsRailNB1/(TonsPerRailcarNB*RailcarPerTrainNB)+((TonsYrCurr*(1+TonGrowthNB)^(YearStart+20-1-CurrentYear)*TonsRailNB20/TonsNB20)/(TonsPerRailcarNB*RailcarPerTrainNB)-TonsRailNB1/(TonsPerRailcarNB*RailcarPerTrainNB))/(20-1)*($B27-YearStart))), 0)*DistRNB*(1+RailAdjFactor) -> 0 | F27: =IF(AND(TonsB20<>0, (TonsPerRailcarB*RailcarPerTrainB)<>0), IF(F$24>F$25, MAX(TonsRailB20/(TonsPerRailcarB*RailcarPerTrainB),TonsRailB1/(TonsPerRailcarB*RailcarPerTrainB)+((TonsYrCurr*(1+TonGrowthB)^(YearStart+20-1-CurrentYear)*TonsRailB20/TonsB20)/(TonsPerRailcarB*RailcarPerTrainB)-TonsRailB1/(TonsPerRailcarB*RailcarPerTrainB))/(20-1)*($B27-YearStart)), MIN(TonsRailB20/(TonsPerRailcarB*RailcarPerTrainB),TonsRailB1/(TonsPerRailcarB*RailcarPerTrainB)+((TonsYrCurr*(1+TonGrowthB)^(YearStart+20-1-CurrentYear)*TonsRailB20/TonsB20)/(TonsPerRailcarB*RailcarPerTrainB)-TonsRailB1/(TonsPerRailcarB*RailcarPerTrainB))/(20-1)*($B27-YearStart))), 0)*DistRB*(1+RailAdjFactor) -> 0 | G27: =C27/1000000*(HwyFatCost*FatRateTruckNB+HwyInjCost*InjRateTruckNB+HwyPDOCost*PDORateTruckNB) -> 0 | H27: =D27/1000000*(HwyFatCost*FatRateTruckB+HwyInjCost*InjRateTruckB+HwyPDOCost*PDORateTruckB) -> 0 | I27: =E27/1000000*FreightRailAccCost -> 0 | J27: =F27/1000000*FreightRailAccCost -> 0 | K27: =G27-H27+I27-J27 -> 0 | L27: =$K27/(1+DiscRate)^($B27-CurrentYear) -> 0 | N27: =N24+1 -> 1 | O27: =L27 -> 0 | P27: =L58 -> 0 | Q27: =J89 -> 0 | R27: =IF(Accidents<>"N",SUM(O27:Q27),0) -> 0 | T27: =R27*(1+DiscRate)^(N27-CurrentYear) -> 0
B28: =B27+1 -> 2 | C28: 0 | D28: 0 | E28: 0 | F28: 0 | G28: 0 | H28: 0 | I28: 0 | J28: 0 | K28: 0 | L28: 0 | N28: =N27+1 -> 2 | O28: 0 | P28: 0 | Q28: 0 | R28: 0 | T28: 0
B29: 3 | C29: 0 | D29: 0 | E29: 0 | F29: 0 | G29: 0 | H29: 0 | I29: 0 | J29: 0 | K29: 0 | L29: 0 | N29: =N28+1 -> 3 | O29: 0 | P29: 0 | Q29: 0 | R29: 0 | T29: 0
B30: 4 | C30: 0 | D30: 0 | E30: 0 | F30: 0 | G30: 0 | H30: 0 | I30: 0 | J30: 0 | K30: 0 | L30: 0 | N30: 4 | O30: 0 | P30: 0 | Q30: 0 | R30: 0 | T30: 0
B31: 5 | C31: 0 | D31: 0 | E31: 0 | F31: 0 | G31: 0 | H31: 0 | I31: 0 | J31: 0 | K31: 0 | L31: 0 | N31: 5 | O31: 0 | P31: 0 | Q31: 0 | R31: 0 | T31: 0
B32: 6 | C32: 0 | D32: 0 | E32: 0 | F32: 0 | G32: 0 | H32: 0 | I32: 0 | J32: 0 | K32: 0 | L32: 0 | N32: 6 | O32: 0 | P32: 0 | Q32: 0 | R32: 0 | T32: 0
B33: 7 | C33: 0 | D33: 0 | E33: 0 | F33: 0 | G33: 0 | H33: 0 | I33: 0 | J33: 0 | K33: 0 | L33: 0 | N33: 7 | O33: 0 | P33: 0 | Q33: 0 | R33: 0 | T33: 0
B34: 8 | C34: 0 | D34: 0 | E34: 0 | F34: 0 | G34: 0 | H34: 0 | I34: 0 | J34: 0 | K34: 0 | L34: 0 | N34: 8 | O34: 0 | P34: 0 | Q34: 0 | R34: 0 | T34: 0
B35: 9 | C35: 0 | D35: 0 | E35: 0 | F35: 0 | G35: 0 | H35: 0 | I35: 0 | J35: 0 | K35: 0 | L35: 0 | N35: 9 | O35: 0 | P35: 0 | Q35: 0 | R35: 0 | T35: 0
B36: 10 | C36: 0 | D36: 0 | E36: 0 | F36: 0 | G36: 0 | H36: 0 | I36: 0 | J36: 0 | K36: 0 | L36: 0 | N36: 10 | O36: 0 | P36: 0 | Q36: 0 | R36: 0 | T36: 0
B37: 11 | C37: 0 | D37: 0 | E37: 0 | F37: 0 | G37: 0 | H37: 0 | I37: 0 | J37: 0 | K37: 0 | L37: 0 | N37: 11 | O37: 0 | P37: 0 | Q37: 0 | R37: 0 | T37: 0
B38: 12 | C38: 0 | D38: 0 | E38: 0 | F38: 0 | G38: 0 | H38: 0 | I38: 0 | J38: 0 | K38: 0 | L38: 0 | N38: 12 | O38: 0 | P38: 0 | Q38: 0 | R38: 0 | T38: 0
B39: 13 | C39: 0 | D39: 0 | E39: 0 | F39: 0 | G39: 0 | H39: 0 | I39: 0 | J39: 0 | K39: 0 | L39: 0 | N39: 13 | O39: 0 | P39: 0 | Q39: 0 | R39: 0 | T39: 0
B40: 14 | C40: 0 | D40: 0 | E40: 0 | F40: 0 | G40: 0 | H40: 0 | I40: 0 | J40: 0 | K40: 0 | L40: 0 | N40: 14 | O40: 0 | P40: 0 | Q40: 0 | R40: 0 | T40: 0
B41: 15 | C41: 0 | D41: 0 | E41: 0 | F41: 0 | G41: 0 | H41: 0 | I41: 0 | J41: 0 | K41: 0 | L41: 0 | N41: 15 | O41: 0 | P41: 0 | Q41: 0 | R41: 0 | T41: 0
B42: 16 | C42: 0 | D42: 0 | E42: 0 | F42: 0 | G42: 0 | H42: 0 | I42: 0 | J42: 0 | K42: 0 | L42: 0 | N42: 16 | O42: 0 | P42: 0 | Q42: 0 | R42: 0 | T42: 0
B43: 17 | C43: 0 | D43: 0 | E43: 0 | F43: 0 | G43: 0 | H43: 0 | I43: 0 | J43: 0 | K43: 0 | L43: 0 | N43: 17 | O43: 0 | P43: 0 | Q43: 0 | R43: 0 | T43: 0
B44: 18 | C44: 0 | D44: 0 | E44: 0 | F44: 0 | G44: 0 | H44: 0 | I44: 0 | J44: 0 | K44: 0 | L44: 0 | N44: 18 | O44: 0 | P44: 0 | Q44: 0 | R44: 0 | T44: 0
B46: Total | L46: =SUM(L24:L44) -> 0 | N46: Total | O46: =SUM(O24:O44) -> 0 | P46: =SUM(P24:P44) -> 0 | Q46: =SUM(Q24:Q44) -> 0 | R46: =SUM(R24:R44) -> 0 | T46: =SUM(T24:T44) -> 0
B49: Modal Diversion Costs - Containers (TEUs)
C51: TRUCK VMT | E51: RAIL VMT | G51: TRUCK COST | I51: RAIL COST
C52: (veh-miles/yr) | E52: (veh-miles/yr) | G52: ($/yr) | I52: ($/yr)
B53: Year | K53: Constant | L53: Present
C54: No Build | D54: Build | E54: No Build | F54: Build | G54: No Build | H54: Build | I54: No Build | J54: Build | K54: Dollars | L54: Value
B55: =YearStart -> 0 | C55: =VMTEmTEUTNB1+VMTLTEUTNB1 -> 0 | D55: =VMTEmTEUTB1+VMTLTEUTB1 -> 0 | E55: =VMTLTEURNB1+VMTEmTEURNB1 -> 0 | F55: =VMTLTEURB1+VMTEmTEURB1 -> 0 | G55: =C55/1000000*(HwyFatCost*FatRateTruckNB+HwyInjCost*InjRateTruckNB+HwyPDOCost*PDORateTruckNB) -> 0 | H55: =D55/1000000*(HwyFatCost*FatRateTruckB+HwyInjCost*InjRateTruckB+HwyPDOCost*PDORateTruckB) -> 0 | I55: =E55/1000000*FreightRailAccCost -> 0 | J55: =F55/1000000*FreightRailAccCost -> 0 | K55: =G55-H55+I55-J55 -> 0 | L55: =$K55/(1+DiscRate)^($B55-CurrentYear) -> 0
B56: =YearStart+20-1 -> 19 | C56: =VMTEmTEUTNB20+VMTLTEUTNB20 -> 0 | D56: =VMTEmTEUTB20+VMTLTEUTB20 -> 0 | E56: =VMTLTEURNB20+VMTEmTEURNB20 -> 0 | F56: =VMTLTEURB20+VMTEmTEURB20 -> 0 | G56: =C56/1000000*(HwyFatCost*FatRateTruckNB+HwyInjCost*InjRateTruckNB+HwyPDOCost*PDORateTruckNB) -> 0 | H56: =D56/1000000*(HwyFatCost*FatRateTruckB+HwyInjCost*InjRateTruckB+HwyPDOCost*PDORateTruckB) -> 0 | I56: =E56/1000000*FreightRailAccCost -> 0 | J56: =F56/1000000*FreightRailAccCost -> 0 | K56: =G56-H56+I56-J56 -> 0 | L56: =$K56/(1+DiscRate)^($B56-CurrentYear) -> 0
B58: =B55+1 -> 1 | C58: =IF(AND(TEUNB20<>0, TEUPerTruckNB<>0), IF(C$56<C$55, MAX(TEUTruckNB20/TEUPerTruckNB,TEUTruckNB1/TEUPerTruckNB+((TEUYrCurr*(1+TEUGrowthNB)^(YearStart+20-1-CurrentYear)*TEUTruckNB20/TEUNB20)/(TEUPerTruckNB)-TEUTruckNB1/TEUPerTruckNB)/(20-1)*($B58-YearStart)), MIN(TEUTruckNB20/TEUPerTruckNB,TEUTruckNB1/TEUPerTruckNB+((TEUYrCurr*(1+TEUGrowthNB)^(YearStart+20-1-CurrentYear)*TEUTruckNB20/TEUNB20)/(TEUPerTruckNB)-TEUTruckNB1/TEUPerTruckNB)/(20-1)*($B58-YearStart))), 0)*(1+TruckAdjFactorTEU)*TEUDistTNB -> 0 | D58: =IF(AND(TEUB20<>0, TEUPerTruckB<>0), IF(D$56<D$55, MAX(TEUTruckB20/TEUPerTruckB,TEUTruckB1/TEUPerTruckB+((TEUYrCurr*(1+TEUGrowthB)^(YearStart+20-1-CurrentYear)*TEUTruckB20/TEUB20)/(TEUPerTruckB)-TEUTruckB1/TEUPerTruckB)/(20-1)*($B58-YearStart)), MIN(TEUTruckB20/TEUPerTruckB,TEUTruckB1/TEUPerTruckB+((TEUYrCurr*(1+TEUGrowthB)^(YearStart+20-1-CurrentYear)*TEUTruckB20/TEUB20)/(TEUPerTruckB)-TEUTruckB1/TEUPerTruckB)/(20-1)*($B58-YearStart))), 0)*(1+TruckAdjFactorTEU)*TEUDistTB -> 0 | E58: =IF(AND(TEUNB20<>0, (TEUPerRailcarNB*TEURailcarPerTrainNB)<>0), IF(E$56<E$55,MAX(TEURailNB20/(TEUPerRailcarNB*TEURailcarPerTrainNB),TEURailNB1/(TEUPerRailcarNB*TEURailcarPerTrainNB)+((TEUYrCurr*(1+TEUGrowthNB)^(YearStart+20-1-CurrentYear)*TEURailNB20/TEUNB20)/(TEUPerRailcarNB*TEURailcarPerTrainNB)-TEURailNB1/(TEUPerRailcarNB*TEURailcarPerTrainNB))/(20-1)*($B58-YearStart)), MIN(TEURailNB20/(TEUPerRailcarNB*TEURailcarPerTrainNB),TEURailNB1/(TEUPerRailcarNB*TEURailcarPerTrainNB)+((TEUYrCurr*(1+TEUGrowthNB)^(YearStart+20-1-CurrentYear)*TEURailNB20/TEUNB20)/(TEUPerRailcarNB*TEURailcarPerTrainNB)-TEURailNB1/(TEUPerRailcarNB*TEURailcarPerTrainNB))/(20-1)*($B58-YearStart))), 0)*TEUDistRNB*(1+RailAdjFactorTEU) -> 0 | F58: =IF(AND(TEUB20<>0, (TEUPerRailcarB*TEURailcarPerTrainB)<>0), IF(F$56<F$55,MAX(TEURailB20/(TEUPerRailcarB*TEURailcarPerTrainB),TEURailB1/(TEUPerRailcarB*TEURailcarPerTrainB)+((TEUYrCurr*(1+TEUGrowthB)^(YearStart+20-1-CurrentYear)*TEURailB20/TEUB20)/(TEUPerRailcarB*TEURailcarPerTrainB)-TEURailB1/(TEUPerRailcarB*TEURailcarPerTrainB))/(20-1)*($B58-YearStart)), MIN(TEURailB20/(TEUPerRailcarB*TEURailcarPerTrainB),TEURailB1/(TEUPerRailcarB*TEURailcarPerTrainB)+((TEUYrCurr*(1+TEUGrowthB)^(YearStart+20-1-CurrentYear)*TEURailB20/TEUB20)/(TEUPerRailcarB*TEURailcarPerTrainB)-TEURailB1/(TEUPerRailcarB*TEURailcarPerTrainB))/(20-1)*($B58-YearStart))), 0)*TEUDistRB*(1+RailAdjFactorTEU) -> 0 | G58: =C58/1000000*(HwyFatCost*FatRateTruckNB+HwyInjCost*InjRateTruckNB+HwyPDOCost*PDORateTruckNB) -> 0 | H58: =D58/1000000*(HwyFatCost*FatRateTruckB+HwyInjCost*InjRateTruckB+HwyPDOCost*PDORateTruckB) -> 0 | I58: =E58/1000000*FreightRailAccCost -> 0 | J58: =F58/1000000*FreightRailAccCost -> 0 | K58: =G58-H58+I58-J58 -> 0 | L58: =$K58/(1+DiscRate)^($B58-CurrentYear) -> 0
B59: =B58+1 -> 2 | C59: 0 | D59: 0 | E59: 0 | F59: 0 | G59: 0 | H59: 0 | I59: 0 | J59: 0 | K59: 0 | L59: 0
B60: 3 | C60: 0 | D60: 0 | E60: 0 | F60: 0 | G60: 0 | H60: 0 | I60: 0 | J60: 0 | K60: 0 | L60: 0
B61: 4 | C61: 0 | D61: 0 | E61: 0 | F61: 0 | G61: 0 | H61: 0 | I61: 0 | J61: 0 | K61: 0 | L61: 0
B62: 5 | C62: 0 | D62: 0 | E62: 0 | F62: 0 | G62: 0 | H62: 0 | I62: 0 | J62: 0 | K62: 0 | L62: 0
B63: 6 | C63: 0 | D63: 0 | E63: 0 | F63: 0 | G63: 0 | H63: 0 | I63: 0 | J63: 0 | K63: 0 | L63: 0
B64: 7 | C64: 0 | D64: 0 | E64: 0 | F64: 0 | G64: 0 | H64: 0 | I64: 0 | J64: 0 | K64: 0 | L64: 0
B65: 8 | C65: 0 | D65: 0 | E65: 0 | F65: 0 | G65: 0 | H65: 0 | I65: 0 | J65: 0 | K65: 0 | L65: 0
B66: 9 | C66: 0 | D66: 0 | E66: 0 | F66: 0 | G66: 0 | H66: 0 | I66: 0 | J66: 0 | K66: 0 | L66: 0
B67: 10 | C67: 0 | D67: 0 | E67: 0 | F67: 0 | G67: 0 | H67: 0 | I67: 0 | J67: 0 | K67: 0 | L67: 0
B68: 11 | C68: 0 | D68: 0 | E68: 0 | F68: 0 | G68: 0 | H68: 0 | I68: 0 | J68: 0 | K68: 0 | L68: 0
B69: 12 | C69: 0 | D69: 0 | E69: 0 | F69: 0 | G69: 0 | H69: 0 | I69: 0 | J69: 0 | K69: 0 | L69: 0
B70: 13 | C70: 0 | D70: 0 | E70: 0 | F70: 0 | G70: 0 | H70: 0 | I70: 0 | J70: 0 | K70: 0 | L70: 0
B71: 14 | C71: 0 | D71: 0 | E71: 0 | F71: 0 | G71: 0 | H71: 0 | I71: 0 | J71: 0 | K71: 0 | L71: 0
B72: 15 | C72: 0 | D72: 0 | E72: 0 | F72: 0 | G72: 0 | H72: 0 | I72: 0 | J72: 0 | K72: 0 | L72: 0
B73: 16 | C73: 0 | D73: 0 | E73: 0 | F73: 0 | G73: 0 | H73: 0 | I73: 0 | J73: 0 | K73: 0 | L73: 0
B74: 17 | C74: 0 | D74: 0 | E74: 0 | F74: 0 | G74: 0 | H74: 0 | I74: 0 | J74: 0 | K74: 0 | L74: 0
B75: 18 | C75: 0 | D75: 0 | E75: 0 | F75: 0 | G75: 0 | H75: 0 | I75: 0 | J75: 0 | K75: 0 | L75: 0
B77: Total | L77: =SUM(L55:L75) -> 0
B80: Drayage
C82: BULK/BREAKBULK VMT | E82: CONTAINER VMT | G82: ACCIDENT COSTS
C83: (veh-miles/yr) | E83: (veh-miles/yr) | G83: ($/yr)
B84: Year | I84: Constant | J84: Present
C85: No Build | D85: Build | E85: No Build | F85: Build | G85: No Build | H85: Build | I85: Dollars | J85: Value
B86: =YearStart -> 0 | C86: =VMTDrayTonNB1*(1+DrayAdjFactor) -> 0 | D86: =VMTDrayTonB1*(1+DrayAdjFactor) -> 0 | E86: =VMTDrayTEUNB1*(1+DrayAdjFactor) -> 0 | F86: =VMTDrayTEUB1*(1+DrayAdjFactor) -> 0 | G86: =(C86+E86)/1000000*(HwyFatCost*FatRateTruckNB+HwyInjCost*InjRateTruckNB+HwyPDOCost*PDORateTruckNB) -> 0 | H86: =(D86+F86)/1000000*(HwyFatCost*FatRateTruckB+HwyInjCost*InjRateTruckB+HwyPDOCost*PDORateTruckB) -> 0 | I86: =G86-H86 -> 0 | J86: =$I86/(1+DiscRate)^($B86-CurrentYear) -> 0
B87: =YearStart+20-1 -> 19 | C87: =VMTDrayTonNB20*(1+DrayAdjFactor) -> 0 | D87: =VMTDrayTonB20*(1+DrayAdjFactor) -> 0 | E87: =VMTDrayTEUNB20*(1+DrayAdjFactor) -> 0 | F87: =VMTDrayTEUB20*(1+DrayAdjFactor) -> 0 | G87: =(C87+E87)/1000000*(HwyFatCost*FatRateTruckNB+HwyInjCost*InjRateTruckNB+HwyPDOCost*PDORateTruckNB) -> 0 | H87: =(D87+F87)/1000000*(HwyFatCost*FatRateTruckB+HwyInjCost*InjRateTruckB+HwyPDOCost*PDORateTruckB) -> 0 | I87: =G87-H87 -> 0 | J87: =$I87/(1+DiscRate)^($B87-CurrentYear) -> 0
B89: =B86+1 -> 1 | C89: =IF(TonsPerTruckNB*DrayDistTNB<>0, (IF(DistTNB<>0, ($C27/(DistTNB*(1+TruckAdjFactor))*(DraysTonTruck1+(DraysTonTruck20-DraysTonTruck1)/(20-1)*($B89-YearStart))*TonsPerTruckNB), 0)+IF(DistRNB<>0, $E27/(DistRNB*(1+RailAdjFactor))*(DraysTonRail1+(DraysTonRail20-DraysTonRail1)/(20-1)*($B89-YearStart))*(TonsPerRailcarNB*RailcarPerTrainNB), 0))/TonsPerTruckNB*DrayDistTNB*(1+DrayAdjFactor),0) -> 0 | D89: =IF(TonsPerTruckB*DrayDistTB<>0, (IF(DistTB<>0, ($D27/DistTB/(1+TruckAdjFactor)), 0)*(DraysTonTruck1+(DraysTonTruck20-DraysTonTruck1)/(20-1)*($B89-YearStart))*TonsPerTruckB+IF(DistRB<>0, $F27/DistRB/(1+RailAdjFactor), 0)*(DraysTonRail1+(DraysTonRail20-DraysTonRail1)/(20-1)*($B89-YearStart))*(TonsPerRailcarB*RailcarPerTrainB))/TonsPerTruckB*DrayDistTB*(1+DrayAdjFactor),0) -> 0 | E89: =IF(TEUPerTruckNB*DrayDistTNB<>0, (IF(TEUDistTNB<>0, $C58/(TEUDistTNB*(1+TruckAdjFactorTEU)), 0)*(DraysTEUTruck1+(DraysTEUTruck20-DraysTEUTruck1)/(20-1)*($B89-YearStart))*TEUPerTruckNB+IF(TEUDistRNB<>0, $E58/(TEUDistRNB*(1+RailAdjFactor)), 0)*(DraysTEURail1+(DraysTEURail20-DraysTEURail1)/(20-1)*($B89-YearStart))*(TEUPerRailcarNB*TEURailcarPerTrainNB))/TEUPerTruckNB*DrayDistTNB*(1+DrayAdjFactor),0) -> 0 | F89: =IF(TEUPerTruckB*DrayDistTB<>0, (IF(TEUDistTB<>0, ($D58/TEUDistTB)/(1+TruckAdjFactorTEU), 0)*(DraysTEUTruck1+(DraysTEUTruck20-DraysTEUTruck1)/(20-1)*($B89-YearStart))*TEUPerTruckB+IF(TEUDistRB<>0, ($F58/TEUDistRB)/(1+RailAdjFactor), 0)*(DraysTEURail1+(DraysTEURail20-DraysTEURail1)/(20-1)*($B89-YearStart))*(TEUPerRailcarB*TEURailcarPerTrainB))/TEUPerTruckB*DrayDistTB*(1+DrayAdjFactor),0) -> 0 | G89: =(C89+E89)/1000000*(HwyFatCost*FatRateTruckNB+HwyInjCost*InjRateTruckNB+HwyPDOCost*PDORateTruckNB) -> 0 | H89: =(D89+F89)/1000000*(HwyFatCost*FatRateTruckB+HwyInjCost*InjRateTruckB+HwyPDOCost*PDORateTruckB) -> 0 | I89: =G89-H89 -> 0 | J89: =$I89/(1+DiscRate)^($B89-CurrentYear) -> 0
B90: =B89+1 -> 2 | C90: 0 | D90: 0 | E90: 0 | F90: 0 | G90: 0 | H90: 0 | I90: 0 | J90: 0
B91: 3 | C91: 0 | D91: 0 | E91: 0 | F91: 0 | G91: 0 | H91: 0 | I91: 0 | J91: 0
B92: 4 | C92: 0 | D92: 0 | E92: 0 | F92: 0 | G92: 0 | H92: 0 | I92: 0 | J92: 0
B93: 5 | C93: 0 | D93: 0 | E93: 0 | F93: 0 | G93: 0 | H93: 0 | I93: 0 | J93: 0
B94: 6 | C94: 0 | D94: 0 | E94: 0 | F94: 0 | G94: 0 | H94: 0 | I94: 0 | J94: 0
B95: 7 | C95: 0 | D95: 0 | E95: 0 | F95: 0 | G95: 0 | H95: 0 | I95: 0 | J95: 0
B96: 8 | C96: 0 | D96: 0 | E96: 0 | F96: 0 | G96: 0 | H96: 0 | I96: 0 | J96: 0
B97: 9 | C97: 0 | D97: 0 | E97: 0 | F97: 0 | G97: 0 | H97: 0 | I97: 0 | J97: 0
B98: 10 | C98: 0 | D98: 0 | E98: 0 | F98: 0 | G98: 0 | H98: 0 | I98: 0 | J98: 0
B99: 11 | C99: 0 | D99: 0 | E99: 0 | F99: 0 | G99: 0 | H99: 0 | I99: 0 | J99: 0
B100: 12 | C100: 0 | D100: 0 | E100: 0 | F100: 0 | G100: 0 | H100: 0 | I100: 0 | J100: 0
B101: 13 | C101: 0 | D101: 0 | E101: 0 | F101: 0 | G101: 0 | H101: 0 | I101: 0 | J101: 0
B102: 14 | C102: 0 | D102: 0 | E102: 0 | F102: 0 | G102: 0 | H102: 0 | I102: 0 | J102: 0
B103: 15 | C103: 0 | D103: 0 | E103: 0 | F103: 0 | G103: 0 | H103: 0 | I103: 0 | J103: 0
B104: 16 | C104: 0 | D104: 0 | E104: 0 | F104: 0 | G104: 0 | H104: 0 | I104: 0 | J104: 0
B105: 17 | C105: 0 | D105: 0 | E105: 0 | F105: 0 | G105: 0 | H105: 0 | I105: 0 | J105: 0
B106: 18 | C106: 0 | D106: 0 | E106: 0 | F106: 0 | G106: 0 | H106: 0 | I106: 0 | J106: 0
B108: Total | J108: =SUM(J86:J106) -> 0
G110: Present Value = Future Value (in Constant Dollars)
H111: ( 1 + Real Discount Rate) ^ Year

Sheet Emissions
B1: Emission Reduction Benefits
B3: This sheet calculates emissions benefits for modal diversion, drayage, and terminal efficiency
B5: Formulas:
B6: Truck-Miles Traveled = Dist. Traveled x No. of Trucks | H6: Truck Em. Cost = (Truck-Miles x Rate x Cost/Ton) by Em. Type
B7: truck-miles / yr miles / trip trucks / yr | H7: $ / yr truck-miles / yr ton / mi $ / ton
B8: Tons by Rail = TEU Volume / Avg. Tons per TEU + Bulk/Breakbulk Vol. | H8: Rail Em. Cost = (Gal. Consumed x Rate x Cost/Ton) by Em. Type
B9: tons / yr TEUs shipped by rail / yr tons / TEU tons shipped by rail / yr | H9: $ / yr gallons / yr by rail ton / gal. $ / ton
B10: Gallons Consumed = Tons by Rail x Dist. Traveled / Fuel Efficiency | H10: Idle Em. Cost = (Dwell x Idle Fuel x Rate x Cost/Ton) by Em. Type
B11: gallons / yr by rail tons / yr miles / trip ton-miles / gallon | H11: $ / yr hrs / yr gallons / hr ton / gal. $ / ton
B15: A | C15: FREIGHT BENEFITS | AE15: B | AF15: SUMMARY OF EMISSION REDUCTION BENEFITS | AN15: SUMMARY OF EMISSION REDUCTION BENEFITS (continued) | AU15: SUMMARY OF EMISSION REDUCTION BENEFITS (continued)
B18: Modal Diversion - Truck
C20: BULK/BREAKBULK VMT | E20: CONTAINER VMT | G20: AVERAGE SPEED | I20: BULK/BREAKBULK | K20: CONTAINER | P20: TONS EMISSIONS SAVED | W20: DOLLARS EMISSIONS SAVED | AF20: FREIGHT | AJ20: Present | AN20: TONS EMISSIONS SAVED | AU20: DOLLARS EMISSIONS SAVED
C21: (veh-miles/yr) | E21: (veh-miles/yr) | G21: (mph) | I21: EMISSIONS | K21: EMISSIONS | P21: (tons/yr) | W21: (PV $/yr) | AF21: Modal | AG21: Modal | AJ21: Value of | AN21: (tons/yr) | AU21: (PV $/yr)
B22: Year | I22: ($/yr) | K22: ($/yr) | M22: Constant | N22: Present | AE22: Year | AF22: Diversion | AG22: Diversion | AI22: Terminal | AJ22: Emission | AL22: Constant
C23: No Build | D23: Build | E23: No Build | F23: Build | G23: No Build | H23: Build | I23: No Build | J23: Build | K23: No Build | L23: Build | M23: Dollars | N23: Value | P23: CO | Q23: CO2 | R23: NOX | S23: PM10 | T23: SOX | U23: VOC | V23: PM2.5 | W23: CO | X23: CO2 | Y23: NOX | Z23: PM10 | AA23: SOX | AB23: VOC | AF23: Truck | AG23: Rail | AH23: Drayage | AI23: Efficiency | AJ23: =IF(Emissions<>"N","Benefits","Benefits*") -> Benefits | AL23: Dollars | AN23: CO | AO23: CO2 | AP23: NOX | AQ23: PM10 | AR23: SOX | AS23: VOC | AT23: PM2.5 | AU23: CO | AV23: CO2 | AW23: NOX | AX23: PM10 | AY23: SOX | AZ23: VOC
B24: =YearStart -> 0 | C24: =VMTEmTonTNB1+VMTLTonTNB1 -> 0 | D24: =VMTEmTonTB1+VMTLTonTB1 -> 0 | E24: =VMTEmTEUTNB1+VMTLTEUTNB1 -> 0 | F24: =VMTEmTEUTB1+VMTLTEUTB1 -> 0 | G24: =MPHTruckNB1 -> 0 | H24: =MPHTruckB1 -> 0 | I24: =C24/907185*(VLOOKUP(MAX($G24, 5),EmTruck1,2)*VLOOKUP(ProjLoc,EmCost,2)+VLOOKUP(MAX($G24, 5),EmTruck1,3)*VLOOKUP(ProjLoc,EmCost,3)*(1+CO2Uprater)^($B24-CurrentYear)+VLOOKUP(MAX($G24, 5),EmTruck1,4)*VLOOKUP(ProjLoc,EmCost,4)+VLOOKUP(MAX($G24, 5),EmTruck1,5)*VLOOKUP(ProjLoc,EmCost,5)+VLOOKUP(MAX($G24, 5),EmTruck1,6)*VLOOKUP(ProjLoc,EmCost,6)+VLOOKUP(MAX($G24, 5),EmTruck1,7)*VLOOKUP(ProjLoc,EmCost,7)) ->  | J24: =D24/907185*(VLOOKUP(MAX($H24, 5),EmTruck1,2)*VLOOKUP(ProjLoc,EmCost,2)+VLOOKUP(MAX($H24, 5),EmTruck1,3)*VLOOKUP(ProjLoc,EmCost,3)*(1+CO2Uprater)^($B24-CurrentYear)+VLOOKUP(MAX($H24, 5),EmTruck1,4)*VLOOKUP(ProjLoc,EmCost,4)+VLOOKUP(MAX($H24, 5),EmTruck1,5)*VLOOKUP(ProjLoc,EmCost,5)+VLOOKUP(MAX($H24, 5),EmTruck1,6)*VLOOKUP(ProjLoc,EmCost,6)+VLOOKUP(MAX($H24, 5),EmTruck1,7)*VLOOKUP(ProjLoc,EmCost,7)) ->  | K24: =E24/907185*(VLOOKUP(MAX($G24, 5),EmTruck1,2)*VLOOKUP(ProjLoc,EmCost,2)+VLOOKUP(MAX($G24, 5),EmTruck1,3)*VLOOKUP(ProjLoc,EmCost,3)*(1+CO2Uprater)^($B24-CurrentYear)+VLOOKUP(MAX($G24, 5),EmTruck1,4)*VLOOKUP(ProjLoc,EmCost,4)+VLOOKUP(MAX($G24, 5),EmTruck1,5)*VLOOKUP(ProjLoc,EmCost,5)+VLOOKUP(MAX($G24, 5),EmTruck1,6)*VLOOKUP(ProjLoc,EmCost,6)+VLOOKUP(MAX($G24, 5),EmTruck1,7)*VLOOKUP(ProjLoc,EmCost,7)) ->  | L24: =F24/907185*(VLOOKUP(MAX($H24, 5),EmTruck1,2)*VLOOKUP(ProjLoc,EmCost,2)+VLOOKUP(MAX($H24, 5),EmTruck1,3)*VLOOKUP(ProjLoc,EmCost,3)*(1+CO2Uprater)^($B24-CurrentYear)+VLOOKUP(MAX($H24, 5),EmTruck1,4)*VLOOKUP(ProjLoc,EmCost,4)+VLOOKUP(MAX($H24, 5),EmTruck1,5)*VLOOKUP(ProjLoc,EmCost,5)+VLOOKUP(MAX($H24, 5),EmTruck1,6)*VLOOKUP(ProjLoc,EmCost,6)+VLOOKUP(MAX($H24, 5),EmTruck1,7)*VLOOKUP(ProjLoc,EmCost,7)) ->  | M24: =I24-J24+K24-L24 ->  | N24: =$M24/(1+DiscRate)^($B24-CurrentYear) ->  | P24: =(1/907185)*(($C24+$E24)*VLOOKUP(MAX($G24, 5),EmTruck1,2)-($D24+$F24)*VLOOKUP(MAX($H24, 5),EmTruck1,2)) -> 0 | Q24: =(1/907185)*(($C24+$E24)*VLOOKUP(MAX($G24, 5),EmTruck1,3)-($D24+$F24)*VLOOKUP(MAX($H24, 5),EmTruck1,3)) -> 0 | R24: =(1/907185)*(($C24+$E24)*VLOOKUP(MAX($G24, 5),EmTruck1,4)-($D24+$F24)*VLOOKUP(MAX($H24, 5),EmTruck1,4)) -> 0 | S24: =(1/907185)*(($C24+$E24)*VLOOKUP(MAX($G24, 5),EmTruck1,5)-($D24+$F24)*VLOOKUP(MAX($H24, 5),EmTruck1,5)) -> 0 | T24: =(1/907185)*(($C24+$E24)*VLOOKUP(MAX($G24, 5),EmTruck1,6)-($D24+$F24)*VLOOKUP(MAX($H24, 5),EmTruck1,6)) -> 0 | U24: =(1/907185)*(($C24+$E24)*VLOOKUP(MAX($G24, 5),EmTruck1,7)-($D24+$F24)*VLOOKUP(MAX($H24, 5),EmTruck1,7)) -> 0 | V24: =(1/907185)*(($C24+$E24)*VLOOKUP(MAX($G24, 5),EmTruck1,8)-($D24+$F24)*VLOOKUP(MAX($H24, 5),EmTruck1,8)) -> 0 | W24: =P24*VLOOKUP(ProjLoc,EmCost,2)/(1+DiscRate)^($B24-CurrentYear) ->  | X24: =Q24*VLOOKUP(ProjLoc,EmCost,3)*(1+CO2Uprater)^($B24-CurrentYear)/(1+DiscRate)^($B24-CurrentYear) ->  | Y24: =R24*VLOOKUP(ProjLoc,EmCost,4)/(1+DiscRate)^($B24-CurrentYear) ->  | Z24: =S24*VLOOKUP(ProjLoc,EmCost,5)/(1+DiscRate)^($B24-CurrentYear) ->  | AA24: =T24*VLOOKUP(ProjLoc,EmCost,6)/(1+DiscRate)^($B24-CurrentYear) ->  | AB24: =U24*VLOOKUP(ProjLoc,EmCost,7)/(1+DiscRate)^($B24-CurrentYear) ->  | AE24: =YearStart -> 0 | AF24: =N24 ->  | AG24: =N55 ->  | AH24: =N86 ->  | AI24: =N117 ->  | AJ24: =IF(Emissions<>"N",SUM(AF24:AI24),0) ->  | AL24: =$AJ24*(1+DiscRate)^($B24-CurrentYear) ->  | AN24: =P24+P55+P86+P117 -> 
B25: =YearStart+20-1 -> 19 | C25: =VMTEmTonTNB20+VMTLTonTNB20 -> 0 | D25: =VMTEmTonTB20+VMTLTonTB20 -> 0 | E25: =VMTEmTEUTNB20+VMTLTEUTNB20 -> 0 | F25: =VMTEmTEUTB20+VMTLTEUTB20 -> 0 | G25: =MPHTruckNB20 -> 0 | H25: =MPHTruckB20 -> 0 | I25: =C25/907185*(VLOOKUP(MAX($G25, 5),EmTruck20,2)*VLOOKUP(ProjLoc,EmCost,2)+VLOOKUP(MAX($G25, 5),EmTruck20,3)*VLOOKUP(ProjLoc,EmCost,3)*(1+CO2Uprater)^($B25-CurrentYear)+VLOOKUP(MAX($G25, 5),EmTruck20,4)*VLOOKUP(ProjLoc,EmCost,4)+VLOOKUP(MAX($G25, 5),EmTruck20,5)*VLOOKUP(ProjLoc,EmCost,5)+VLOOKUP(MAX($G25, 5),EmTruck20,6)*VLOOKUP(ProjLoc,EmCost,6)+VLOOKUP(MAX($G25, 5),EmTruck20,7)*VLOOKUP(ProjLoc,EmCost,7)) ->  | J25: =D25/907185*(VLOOKUP(MAX($H25, 5),EmTruck20,2)*VLOOKUP(ProjLoc,EmCost,2)+VLOOKUP(MAX($H25, 5),EmTruck20,3)*VLOOKUP(ProjLoc,EmCost,3)*(1+CO2Uprater)^($B25-CurrentYear)+VLOOKUP(MAX($H25, 5),EmTruck20,4)*VLOOKUP(ProjLoc,EmCost,4)+VLOOKUP(MAX($H25, 5),EmTruck20,5)*VLOOKUP(ProjLoc,EmCost,5)+VLOOKUP(MAX($H25, 5),EmTruck20,6)*VLOOKUP(ProjLoc,EmCost,6)+VLOOKUP(MAX($H25, 5),EmTruck20,7)*VLOOKUP(ProjLoc,EmCost,7)) ->  | K25: =E25/907185*(VLOOKUP(MAX($G25, 5),EmTruck20,2)*VLOOKUP(ProjLoc,EmCost,2)+VLOOKUP(MAX($G25, 5),EmTruck20,3)*VLOOKUP(ProjLoc,EmCost,3)*(1+CO2Uprater)^($B25-CurrentYear)+VLOOKUP(MAX($G25, 5),EmTruck20,4)*VLOOKUP(ProjLoc,EmCost,4)+VLOOKUP(MAX($G25, 5),EmTruck20,5)*VLOOKUP(ProjLoc,EmCost,5)+VLOOKUP(MAX($G25, 5),EmTruck20,6)*VLOOKUP(ProjLoc,EmCost,6)+VLOOKUP(MAX($G25, 5),EmTruck20,7)*VLOOKUP(ProjLoc,EmCost,7)) ->  | L25: =F25/907185*(VLOOKUP(MAX($H25, 5),EmTruck20,2)*VLOOKUP(ProjLoc,EmCost,2)+VLOOKUP(MAX($H25, 5),EmTruck20,3)*VLOOKUP(ProjLoc,EmCost,3)*(1+CO2Uprater)^($B25-CurrentYear)+VLOOKUP(MAX($H25, 5),EmTruck20,4)*VLOOKUP(ProjLoc,EmCost,4)+VLOOKUP(MAX($H25, 5),EmTruck20,5)*VLOOKUP(ProjLoc,EmCost,5)+VLOOKUP(MAX($H25, 5),EmTruck20,6)*VLOOKUP(ProjLoc,EmCost,6)+VLOOKUP(MAX($H25, 5),EmTruck20,7)*VLOOKUP(ProjLoc,EmCost,7)) ->  | M25: =I25-J25+K25-L25 ->  | N25: =$M25/(1+DiscRate)^($B25-CurrentYear) ->  | P25: =(1/907185)*(($C25+$E25)*VLOOKUP(MAX($G25, 5),EmTruck20,2)-($D25+$F25)*VLOOKUP(MAX($H25, 5),EmTruck20,2)) -> 0 | Q25: =(1/907185)*(($C25+$E25)*VLOOKUP(MAX($G25, 5),EmTruck20,3)-($D25+$F25)*VLOOKUP(MAX($H25, 5),EmTruck20,3)) -> 0 | R25: =(1/907185)*(($C25+$E25)*VLOOKUP(MAX($G25, 5),EmTruck20,4)-($D25+$F25)*VLOOKUP(MAX($H25, 5),EmTruck20,4)) -> 0 | S25: =(1/907185)*(($C25+$E25)*VLOOKUP(MAX($G25, 5),EmTruck20,5)-($D25+$F25)*VLOOKUP(MAX($H25, 5),EmTruck20,5)) -> 0 | T25: =(1/907185)*(($C25+$E25)*VLOOKUP(MAX($G25, 5),EmTruck20,6)-($D25+$F25)*VLOOKUP(MAX($H25, 5),EmTruck20,6)) -> 0 | U25: =(1/907185)*(($C25+$E25)*VLOOKUP(MAX($G25, 5),EmTruck20,7)-($D25+$F25)*VLOOKUP(MAX($H25, 5),EmTruck20,7)) -> 0 | V25: =(1/907185)*(($C25+$E25)*VLOOKUP(MAX($G25, 5),EmTruck20,8)-($D25+$F25)*VLOOKUP(MAX($H25, 5),EmTruck20,8)) -> 0 | W25: =P25*VLOOKUP(ProjLoc,EmCost,2)/(1+DiscRate)^($B25-CurrentYear) ->  | X25: =Q25*VLOOKUP(ProjLoc,EmCost,3)*(1+CO2Uprater)^($B25-CurrentYear)/(1+DiscRate)^($B25-CurrentYear) ->  | Y25: =R25*VLOOKUP(ProjLoc,EmCost,4)/(1+DiscRate)^($B25-CurrentYear) ->  | Z25: =S25*VLOOKUP(ProjLoc,EmCost,5)/(1+DiscRate)^($B25-CurrentYear) ->  | AA25: =T25*VLOOKUP(ProjLoc,EmCost,6)/(1+DiscRate)^($B25-CurrentYear) ->  | AB25: =U25*VLOOKUP(ProjLoc,EmCost,7)/(1+DiscRate)^($B25-CurrentYear) ->  | AE25: =YearStart+20-1 -> 19 | AF25: =N25 ->  | AG25: =N56 ->  | AH25: =N87 ->  | AI25: =N118 ->  | AJ25: =IF(Emissions<>"N",SUM(AF25:AI25),0) ->  | AL25: =$AJ25*(1+DiscRate)^($B25-CurrentYear) -> 
B27: =B24+1 -> 1 | C27: =IF(AND(TonsNB20<>0, TonsPerTruckNB<>0), IF(C$25<C$24, MAX(TonsTruckNB20/TonsPerTruckNB,TonsTruckNB1/TonsPerTruckNB+((TonsYrCurr*(1+TonGrowthNB)^(YearStart+20-1-CurrentYear)*TonsTruckNB20/TonsNB20)/(TonsPerTruckNB)-TonsTruckNB1/TonsPerTruckNB)/(20-1)*($B27-YearStart)), MIN(TonsTruckNB20/TonsPerTruckNB,TonsTruckNB1/TonsPerTruckNB+((TonsYrCurr*(1+TonGrowthNB)^(YearStart+20-1-CurrentYear)*TonsTruckNB20/TonsNB20)/(TonsPerTruckNB)-TonsTruckNB1/TonsPerTruckNB)/(20-1)*($B27-YearStart))), 0)*DistTNB*(1+TruckAdjFactor) -> 0 | D27: =IF(AND(TonsB20<>0, TonsPerTruckB<>0), IF(D$25<D$24, MAX(TonsTruckB20/TonsPerTruckB,TonsTruckB1/TonsPerTruckB+((TonsYrCurr*(1+TonGrowthB)^(YearStart+20-1-CurrentYear)*TonsTruckB20/TonsB20)/(TonsPerTruckB)-TonsTruckB1/TonsPerTruckB)/(20-1)*($B27-YearStart)), MIN(TonsTruckB20/TonsPerTruckB,TonsTruckB1/TonsPerTruckB+((TonsYrCurr*(1+TonGrowthB)^(YearStart+20-1-CurrentYear)*TonsTruckB20/TonsB20)/(TonsPerTruckB)-TonsTruckB1/TonsPerTruckB)/(20-1)*($B27-YearStart))), 0)*DistTB*(1+TruckAdjFactor) -> 0 | E27: =IF(AND(TEUNB20<>0, TEUPerTruckNB<>0), IF(E$25<E$24, MAX(TEUTruckNB20/TEUPerTruckNB,TEUTruckNB1/TEUPerTruckNB+((TEUYrCurr*(1+TEUGrowthNB)^(YearStart+20-1-CurrentYear)*TEUTruckNB20/TEUNB20)/(TEUPerTruckNB)-TEUTruckNB1/TEUPerTruckNB)/(20-1)*($B27-YearStart)), MIN(TEUTruckNB20/TEUPerTruckNB,TEUTruckNB1/TEUPerTruckNB+((TEUYrCurr*(1+TEUGrowthNB)^(YearStart+20-1-CurrentYear)*TEUTruckNB20/TEUNB20)/(TEUPerTruckNB)-TEUTruckNB1/TEUPerTruckNB)/(20-1)*($B58-YearStart))), 0)*(1+TruckAdjFactorTEU)*TEUDistTNB -> 0 | F27: =IF(AND(TEUB20<>0, TEUPerTruckB<>0), IF(F$25<F$24, MAX(TEUTruckB20/TEUPerTruckB,TEUTruckB1/TEUPerTruckB+((TEUYrCurr*(1+TEUGrowthB)^(YearStart+20-1-CurrentYear)*TEUTruckB20/TEUB20)/(TEUPerTruckB)-TEUTruckB1/TEUPerTruckB)/(20-1)*($B27-YearStart)), MIN(TEUTruckB20/TEUPerTruckB,TEUTruckB1/TEUPerTruckB+((TEUYrCurr*(1+TEUGrowthB)^(YearStart+20-1-CurrentYear)*TEUTruckB20/TEUB20)/(TEUPerTruckB)-TEUTruckB1/TEUPerTruckB)/(20-1)*($B27-YearStart))), 0)*(1+TruckAdjFactorTEU)*TEUDistTB -> 0 | G27: =TREND(G24:G25,B24:B25,B27) -> 0 | H27: =TREND(H24:H25,B24:B25,B27) -> 0 | I27: =C27/907185*(VLOOKUP(MAX($G27, 5),EmTruck1,2)*VLOOKUP(ProjLoc,EmCost,2)+VLOOKUP(MAX($G27, 5),EmTruck1,3)*VLOOKUP(ProjLoc,EmCost,3)*(1+CO2Uprater)^($B27-CurrentYear)+VLOOKUP(MAX($G27, 5),EmTruck1,4)*VLOOKUP(ProjLoc,EmCost,4)+VLOOKUP(MAX($G27, 5),EmTruck1,5)*VLOOKUP(ProjLoc,EmCost,5)+VLOOKUP(MAX($G27, 5),EmTruck1,6)*VLOOKUP(ProjLoc,EmCost,6)+VLOOKUP(MAX($G27, 5),EmTruck1,7)*VLOOKUP(ProjLoc,EmCost,7)) ->  | J27: =D27/907185*(VLOOKUP(MAX($H27, 5),EmTruck1,2)*VLOOKUP(ProjLoc,EmCost,2)+VLOOKUP(MAX($H27, 5),EmTruck1,3)*VLOOKUP(ProjLoc,EmCost,3)*(1+CO2Uprater)^($B27-CurrentYear)+VLOOKUP(MAX($H27, 5),EmTruck1,4)*VLOOKUP(ProjLoc,EmCost,4)+VLOOKUP(MAX($H27, 5),EmTruck1,5)*VLOOKUP(ProjLoc,EmCost,5)+VLOOKUP(MAX($H27, 5),EmTruck1,6)*VLOOKUP(ProjLoc,EmCost,6)+VLOOKUP(MAX($H27, 5),EmTruck1,7)*VLOOKUP(ProjLoc,EmCost,7)) ->  | K27: =E27/907185*(VLOOKUP(MAX($G27, 5),EmTruck1,2)*VLOOKUP(ProjLoc,EmCost,2)+VLOOKUP(MAX($G27, 5),EmTruck1,3)*VLOOKUP(ProjLoc,EmCost,3)*(1+CO2Uprater)^($B27-CurrentYear)+VLOOKUP(MAX($G27, 5),EmTruck1,4)*VLOOKUP(ProjLoc,EmCost,4)+VLOOKUP(MAX($G27, 5),EmTruck1,5)*VLOOKUP(ProjLoc,EmCost,5)+VLOOKUP(MAX($G27, 5),EmTruck1,6)*VLOOKUP(ProjLoc,EmCost,6)+VLOOKUP(MAX($G27, 5),EmTruck1,7)*VLOOKUP(ProjLoc,EmCost,7)) ->  | L27: =F27/907185*(VLOOKUP(MAX($H27, 5),EmTruck1,2)*VLOOKUP(ProjLoc,EmCost,2)+VLOOKUP(MAX($H27, 5),EmTruck1,3)*VLOOKUP(ProjLoc,EmCost,3)*(1+CO2Uprater)^($B27-CurrentYear)+VLOOKUP(MAX($H27, 5),EmTruck1,4)*VLOOKUP(ProjLoc,EmCost,4)+VLOOKUP(MAX($H27, 5),EmTruck1,5)*VLOOKUP(ProjLoc,EmCost,5)+VLOOKUP(MAX($H27, 5),EmTruck1,6)*VLOOKUP(ProjLoc,EmCost,6)+VLOOKUP(MAX($H27, 5),EmTruck1,7)*VLOOKUP(ProjLoc,EmCost,7)) ->  | M27: =I27-J27+K27-L27 ->  | N27: =$M27/(1+DiscRate)^($B27-CurrentYear) ->  | P27: =(1/907185)*(($C27+$E27)*VLOOKUP(MAX($G27, 5),EmTruck1,2)-($D27+$F27)*VLOOKUP(MAX($H27, 5),EmTruck1,2)) -> 0 | Q27: =(1/907185)*(($C27+$E27)*VLOOKUP(MAX($G27, 5),EmTruck1,3)-($D27+$F27)*VLOOKUP(MAX($H27, 5),EmTruck1,3)) -> 0 | R27: =(1/907185)*(($C27+$E27)*VLOOKUP(MAX($G27, 5),EmTruck1,4)-($D27+$F27)*VLOOKUP(MAX($H27, 5),EmTruck1,4)) -> 0 | S27: =(1/907185)*(($C27+$E27)*VLOOKUP(MAX($G27, 5),EmTruck1,5)-($D27+$F27)*VLOOKUP(MAX($H27, 5),EmTruck1,5)) -> 0 | T27: =(1/907185)*(($C27+$E27)*VLOOKUP(MAX($G27, 5),EmTruck1,6)-($D27+$F27)*VLOOKUP(MAX($H27, 5),EmTruck1,6)) -> 0 | U27: =(1/907185)*(($C27+$E27)*VLOOKUP(MAX($G27, 5),EmTruck1,7)-($D27+$F27)*VLOOKUP(MAX($H27, 5),EmTruck1,7)) -> 0 | V27: =(1/907185)*(($C27+$E27)*VLOOKUP(MAX($G27, 5),EmTruck1,8)-($D27+$F27)*VLOOKUP(MAX($H27, 5),EmTruck1,8)) -> 0 | W27: =P27*VLOOKUP(ProjLoc,EmCost,2)/(1+DiscRate)^($B27-CurrentYear) ->  | X27: =Q27*VLOOKUP(ProjLoc,EmCost,3)*(1+CO2Uprater)^($B27-CurrentYear)/(1+DiscRate)^($B27-CurrentYear) ->  | Y27: =R27*VLOOKUP(ProjLoc,EmCost,4)/(1+DiscRate)^($B27-CurrentYear) ->  | Z27: =S27*VLOOKUP(ProjLoc,EmCost,5)/(1+DiscRate)^($B27-CurrentYear) ->  | AA27: =T27*VLOOKUP(ProjLoc,EmCost,6)/(1+DiscRate)^($B27-CurrentYear) ->  | AB27: =U27*VLOOKUP(ProjLoc,EmCost,7)/(1+DiscRate)^($B27-CurrentYear) ->  | AE27: =AE24+1 -> 1 | AF27: =N27 ->  | AG27: =N58 ->  | AH27: =N89 ->  | AI27: =N120 ->  | AJ27: =IF(Emissions<>"N",SUM(AF27:AI27),0) ->  | AL27: =$AJ27*(1+DiscRate)^($B27-CurrentYear) ->  | AN27: =P27+P58+P89+P120 ->  | AO27: =Q27+Q58+Q89+Q120 ->  | AP27: =R27+R58+R89+R120 ->  | AQ27: =S27+S58+S89+S120 ->  | AR27: =T27+T58+T89+T120 ->  | AS27: =U27+U58+U89+U120 ->  | AT27: =V27+V58+V89+V120 ->  | AU27: =W27+W58+W89+W120 ->  | AV27: =X27+X58+X89+X120 ->  | AW27: =Y27+Y58+Y89+Y120 ->  | AX27: =Z27+Z58+Z89+Z120 ->  | AY27: =AA27+AA58+AA89+AA120 ->  | AZ27: =AB27+AB58+AB89+AB120 -> 
B28: =B27+1 -> 2 | C28: 0 | D28: 0 | E28: 0 | F28: 0 | G28: =TREND(G24:G25,B24:B25,B28) -> 0 | H28: =TREND(H24:H25,B24:B25,B28) -> 0 | M28: =I28-J28+K28-L28 ->  | P28: 0 | Q28: 0 | R28: 0 | S28: 0 | T28: 0 | U28: 0 | V28: 0 | AE28: =AE27+1 -> 2
B29: =B28+1 -> 3 | C29: 0 | D29: 0 | E29: 0 | F29: 0 | G29: =TREND(G24:G25,B24:B25,B29) -> 0 | H29: =TREND(H24:H25,B24:B25,B29) -> 0 | P29: 0 | Q29: 0 | R29: 0 | S29: 0 | T29: 0 | U29: 0 | V29: 0 | AE29: =AE28+1 -> 3
B30: 4 | C30: 0 | D30: 0 | E30: 0 | F30: 0 | G30: =TREND(G24:G25,B24:B25,B30) -> 0 | H30: =TREND(H24:H25,B24:B25,B30) -> 0 | P30: 0 | Q30: 0 | R30: 0 | S30: 0 | T30: 0 | U30: 0 | V30: 0 | AE30: 4
B31: 5 | C31: 0 | D31: 0 | E31: 0 | F31: 0 | G31: =TREND(G24:G25,B24:B25,B31) -> 0 | H31: =TREND(H24:H25,B24:B25,B31) -> 0 | P31: 0 | Q31: 0 | R31: 0 | S31: 0 | T31: 0 | U31: 0 | V31: 0 | AE31: 5
B32: 6 | C32: 0 | D32: 0 | E32: 0 | F32: 0 | G32: =TREND(G24:G25,B24:B25,B32) -> 0 | H32: =TREND(H24:H25,B24:B25,B32) -> 0 | M32: =I32-J32+K32-L32 ->  | P32: 0 | Q32: 0 | R32: 0 | S32: 0 | T32: 0 | U32: 0 | V32: 0 | AE32: 6
B33: 7 | C33: 0 | D33: 0 | E33: 0 | F33: 0 | G33: =TREND(G24:G25,B24:B25,B33) -> 0 | H33: =TREND(H24:H25,B24:B25,B33) -> 0 | I33: =C33/907185*(VLOOKUP(MAX($G33, 5),EmTruck20,2)*VLOOKUP(ProjLoc,EmCost,2)+VLOOKUP(MAX($G33, 5),EmTruck20,3)*VLOOKUP(ProjLoc,EmCost,3)*(1+CO2Uprater)^($B33-CurrentYear)+VLOOKUP(MAX($G33, 5),EmTruck20,4)*VLOOKUP(ProjLoc,EmCost,4)+VLOOKUP(MAX($G33, 5),EmTruck20,5)*VLOOKUP(ProjLoc,EmCost,5)+VLOOKUP(MAX($G33, 5),EmTruck20,6)*VLOOKUP(ProjLoc,EmCost,6)+VLOOKUP(MAX($G33, 5),EmTruck20,7)*VLOOKUP(ProjLoc,EmCost,7)) ->  | J33: =D33/907185*(VLOOKUP(MAX($H33, 5),EmTruck20,2)*VLOOKUP(ProjLoc,EmCost,2)+VLOOKUP(MAX($H33, 5),EmTruck20,3)*VLOOKUP(ProjLoc,EmCost,3)*(1+CO2Uprater)^($B33-CurrentYear)+VLOOKUP(MAX($H33, 5),EmTruck20,4)*VLOOKUP(ProjLoc,EmCost,4)+VLOOKUP(MAX($H33, 5),EmTruck20,5)*VLOOKUP(ProjLoc,EmCost,5)+VLOOKUP(MAX($H33, 5),EmTruck20,6)*VLOOKUP(ProjLoc,EmCost,6)+VLOOKUP(MAX($H33, 5),EmTruck20,7)*VLOOKUP(ProjLoc,EmCost,7)) ->  | K33: =E33/907185*(VLOOKUP(MAX($G33, 5),EmTruck20,2)*VLOOKUP(ProjLoc,EmCost,2)+VLOOKUP(MAX($G33, 5),EmTruck20,3)*VLOOKUP(ProjLoc,EmCost,3)*(1+CO2Uprater)^($B33-CurrentYear)+VLOOKUP(MAX($G33, 5),EmTruck20,4)*VLOOKUP(ProjLoc,EmCost,4)+VLOOKUP(MAX($G33, 5),EmTruck20,5)*VLOOKUP(ProjLoc,EmCost,5)+VLOOKUP(MAX($G33, 5),EmTruck20,6)*VLOOKUP(ProjLoc,EmCost,6)+VLOOKUP(MAX($G33, 5),EmTruck20,7)*VLOOKUP(ProjLoc,EmCost,7)) ->  | L33: =F33/907185*(VLOOKUP(MAX($H33, 5),EmTruck20,2)*VLOOKUP(ProjLoc,EmCost,2)+VLOOKUP(MAX($H33, 5),EmTruck20,3)*VLOOKUP(ProjLoc,EmCost,3)*(1+CO2Uprater)^($B33-CurrentYear)+VLOOKUP(MAX($H33, 5),EmTruck20,4)*VLOOKUP(ProjLoc,EmCost,4)+VLOOKUP(MAX($H33, 5),EmTruck20,5)*VLOOKUP(ProjLoc,EmCost,5)+VLOOKUP(MAX($H33, 5),EmTruck20,6)*VLOOKUP(ProjLoc,EmCost,6)+VLOOKUP(MAX($H33, 5),EmTruck20,7)*VLOOKUP(ProjLoc,EmCost,7)) ->  | P33: =(1/907185)*(($C33+$E33)*VLOOKUP(MAX($G33, 5),EmTruck20,2)-($D33+$F33)*VLOOKUP(MAX($H33, 5),EmTruck20,2)) -> 0 | Q33: =(1/907185)*(($C33+$E33)*VLOOKUP(MAX($G33, 5),EmTruck20,3)-($D33+$F33)*VLOOKUP(MAX($H33, 5),EmTruck20,3)) -> 0 | R33: =(1/907185)*(($C33+$E33)*VLOOKUP(MAX($G33, 5),EmTruck20,4)-($D33+$F33)*VLOOKUP(MAX($H33, 5),EmTruck20,4)) -> 0 | S33: =(1/907185)*(($C33+$E33)*VLOOKUP(MAX($G33, 5),EmTruck20,5)-($D33+$F33)*VLOOKUP(MAX($H33, 5),EmTruck20,5)) -> 0 | T33: =(1/907185)*(($C33+$E33)*VLOOKUP(MAX($G33, 5),EmTruck20,6)-($D33+$F33)*VLOOKUP(MAX($H33, 5),EmTruck20,6)) -> 0 | U33: =(1/907185)*(($C33+$E33)*VLOOKUP(MAX($G33, 5),EmTruck20,7)-($D33+$F33)*VLOOKUP(MAX($H33, 5),EmTruck20,7)) -> 0 | V33: =(1/907185)*(($C33+$E33)*VLOOKUP(MAX($G33, 5),EmTruck20,8)-($D33+$F33)*VLOOKUP(MAX($H33, 5),EmTruck20,8)) -> 0 | AE33: 7
B34: 8 | C34: 0 | D34: 0 | E34: 0 | F34: 0 | G34: =TREND(G24:G25,B24:B25,B34) -> 0 | H34: =TREND(H24:H25,B24:B25,B34) -> 0 | M34: =I34-J34+K34-L34 ->  | P34: 0 | Q34: 0 | R34: 0 | S34: 0 | T34: 0 | U34: 0 | V34: 0 | AE34: 8
B35: 9 | C35: 0 | D35: 0 | E35: 0 | F35: 0 | G35: =TREND(G24:G25,B24:B25,B35) -> 0 | H35: =TREND(H24:H25,B24:B25,B35) -> 0 | P35: 0 | Q35: 0 | R35: 0 | S35: 0 | T35: 0 | U35: 0 | V35: 0 | AE35: 9
B36: 10 | C36: 0 | D36: 0 | E36: 0 | F36: 0 | G36: =TREND(G24:G25,B24:B25,B36) -> 0 | H36: =TREND(H24:H25,B24:B25,B36) -> 0 | P36: 0 | Q36: 0 | R36: 0 | S36: 0 | T36: 0 | U36: 0 | V36: 0 | AE36: 10
B37: 11 | C37: 0 | D37: 0 | E37: 0 | F37: 0 | G37: =TREND(G24:G25,B24:B25,B37) -> 0 | H37: =TREND(H24:H25,B24:B25,B37) -> 0 | P37: 0 | Q37: 0 | R37: 0 | S37: 0 | T37: 0 | U37: 0 | V37: 0 | AE37: 11
B38: 12 | C38: 0 | D38: 0 | E38: 0 | F38: 0 | G38: =TREND(G24:G25,B24:B25,B38) -> 0 | H38: =TREND(H24:H25,B24:B25,B38) -> 0 | P38: 0 | Q38: 0 | R38: 0 | S38: 0 | T38: 0 | U38: 0 | V38: 0 | AE38: 12
B39: 13 | C39: 0 | D39: 0 | E39: 0 | F39: 0 | G39: =TREND(G24:G25,B24:B25,B39) -> 0 | H39: =TREND(H24:H25,B24:B25,B39) -> 0 | P39: 0 | Q39: 0 | R39: 0 | S39: 0 | T39: 0 | U39: 0 | V39: 0 | AE39: 13
B40: 14 | C40: 0 | D40: 0 | E40: 0 | F40: 0 | G40: =TREND(G24:G25,B24:B25,B40) -> 0 | H40: =TREND(H24:H25,B24:B25,B40) -> 0 | P40: 0 | Q40: 0 | R40: 0 | S40: 0 | T40: 0 | U40: 0 | V40: 0 | AE40: 14
B41: 15 | C41: 0 | D41: 0 | E41: 0 | F41: 0 | G41: =TREND(G24:G25,B24:B25,B41) -> 0 | H41: =TREND(H24:H25,B24:B25,B41) -> 0 | P41: 0 | Q41: 0 | R41: 0 | S41: 0 | T41: 0 | U41: 0 | V41: 0 | AE41: 15
B42: 16 | C42: 0 | D42: 0 | E42: 0 | F42: 0 | G42: =TREND(G24:G25,B24:B25,B42) -> 0 | H42: =TREND(H24:H25,B24:B25,B42) -> 0 | P42: 0 | Q42: 0 | R42: 0 | S42: 0 | T42: 0 | U42: 0 | V42: 0 | AE42: 16
B43: 17 | C43: 0 | D43: 0 | E43: 0 | F43: 0 | G43: =TREND(G24:G25,B24:B25,B43) -> 0 | H43: =TREND(H24:H25,B24:B25,B43) -> 0 | P43: 0 | Q43: 0 | R43: 0 | S43: 0 | T43: 0 | U43: 0 | V43: 0 | AE43: 17
B44: 18 | C44: 0 | D44: 0 | E44: 0 | F44: 0 | G44: =TREND(G24:G25,B24:B25,B44) -> 0 | H44: =TREND(H24:H25,B24:B25,B44) -> 0 | P44: 0 | Q44: 0 | R44: 0 | S44: 0 | T44: 0 | U44: 0 | V44: 0 | AE44: 18
B46: Total | N46: =SUM(N24:N44) ->  | P46: =SUM(P24:P44) -> 0 | Q46: 0 | R46: 0 | S46: 0 | T46: 0 | U46: 0 | V46: 0 | AE46: Total | AF46: =SUM(AF24:AF44) ->  | AG46: =SUM(AG24:AG44) ->  | AH46: =SUM(AH24:AH44) ->  | AI46: =SUM(AI24:AI44) ->  | AJ46: =SUM(AJ24:AJ44) ->  | AL46: =SUM(AL24:AL44) ->  | AN46: =SUM(AN24:AN44) -> 
AE48: =IF(Emissions<>"N","","* Emissions Benefits Not Counted") -> 
B49: Modal Diversion - Rail
C51: BULK/BREAKBULK | E51: CONTAINER | G51: GALLONS OF DIESEL | I51: BULK/BREAKBULK | K51: CONTAINER | P51: TONS EMISSIONS SAVED | W51: DOLLARS EMISSIONS SAVED
C52: TON-MILES | E52: TON-MILES | G52: CONSUMED | I52: EMISSIONS | K52: EMISSIONS | P52: (tons/yr) | W52: (PV $/yr)
B53: Year | C53: (ton-miles/yr) | E53: (ton-miles/yr) | G53: (gallons/yr) | I53: ($/yr) | K53: ($/yr) | M53: Constant | N53: Present
C54: No Build | D54: Build | E54: No Build | F54: Build | G54: No Build | H54: Build | I54: No Build | J54: Build | K54: No Build | L54: Build | M54: Dollars | N54: Value | P54: CO | Q54: CO2 | R54: NOX | S54: PM10 | T54: SOX | U54: VOC | V54: PM2.5 | W54: CO | X54: CO2 | Y54: NOX | Z54: PM10 | AA54: SOX | AB54: VOC
B55: =YearStart -> 0 | C55: =TonMiRNB1 -> 0 | D55: =TonMiRB1 -> 0 | E55: =ConMiRNB1*TonsPerTEUNB -> 0 | F55: =ConMiRB1*TonsPerTEUB -> 0 | G55: =(C55*(1+RailAdjFactor)+E55*(1+RailAdjFactorTEU))/FuelFreightRail -> 0 | H55: =(D55*(1+RailAdjFactor)+F55*(1+RailAdjFactorTEU))/FuelFreightRail -> 0 | I55: =(C55*(1+RailAdjFactor)/FuelFreightRail)/907185*(VLOOKUP($B55,EmFreightTrain,2)*VLOOKUP(ProjLoc,EmCost,2)+VLOOKUP($B55,EmFreightTrain,3)*VLOOKUP(ProjLoc,EmCost,3)*(1+CO2Uprater)^($B55-CurrentYear)+VLOOKUP($B55,EmFreightTrain,4)*VLOOKUP(ProjLoc,EmCost,4)+VLOOKUP($B55,EmFreightTrain,5)*VLOOKUP(ProjLoc,EmCost,5)+VLOOKUP($B55,EmFreightTrain,6)*VLOOKUP(ProjLoc,EmCost,6)+VLOOKUP($B55,EmFreightTrain,7)*VLOOKUP(ProjLoc,EmCost,7)) ->  | M55: =I55-J55+K55-L55 ->  | N55: =$M55/(1+DiscRate)^($B55-CurrentYear) ->  | P55: =(1/907185)*(($C55*(1+RailAdjFactor)+$E55*(1+RailAdjFactorTEU))/FuelFreightRail-($D55*(1+RailAdjFactor)+$F55*(1+RailAdjFactorTEU))/FuelFreightRail)*VLOOKUP($B55,EmFreightTrain,2) ->  | Q55: =(1/907185)*(($C55*(1+RailAdjFactor)+$E55*(1+RailAdjFactorTEU))/FuelFreightRail-($D55*(1+RailAdjFactor)+$F55*(1+RailAdjFactorTEU))/FuelFreightRail)*VLOOKUP($B55,EmFreightTrain,3) ->  | R55: =(1/907185)*(($C55*(1+RailAdjFactor)+$E55*(1+RailAdjFactorTEU))/FuelFreightRail-($D55*(1+RailAdjFactor)+$F55*(1+RailAdjFactorTEU))/FuelFreightRail)*VLOOKUP($B55,EmFreightTrain,4) ->  | S55: =(1/907185)*(($C55*(1+RailAdjFactor)+$E55*(1+RailAdjFactorTEU))/FuelFreightRail-($D55*(1+RailAdjFactor)+$F55*(1+RailAdjFactorTEU))/FuelFreightRail)*VLOOKUP($B55,EmFreightTrain,5) ->  | T55: =(1/907185)*(($C55*(1+RailAdjFactor)+$E55*(1+RailAdjFactorTEU))/FuelFreightRail-($D55*(1+RailAdjFactor)+$F55*(1+RailAdjFactorTEU))/FuelFreightRail)*VLOOKUP($B55,EmFreightTrain,6) ->  | U55: =(1/907185)*(($C55*(1+RailAdjFactor)+$E55*(1+RailAdjFactorTEU))/FuelFreightRail-($D55*(1+RailAdjFactor)+$F55*(1+RailAdjFactorTEU))/FuelFreightRail)*VLOOKUP($B55,EmFreightTrain,7) ->  | V55: =(1/907185)*(($C55*(1+RailAdjFactor)+$E55*(1+RailAdjFactorTEU))/FuelFreightRail-($D55*(1+RailAdjFactor)+$F55*(1+RailAdjFactorTEU))/FuelFreightRail)*VLOOKUP($B55,EmFreightTrain,8) ->  | W55: =P55*VLOOKUP(ProjLoc,EmCost,2)/(1+DiscRate)^($B55-CurrentYear) ->  | X55: =Q55*VLOOKUP(ProjLoc,EmCost,3)*(1+CO2Uprater)^($B55-CurrentYear)/(1+DiscRate)^($B55-CurrentYear) ->  | Y55: =R55*VLOOKUP(ProjLoc,EmCost,4)/(1+DiscRate)^($B55-CurrentYear) ->  | Z55: =S55*VLOOKUP(ProjLoc,EmCost,5)/(1+DiscRate)^($B55-CurrentYear) ->  | AA55: =T55*VLOOKUP(ProjLoc,EmCost,6)/(1+DiscRate)^($B55-CurrentYear) ->  | AB55: =U55*VLOOKUP(ProjLoc,EmCost,7)/(1+DiscRate)^($B55-CurrentYear) -> 
B56: =YearStart+20-1 -> 19 | C56: =TonMiRNB20 -> 0 | D56: =TonMiRB20 -> 0 | E56: =ConMiRNB20*TonsPerTEUNB -> 0 | F56: =ConMiRB20*TonsPerTEUB -> 0 | G56: =(C56*(1+RailAdjFactor)+E56*(1+RailAdjFactorTEU))/FuelFreightRail -> 0 | H56: =(D56*(1+RailAdjFactor)+F56*(1+RailAdjFactorTEU))/FuelFreightRail -> 0 | M56: =I56-J56+K56-L56 ->  | N56: =$M56/(1+DiscRate)^($B56-CurrentYear) ->  | P56: =(1/907185)*(($C56*(1+RailAdjFactor)+$E56*(1+RailAdjFactorTEU))/FuelFreightRail-($D56*(1+RailAdjFactor)+$F56*(1+RailAdjFactorTEU))/FuelFreightRail)*VLOOKUP($B56,EmFreightTrain,2) ->  | Q56: =(1/907185)*(($C56*(1+RailAdjFactor)+$E56*(1+RailAdjFactorTEU))/FuelFreightRail-($D56*(1+RailAdjFactor)+$F56*(1+RailAdjFactorTEU))/FuelFreightRail)*VLOOKUP($B56,EmFreightTrain,3) ->  | R56: =(1/907185)*(($C56*(1+RailAdjFactor)+$E56*(1+RailAdjFactorTEU))/FuelFreightRail-($D56*(1+RailAdjFactor)+$F56*(1+RailAdjFactorTEU))/FuelFreightRail)*VLOOKUP($B56,EmFreightTrain,4) ->  | S56: =(1/907185)*(($C56*(1+RailAdjFactor)+$E56*(1+RailAdjFactorTEU))/FuelFreightRail-($D56*(1+RailAdjFactor)+$F56*(1+RailAdjFactorTEU))/FuelFreightRail)*VLOOKUP($B56,EmFreightTrain,5) ->  | T56: =(1/907185)*(($C56*(1+RailAdjFactor)+$E56*(1+RailAdjFactorTEU))/FuelFreightRail-($D56*(1+RailAdjFactor)+$F56*(1+RailAdjFactorTEU))/FuelFreightRail)*VLOOKUP($B56,EmFreightTrain,6) ->  | U56: =(1/907185)*(($C56*(1+RailAdjFactor)+$E56*(1+RailAdjFactorTEU))/FuelFreightRail-($D56*(1+RailAdjFactor)+$F56*(1+RailAdjFactorTEU))/FuelFreightRail)*VLOOKUP($B56,EmFreightTrain,7) ->  | V56: =(1/907185)*(($C56*(1+RailAdjFactor)+$E56*(1+RailAdjFactorTEU))/FuelFreightRail-($D56*(1+RailAdjFactor)+$F56*(1+RailAdjFactorTEU))/FuelFreightRail)*VLOOKUP($B56,EmFreightTrain,8) -> 
B58: =B55+1 -> 1 | C58: =IF(AND(TonsNB20<>0, (TonsPerRailcarNB*RailcarPerTrainNB)<>0), IF(C$55>C$56, MAX(TonsRailNB20/(TonsPerRailcarNB*RailcarPerTrainNB),TonsRailNB1/(TonsPerRailcarNB*RailcarPerTrainNB)+((TonsYrCurr*(1+TonGrowthNB)^(YearStart+20-1-CurrentYear)*TonsRailNB20/TonsNB20)/(TonsPerRailcarNB*RailcarPerTrainNB)-TonsRailNB1/(TonsPerRailcarNB*RailcarPerTrainNB))/(20-1)*($B58-YearStart)), MIN(TonsRailNB20/(TonsPerRailcarNB*RailcarPerTrainNB),TonsRailNB1/(TonsPerRailcarNB*RailcarPerTrainNB)+((TonsYrCurr*(1+TonGrowthNB)^(YearStart+20-1-CurrentYear)*TonsRailNB20/TonsNB20)/(TonsPerRailcarNB*RailcarPerTrainNB)-TonsRailNB1/(TonsPerRailcarNB*RailcarPerTrainNB))/(20-1)*($B58-YearStart))), 0)*DistRNB*(TonsPerRailcarNB*RailcarPerTrainNB) -> 0 | D58: =IF(AND(TonsB20<>0, (TonsPerRailcarB*RailcarPerTrainB)<>0), IF(D$55>D$56, MAX(TonsRailB20/(TonsPerRailcarB*RailcarPerTrainB),TonsRailB1/(TonsPerRailcarB*RailcarPerTrainB)+((TonsYrCurr*(1+TonGrowthB)^(YearStart+20-1-CurrentYear)*TonsRailB20/TonsB20)/(TonsPerRailcarB*RailcarPerTrainB)-TonsRailB1/(TonsPerRailcarB*RailcarPerTrainB))/(20-1)*($B58-YearStart)), MIN(TonsRailB20/(TonsPerRailcarB*RailcarPerTrainB),TonsRailB1/(TonsPerRailcarB*RailcarPerTrainB)+((TonsYrCurr*(1+TonGrowthB)^(YearStart+20-1-CurrentYear)*TonsRailB20/TonsB20)/(TonsPerRailcarB*RailcarPerTrainB)-TonsRailB1/(TonsPerRailcarB*RailcarPerTrainB))/(20-1)*($B27-YearStart))), 0)*DistRB*(TonsPerRailcarB*RailcarPerTrainB) -> 0 | E58: =IF(AND(TEUNB20<>0, (TEUPerRailcarNB*TEURailcarPerTrainNB)<>0), IF(E$56<E$55,MAX(TEURailNB20/(TEUPerRailcarNB*TEURailcarPerTrainNB),TEURailNB1/(TEUPerRailcarNB*TEURailcarPerTrainNB)+((TEUYrCurr*(1+TEUGrowthNB)^(YearStart+20-1-CurrentYear)*TEURailNB20/TEUNB20)/(TEUPerRailcarNB*TEURailcarPerTrainNB)-TEURailNB1/(TEUPerRailcarNB*TEURailcarPerTrainNB))/(20-1)*($B58-YearStart)), MIN(TEURailNB20/(TEUPerRailcarNB*TEURailcarPerTrainNB),TEURailNB1/(TEUPerRailcarNB*TEURailcarPerTrainNB)+((TEUYrCurr*(1+TEUGrowthNB)^(YearStart+20-1-CurrentYear)*TEURailNB20/TEUNB20)/(TEUPerRailcarNB*TEURailcarPerTrainNB)-TEURailNB1/(TEUPerRailcarNB*TEURailcarPerTrainNB))/(20-1)*($B58-YearStart))), 0)*TEUDistRNB*(TEUPerRailcarNB*TEURailcarPerTrainNB*TonsPerTEUNB) -> 0 | F58: =IF(AND(TEUB20<>0, (TEUPerRailcarB*TEURailcarPerTrainB)<>0), IF(F$56<F$55,MAX(TEURailB20/(TEUPerRailcarB*TEURailcarPerTrainB),TEURailB1/(TEUPerRailcarB*TEURailcarPerTrainB)+((TEUYrCurr*(1+TEUGrowthB)^(YearStart+20-1-CurrentYear)*TEURailB20/TEUB20)/(TEUPerRailcarB*TEURailcarPerTrainB)-TEURailB1/(TEUPerRailcarB*TEURailcarPerTrainB))/(20-1)*($B58-YearStart)), MIN(TEURailB20/(TEUPerRailcarB*TEURailcarPerTrainB),TEURailB1/(TEUPerRailcarB*TEURailcarPerTrainB)+((TEUYrCurr*(1+TEUGrowthB)^(YearStart+20-1-CurrentYear)*TEURailB20/TEUB20)/(TEUPerRailcarB*TEURailcarPerTrainB)-TEURailB1/(TEUPerRailcarB*TEURailcarPerTrainB))/(20-1)*($B58-YearStart))), 0)*TEUDistRB*(TEUPerRailcarB*TEURailcarPerTrainB*TonsPerTEUB) -> 0 | G58: =(C58*(1+RailAdjFactor)+E58*(1+RailAdjFactorTEU))/FuelFreightRail -> 0 | H58: =(D58*(1+RailAdjFactor)+F58*(1+RailAdjFactorTEU))/FuelFreightRail -> 0 | I58: =(C58*(1+RailAdjFactor)/FuelFreightRail)/907185*(VLOOKUP($B58,EmFreightTrain,2)*VLOOKUP(ProjLoc,EmCost,2)+VLOOKUP($B58,EmFreightTrain,3)*VLOOKUP(ProjLoc,EmCost,3)*(1+CO2Uprater)^($B58-CurrentYear)+VLOOKUP($B58,EmFreightTrain,4)*VLOOKUP(ProjLoc,EmCost,4)+VLOOKUP($B58,EmFreightTrain,5)*VLOOKUP(ProjLoc,EmCost,5)+VLOOKUP($B58,EmFreightTrain,6)*VLOOKUP(ProjLoc,EmCost,6)+VLOOKUP($B58,EmFreightTrain,7)*VLOOKUP(ProjLoc,EmCost,7)) ->  | J58: =(D58*(1+RailAdjFactor)/FuelFreightRail)/907185*(VLOOKUP($B58,EmFreightTrain,2)*VLOOKUP(ProjLoc,EmCost,2)+VLOOKUP($B58,EmFreightTrain,3)*VLOOKUP(ProjLoc,EmCost,3)*(1+CO2Uprater)^($B58-CurrentYear)+VLOOKUP($B58,EmFreightTrain,4)*VLOOKUP(ProjLoc,EmCost,4)+VLOOKUP($B58,EmFreightTrain,5)*VLOOKUP(ProjLoc,EmCost,5)+VLOOKUP($B58,EmFreightTrain,6)*VLOOKUP(ProjLoc,EmCost,6)+VLOOKUP($B58,EmFreightTrain,7)*VLOOKUP(ProjLoc,EmCost,7)) ->  | K58: =(E58*(1+RailAdjFactor)/FuelFreightRail)/907185*(VLOOKUP($B58,EmFreightTrain,2)*VLOOKUP(ProjLoc,EmCost,2)+VLOOKUP($B58,EmFreightTrain,3)*VLOOKUP(ProjLoc,EmCost,3)*(1+CO2Uprater)^($B58-CurrentYear)+VLOOKUP($B58,EmFreightTrain,4)*VLOOKUP(ProjLoc,EmCost,4)+VLOOKUP($B58,EmFreightTrain,5)*VLOOKUP(ProjLoc,EmCost,5)+VLOOKUP($B58,EmFreightTrain,6)*VLOOKUP(ProjLoc,EmCost,6)+VLOOKUP($B58,EmFreightTrain,7)*VLOOKUP(ProjLoc,EmCost,7)) ->  | L58: =(F58*(1+RailAdjFactor)/FuelFreightRail)/907185*(VLOOKUP($B58,EmFreightTrain,2)*VLOOKUP(ProjLoc,EmCost,2)+VLOOKUP($B58,EmFreightTrain,3)*VLOOKUP(ProjLoc,EmCost,3)*(1+CO2Uprater)^($B58-CurrentYear)+VLOOKUP($B58,EmFreightTrain,4)*VLOOKUP(ProjLoc,EmCost,4)+VLOOKUP($B58,EmFreightTrain,5)*VLOOKUP(ProjLoc,EmCost,5)+VLOOKUP($B58,EmFreightTrain,6)*VLOOKUP(ProjLoc,EmCost,6)+VLOOKUP($B58,EmFreightTrain,7)*VLOOKUP(ProjLoc,EmCost,7)) ->  | M58: =I58-J58+K58-L58 ->  | N58: =$M58/(1+DiscRate)^($B58-CurrentYear) ->  | P58: =(1/907185)*(($C58*(1+RailAdjFactor)+$E58*(1+RailAdjFactorTEU))/FuelFreightRail-($D58*(1+RailAdjFactor)+$F58*(1+RailAdjFactorTEU))/FuelFreightRail)*VLOOKUP($B58,EmFreightTrain,2) ->  | Q58: =(1/907185)*(($C58*(1+RailAdjFactor)+$E58*(1+RailAdjFactorTEU))/FuelFreightRail-($D58*(1+RailAdjFactor)+$F58*(1+RailAdjFactorTEU))/FuelFreightRail)*VLOOKUP($B58,EmFreightTrain,3) ->  | R58: =(1/907185)*(($C58*(1+RailAdjFactor)+$E58*(1+RailAdjFactorTEU))/FuelFreightRail-($D58*(1+RailAdjFactor)+$F58*(1+RailAdjFactorTEU))/FuelFreightRail)*VLOOKUP($B58,EmFreightTrain,4) ->  | S58: =(1/907185)*(($C58*(1+RailAdjFactor)+$E58*(1+RailAdjFactorTEU))/FuelFreightRail-($D58*(1+RailAdjFactor)+$F58*(1+RailAdjFactorTEU))/FuelFreightRail)*VLOOKUP($B58,EmFreightTrain,5) ->  | T58: =(1/907185)*(($C58*(1+RailAdjFactor)+$E58*(1+RailAdjFactorTEU))/FuelFreightRail-($D58*(1+RailAdjFactor)+$F58*(1+RailAdjFactorTEU))/FuelFreightRail)*VLOOKUP($B58,EmFreightTrain,6) ->  | U58: =(1/907185)*(($C58*(1+RailAdjFactor)+$E58*(1+RailAdjFactorTEU))/FuelFreightRail-($D58*(1+RailAdjFactor)+$F58*(1+RailAdjFactorTEU))/FuelFreightRail)*VLOOKUP($B58,EmFreightTrain,7) ->  | V58: =(1/907185)*(($C58*(1+RailAdjFactor)+$E58*(1+RailAdjFactorTEU))/FuelFreightRail-($D58*(1+RailAdjFactor)+$F58*(1+RailAdjFactorTEU))/FuelFreightRail)*VLOOKUP($B58,EmFreightTrain,8) ->  | W58: =P58*VLOOKUP(ProjLoc,EmCost,2)/(1+DiscRate)^($B58-CurrentYear) ->  | X58: =Q58*VLOOKUP(ProjLoc,EmCost,3)*(1+CO2Uprater)^($B58-CurrentYear)/(1+DiscRate)^($B58-CurrentYear) ->  | Y58: =R58*VLOOKUP(ProjLoc,EmCost,4)/(1+DiscRate)^($B58-CurrentYear) ->  | Z58: =S58*VLOOKUP(ProjLoc,EmCost,5)/(1+DiscRate)^($B58-CurrentYear) ->  | AA58: =T58*VLOOKUP(ProjLoc,EmCost,6)/(1+DiscRate)^($B58-CurrentYear) ->  | AB58: =U58*VLOOKUP(ProjLoc,EmCost,7)/(1+DiscRate)^($B58-CurrentYear) -> 
B59: =B58+1 -> 2 | C59: 0 | D59: 0 | E59: 0 | F59: 0 | G59: 0 | H59: 0
B60: =B59+1 -> 3 | C60: 0 | D60: 0 | E60: 0 | F60: 0 | G60: 0 | H60: 0
B61: 4 | C61: 0 | D61: 0 | E61: 0 | F61: 0 | G61: 0 | H61: 0
B62: 5 | C62: 0 | D62: 0 | E62: 0 | F62: 0 | G62: 0 | H62: 0
B63: 6 | C63: 0 | D63: 0 | E63: 0 | F63: 0 | G63: 0 | H63: 0
B64: 7 | C64: 0 | D64: 0 | E64: 0 | F64: 0 | G64: 0 | H64: 0
B65: 8 | C65: 0 | D65: 0 | E65: 0 | F65: 0 | G65: 0 | H65: 0
B66: 9 | C66: 0 | D66: 0 | E66: 0 | F66: 0 | G66: 0 | H66: 0
B67: 10 | C67: 0 | D67: 0 | E67: 0 | F67: 0 | G67: 0 | H67: 0
B68: 11 | C68: 0 | D68: 0 | E68: 0 | F68: 0 | G68: 0 | H68: 0
B69: 12 | C69: 0 | D69: 0 | E69: 0 | F69: 0 | G69: 0 | H69: 0
B70: 13 | C70: 0 | D70: 0 | E70: 0 | F70: 0 | G70: 0 | H70: 0
B71: 14 | C71: 0 | D71: 0 | E71: 0 | F71: 0 | G71: 0 | H71: 0
B72: 15 | C72: 0 | D72: 0 | E72: 0 | F72: 0 | G72: 0 | H72: 0
B73: 16 | C73: 0 | D73: 0 | E73: 0 | F73: 0 | G73: 0 | H73: 0
B74: 17 | C74: 0 | D74: 0 | E74: 0 | F74: 0 | G74: 0 | H74: 0
B75: 18 | C75: 0 | D75: 0 | E75: 0 | F75: 0 | G75: 0 | H75: 0
B77: Total | N77: =SUM(N55:N75) ->  | P77: =SUM(P55:P75) -> 
B80: Drayage
C82: BULK/BREAKBULK VMT | E82: CONTAINER VMT | G82: AVERAGE SPEED | I82: BULK/BREAKBULK | K82: CONTAINER | P82: TONS EMISSIONS SAVED | W82: DOLLARS EMISSIONS SAVED
C83: (veh-miles/yr) | E83: (veh-miles/yr) | G83: (mph) | I83: EMISSIONS | K83: EMISSIONS | P83: (tons/yr) | W83: (PV $/yr)
B84: Year | I84: ($/yr) | K84: ($/yr) | M84: Constant | N84: Present
C85: No Build | D85: Build | E85: No Build | F85: Build | G85: No Build | H85: Build | I85: No Build | J85: Build | K85: No Build | L85: Build | M85: Dollars | N85: Value | P85: CO | Q85: CO2 | R85: NOX | S85: PM10 | T85: SOX | U85: VOC | V85: PM2.5 | W85: CO | X85: CO2 | Y85: NOX | Z85: PM10 | AA85: SOX | AB85: VOC
B86: =YearStart -> 0 | C86: =VMTDrayTonNB1*(1+DrayAdjFactor) -> 0 | D86: =VMTDrayTonB1*(1+DrayAdjFactor) -> 0 | E86: =VMTDrayTEUNB1*(1+DrayAdjFactor) -> 0 | F86: =VMTDrayTEUB1*(1+DrayAdjFactor) -> 0 | G86: =MPHDrayNB1 -> 0 | H86: =MPHDrayB1 -> 0 | I86: =C86/907185*(VLOOKUP(MAX($G86, 5),EmTruck1,2)*VLOOKUP(ProjLoc,EmCost,2)+VLOOKUP(MAX($G86, 5),EmTruck1,3)*VLOOKUP(ProjLoc,EmCost,3)*(1+CO2Uprater)^($B86-CurrentYear)+VLOOKUP(MAX($G86, 5),EmTruck1,4)*VLOOKUP(ProjLoc,EmCost,4)+VLOOKUP(MAX($G86, 5),EmTruck1,5)*VLOOKUP(ProjLoc,EmCost,5)+VLOOKUP(MAX($G86, 5),EmTruck1,6)*VLOOKUP(ProjLoc,EmCost,6)+VLOOKUP(MAX($G86, 5),EmTruck1,7)*VLOOKUP(ProjLoc,EmCost,7)) ->  | J86: =D86/907185*(VLOOKUP(MAX($H86, 5),EmTruck1,2)*VLOOKUP(ProjLoc,EmCost,2)+VLOOKUP(MAX($H86, 5),EmTruck1,3)*VLOOKUP(ProjLoc,EmCost,3)*(1+CO2Uprater)^($B86-CurrentYear)+VLOOKUP(MAX($H86, 5),EmTruck1,4)*VLOOKUP(ProjLoc,EmCost,4)+VLOOKUP(MAX($H86, 5),EmTruck1,5)*VLOOKUP(ProjLoc,EmCost,5)+VLOOKUP(MAX($H86, 5),EmTruck1,6)*VLOOKUP(ProjLoc,EmCost,6)+VLOOKUP(MAX($H86, 5),EmTruck1,7)*VLOOKUP(ProjLoc,EmCost,7)) ->  | K86: =E86/907185*(VLOOKUP(MAX($G86, 5),EmTruck1,2)*VLOOKUP(ProjLoc,EmCost,2)+VLOOKUP(MAX($G86, 5),EmTruck1,3)*VLOOKUP(ProjLoc,EmCost,3)*(1+CO2Uprater)^($B86-CurrentYear)+VLOOKUP(MAX($G86, 5),EmTruck1,4)*VLOOKUP(ProjLoc,EmCost,4)+VLOOKUP(MAX($G86, 5),EmTruck1,5)*VLOOKUP(ProjLoc,EmCost,5)+VLOOKUP(MAX($G86, 5),EmTruck1,6)*VLOOKUP(ProjLoc,EmCost,6)+VLOOKUP(MAX($G86, 5),EmTruck1,7)*VLOOKUP(ProjLoc,EmCost,7)) ->  | L86: =F86/907185*(VLOOKUP(MAX($H86, 5),EmTruck1,2)*VLOOKUP(ProjLoc,EmCost,2)+VLOOKUP(MAX($H86, 5),EmTruck1,3)*VLOOKUP(ProjLoc,EmCost,3)*(1+CO2Uprater)^($B86-CurrentYear)+VLOOKUP(MAX($H86, 5),EmTruck1,4)*VLOOKUP(ProjLoc,EmCost,4)+VLOOKUP(MAX($H86, 5),EmTruck1,5)*VLOOKUP(ProjLoc,EmCost,5)+VLOOKUP(MAX($H86, 5),EmTruck1,6)*VLOOKUP(ProjLoc,EmCost,6)+VLOOKUP(MAX($H86, 5),EmTruck1,7)*VLOOKUP(ProjLoc,EmCost,7)) ->  | M86: =I86-J86+K86-L86 ->  | N86: =$M86/(1+DiscRate)^($B86-CurrentYear) ->  | P86: =(1/907185)*(($C86+$E86)*VLOOKUP(MAX($G86, 5),EmTruck1,2)-($D86+$F86)*VLOOKUP(MAX($H86, 5),EmTruck1,2)) -> 0 | Q86: =(1/907185)*(($C86+$E86)*VLOOKUP(MAX($G86, 5),EmTruck1,3)-($D86+$F86)*VLOOKUP(MAX($H86, 5),EmTruck1,3)) -> 0 | R86: =(1/907185)*(($C86+$E86)*VLOOKUP(MAX($G86, 5),EmTruck1,4)-($D86+$F86)*VLOOKUP(MAX($H86, 5),EmTruck1,4)) -> 0 | S86: =(1/907185)*(($C86+$E86)*VLOOKUP(MAX($G86, 5),EmTruck1,5)-($D86+$F86)*VLOOKUP(MAX($H86, 5),EmTruck1,5)) -> 0 | T86: =(1/907185)*(($C86+$E86)*VLOOKUP(MAX($G86, 5),EmTruck1,6)-($D86+$F86)*VLOOKUP(MAX($H86, 5),EmTruck1,6)) -> 0 | U86: =(1/907185)*(($C86+$E86)*VLOOKUP(MAX($G86, 5),EmTruck1,7)-($D86+$F86)*VLOOKUP(MAX($H86, 5),EmTruck1,7)) -> 0 | V86: =(1/907185)*(($C86+$E86)*VLOOKUP(MAX($G86, 5),EmTruck1,8)-($D86+$F86)*VLOOKUP(MAX($H86, 5),EmTruck1,8)) -> 0 | W86: =P86*VLOOKUP(ProjLoc,EmCost,2)/(1+DiscRate)^($B86-CurrentYear) ->  | X86: =Q86*VLOOKUP(ProjLoc,EmCost,3)*(1+CO2Uprater)^($B86-CurrentYear)/(1+DiscRate)^($B86-CurrentYear) ->  | Y86: =R86*VLOOKUP(ProjLoc,EmCost,4)/(1+DiscRate)^($B86-CurrentYear) ->  | Z86: =S86*VLOOKUP(ProjLoc,EmCost,5)/(1+DiscRate)^($B86-CurrentYear) ->  | AA86: =T86*VLOOKUP(ProjLoc,EmCost,6)/(1+DiscRate)^($B86-CurrentYear) ->  | AB86: =U86*VLOOKUP(ProjLoc,EmCost,7)/(1+DiscRate)^($B86-CurrentYear) -> 
B87: =YearStart+20-1 -> 19 | C87: =VMTDrayTonNB20*(1+DrayAdjFactor) -> 0 | D87: =VMTDrayTonB20*(1+DrayAdjFactor) -> 0 | E87: =VMTDrayTEUNB20*(1+DrayAdjFactor) -> 0 | F87: =VMTDrayTEUB20*(1+DrayAdjFactor) -> 0 | G87: =MPHDrayNB20 -> 0 | H87: =MPHDrayB20 -> 0 | I87: =C87/907185*(VLOOKUP(MAX($G87, 5),EmTruck20,2)*VLOOKUP(ProjLoc,EmCost,2)+VLOOKUP(MAX($G87, 5),EmTruck20,3)*VLOOKUP(ProjLoc,EmCost,3)*(1+CO2Uprater)^($B87-CurrentYear)+VLOOKUP(MAX($G87, 5),EmTruck20,4)*VLOOKUP(ProjLoc,EmCost,4)+VLOOKUP(MAX($G87, 5),EmTruck20,5)*VLOOKUP(ProjLoc,EmCost,5)+VLOOKUP(MAX($G87, 5),EmTruck20,6)*VLOOKUP(ProjLoc,EmCost,6)+VLOOKUP(MAX($G87, 5),EmTruck20,7)*VLOOKUP(ProjLoc,EmCost,7)) ->  | J87: =D87/907185*(VLOOKUP(MAX($H87, 5),EmTruck20,2)*VLOOKUP(ProjLoc,EmCost,2)+VLOOKUP(MAX($H87, 5),EmTruck20,3)*VLOOKUP(ProjLoc,EmCost,3)*(1+CO2Uprater)^($B87-CurrentYear)+VLOOKUP(MAX($H87, 5),EmTruck20,4)*VLOOKUP(ProjLoc,EmCost,4)+VLOOKUP(MAX($H87, 5),EmTruck20,5)*VLOOKUP(ProjLoc,EmCost,5)+VLOOKUP(MAX($H87, 5),EmTruck20,6)*VLOOKUP(ProjLoc,EmCost,6)+VLOOKUP(MAX($H87, 5),EmTruck20,7)*VLOOKUP(ProjLoc,EmCost,7)) ->  | K87: =E87/907185*(VLOOKUP(MAX($G87, 5),EmTruck20,2)*VLOOKUP(ProjLoc,EmCost,2)+VLOOKUP(MAX($G87, 5),EmTruck20,3)*VLOOKUP(ProjLoc,EmCost,3)*(1+CO2Uprater)^($B87-CurrentYear)+VLOOKUP(MAX($G87, 5),EmTruck20,4)*VLOOKUP(ProjLoc,EmCost,4)+VLOOKUP(MAX($G87, 5),EmTruck20,5)*VLOOKUP(ProjLoc,EmCost,5)+VLOOKUP(MAX($G87, 5),EmTruck20,6)*VLOOKUP(ProjLoc,EmCost,6)+VLOOKUP(MAX($G87, 5),EmTruck20,7)*VLOOKUP(ProjLoc,EmCost,7)) ->  | L87: =F87/907185*(VLOOKUP(MAX($H87, 5),EmTruck20,2)*VLOOKUP(ProjLoc,EmCost,2)+VLOOKUP(MAX($H87, 5),EmTruck20,3)*VLOOKUP(ProjLoc,EmCost,3)*(1+CO2Uprater)^($B87-CurrentYear)+VLOOKUP(MAX($H87, 5),EmTruck20,4)*VLOOKUP(ProjLoc,EmCost,4)+VLOOKUP(MAX($H87, 5),EmTruck20,5)*VLOOKUP(ProjLoc,EmCost,5)+VLOOKUP(MAX($H87, 5),EmTruck20,6)*VLOOKUP(ProjLoc,EmCost,6)+VLOOKUP(MAX($H87, 5),EmTruck20,7)*VLOOKUP(ProjLoc,EmCost,7)) ->  | M87: =I87-J87+K87-L87 ->  | N87: =$M87/(1+DiscRate)^($B87-CurrentYear) ->  | P87: =(1/907185)*(($C87+$E87)*VLOOKUP(MAX($G87, 5),EmTruck20,2)-($D87+$F87)*VLOOKUP(MAX($H87, 5),EmTruck20,2)) -> 0 | Q87: =(1/907185)*(($C87+$E87)*VLOOKUP(MAX($G87, 5),EmTruck20,3)-($D87+$F87)*VLOOKUP(MAX($H87, 5),EmTruck20,3)) -> 0 | R87: =(1/907185)*(($C87+$E87)*VLOOKUP(MAX($G87, 5),EmTruck20,4)-($D87+$F87)*VLOOKUP(MAX($H87, 5),EmTruck20,4)) -> 0 | S87: =(1/907185)*(($C87+$E87)*VLOOKUP(MAX($G87, 5),EmTruck20,5)-($D87+$F87)*VLOOKUP(MAX($H87, 5),EmTruck20,5)) -> 0 | T87: =(1/907185)*(($C87+$E87)*VLOOKUP(MAX($G87, 5),EmTruck20,6)-($D87+$F87)*VLOOKUP(MAX($H87, 5),EmTruck20,6)) -> 0 | U87: =(1/907185)*(($C87+$E87)*VLOOKUP(MAX($G87, 5),EmTruck20,7)-($D87+$F87)*VLOOKUP(MAX($H87, 5),EmTruck20,7)) -> 0 | V87: =(1/907185)*(($C87+$E87)*VLOOKUP(MAX($G87, 5),EmTruck20,8)-($D87+$F87)*VLOOKUP(MAX($H87, 5),EmTruck20,8)) -> 0 | W87: =P87*VLOOKUP(ProjLoc,EmCost,2)/(1+DiscRate)^($B87-CurrentYear) ->  | X87: =Q87*VLOOKUP(ProjLoc,EmCost,3)*(1+CO2Uprater)^($B87-CurrentYear)/(1+DiscRate)^($B87-CurrentYear) ->  | Y87: =R87*VLOOKUP(ProjLoc,EmCost,4)/(1+DiscRate)^($B87-CurrentYear) ->  | Z87: =S87*VLOOKUP(ProjLoc,EmCost,5)/(1+DiscRate)^($B87-CurrentYear) ->  | AA87: =T87*VLOOKUP(ProjLoc,EmCost,6)/(1+DiscRate)^($B87-CurrentYear) ->  | AB87: =U87*VLOOKUP(ProjLoc,EmCost,7)/(1+DiscRate)^($B87-CurrentYear) -> 
B89: =B86+1 -> 1 | C89: =IF(TonsPerTruckNB<>0, (IF(DistTNB<>0, C27/((1+TruckAdjFactor)*DistTNB), 0)*(DraysTonTruck1+(DraysTonTruck20-DraysTonTruck1)/(20-1)*($B89-YearStart))+IF(DistRNB<>0, (C58/DistRNB), 0)*(DraysTonRail1+(DraysTonRail20-DraysTonRail1)/(20-1)*($B89-YearStart))/TonsPerTruckNB),0)*DrayDistTNB*(1+DrayAdjFactor) -> 0 | D89: =IF(TonsPerTruckB<>0, (IF(DistTB<>0, D27/((1+TruckAdjFactor)*DistTB), 0)*(DraysTonTruck1+(DraysTonTruck20-DraysTonTruck1)/(20-1)*($B89-YearStart))+IF(DistRB<>0, (D58/DistRB), 0)*(DraysTonRail1+(DraysTonRail20-DraysTonRail1)/(20-1)*($B89-YearStart))/TonsPerTruckB), 0)*DrayDistTB*(1+DrayAdjFactor) -> 0 | E89: =IF(TEUPerTruckNB<>0, (IF(TEUDistTNB<>0, E27/((1+TruckAdjFactorTEU)*TEUDistTNB), 0)*(DraysTEUTruck1+(DraysTEUTruck20-DraysTEUTruck1)/(20-1)*($B89-YearStart))+IF(TEUDistRNB<>0, E58/(TEUDistRNB*TonsPerTEUNB), 0)*(DraysTEURail1+(DraysTEUTruck20-DraysTEUTruck1)/(20-1)*($B89-YearStart))/TEUPerTruckNB), 0)*DrayDistTNB*(1+DrayAdjFactor) -> 0 | F89: =IF(TEUPerTruckB<>0, (IF(TEUDistTB<>0, F27/((1+TruckAdjFactorTEU)*TEUDistTB), 0)*(DraysTEUTruck1+(DraysTEUTruck20-DraysTEUTruck1)/(20-1)*($B89-YearStart))+IF(TEUDistRB<>0, F58/(TEUDistRB*TonsPerTEUB), 0)*(DraysTEURail1+(DraysTEURail20-DraysTEURail1)/(20-1)*($B89-YearStart))/TEUPerTruckB), 0)*DrayDistTB*(1+DrayAdjFactor) -> 0 | G89: =TREND(G86:G87,B86:B87,B89) -> 0 | H89: =TREND(H86:H87,B86:B87,B89) -> 0 | I89: =C89/907185*(VLOOKUP(MAX($G89, 5),EmTruck1,2)*VLOOKUP(ProjLoc,EmCost,2)+VLOOKUP(MAX($G89, 5),EmTruck1,3)*VLOOKUP(ProjLoc,EmCost,3)*(1+CO2Uprater)^($B89-CurrentYear)+VLOOKUP(MAX($G89, 5),EmTruck1,4)*VLOOKUP(ProjLoc,EmCost,4)+VLOOKUP(MAX($G89, 5),EmTruck1,5)*VLOOKUP(ProjLoc,EmCost,5)+VLOOKUP(MAX($G89, 5),EmTruck1,6)*VLOOKUP(ProjLoc,EmCost,6)+VLOOKUP(MAX($G89, 5),EmTruck1,7)*VLOOKUP(ProjLoc,EmCost,7)) ->  | J89: =D89/907185*(VLOOKUP(MAX($H89, 5),EmTruck1,2)*VLOOKUP(ProjLoc,EmCost,2)+VLOOKUP(MAX($H89, 5),EmTruck1,3)*VLOOKUP(ProjLoc,EmCost,3)*(1+CO2Uprater)^($B89-CurrentYear)+VLOOKUP(MAX($H89, 5),EmTruck1,4)*VLOOKUP(ProjLoc,EmCost,4)+VLOOKUP(MAX($H89, 5),EmTruck1,5)*VLOOKUP(ProjLoc,EmCost,5)+VLOOKUP(MAX($H89, 5),EmTruck1,6)*VLOOKUP(ProjLoc,EmCost,6)+VLOOKUP(MAX($H89, 5),EmTruck1,7)*VLOOKUP(ProjLoc,EmCost,7)) ->  | K89: =E89/907185*(VLOOKUP(MAX($G89, 5),EmTruck1,2)*VLOOKUP(ProjLoc,EmCost,2)+VLOOKUP(MAX($G89, 5),EmTruck1,3)*VLOOKUP(ProjLoc,EmCost,3)*(1+CO2Uprater)^($B89-CurrentYear)+VLOOKUP(MAX($G89, 5),EmTruck1,4)*VLOOKUP(ProjLoc,EmCost,4)+VLOOKUP(MAX($G89, 5),EmTruck1,5)*VLOOKUP(ProjLoc,EmCost,5)+VLOOKUP(MAX($G89, 5),EmTruck1,6)*VLOOKUP(ProjLoc,EmCost,6)+VLOOKUP(MAX($G89, 5),EmTruck1,7)*VLOOKUP(ProjLoc,EmCost,7)) ->  | L89: =F89/907185*(VLOOKUP(MAX($H89, 5),EmTruck1,2)*VLOOKUP(ProjLoc,EmCost,2)+VLOOKUP(MAX($H89, 5),EmTruck1,3)*VLOOKUP(ProjLoc,EmCost,3)*(1+CO2Uprater)^($B89-CurrentYear)+VLOOKUP(MAX($H89, 5),EmTruck1,4)*VLOOKUP(ProjLoc,EmCost,4)+VLOOKUP(MAX($H89, 5),EmTruck1,5)*VLOOKUP(ProjLoc,EmCost,5)+VLOOKUP(MAX($H89, 5),EmTruck1,6)*VLOOKUP(ProjLoc,EmCost,6)+VLOOKUP(MAX($H89, 5),EmTruck1,7)*VLOOKUP(ProjLoc,EmCost,7)) ->  | M89: =I89-J89+K89-L89 ->  | N89: =$M89/(1+DiscRate)^($B89-CurrentYear) ->  | P89: =(1/907185)*(($C89+$E89)*VLOOKUP(MAX($G89, 5),EmTruck1,2)-($D89+$F89)*VLOOKUP(MAX($H89, 5),EmTruck1,2)) -> 0 | Q89: =(1/907185)*(($C89+$E89)*VLOOKUP(MAX($G89, 5),EmTruck1,3)-($D89+$F89)*VLOOKUP(MAX($H89, 5),EmTruck1,3)) -> 0 | R89: =(1/907185)*(($C89+$E89)*VLOOKUP(MAX($G89, 5),EmTruck1,4)-($D89+$F89)*VLOOKUP(MAX($H89, 5),EmTruck1,4)) -> 0 | S89: =(1/907185)*(($C89+$E89)*VLOOKUP(MAX($G89, 5),EmTruck1,5)-($D89+$F89)*VLOOKUP(MAX($H89, 5),EmTruck1,5)) -> 0 | T89: =(1/907185)*(($C89+$E89)*VLOOKUP(MAX($G89, 5),EmTruck1,6)-($D89+$F89)*VLOOKUP(MAX($H89, 5),EmTruck1,6)) -> 0 | U89: =(1/907185)*(($C89+$E89)*VLOOKUP(MAX($G89, 5),EmTruck1,7)-($D89+$F89)*VLOOKUP(MAX($H89, 5),EmTruck1,7)) -> 0 | V89: =(1/907185)*(($C89+$E89)*VLOOKUP(MAX($G89, 5),EmTruck1,8)-($D89+$F89)*VLOOKUP(MAX($H89, 5),EmTruck1,8)) -> 0 | W89: =P89*VLOOKUP(ProjLoc,EmCost,2)/(1+DiscRate)^($B89-CurrentYear) ->  | X89: =Q89*VLOOKUP(ProjLoc,EmCost,3)*(1+CO2Uprater)^($B89-CurrentYear)/(1+DiscRate)^($B89-CurrentYear) ->  | Y89: =R89*VLOOKUP(ProjLoc,EmCost,4)/(1+DiscRate)^($B89-CurrentYear) ->  | Z89: =S89*VLOOKUP(ProjLoc,EmCost,5)/(1+DiscRate)^($B89-CurrentYear) ->  | AA89: =T89*VLOOKUP(ProjLoc,EmCost,6)/(1+DiscRate)^($B89-CurrentYear) ->  | AB89: =U89*VLOOKUP(ProjLoc,EmCost,7)/(1+DiscRate)^($B89-CurrentYear) -> 
B90: =B89+1 -> 2 | C90: 0 | D90: 0 | E90: 0 | F90: 0 | G90: =TREND(G86:G87,B86:B87,B90) -> 0 | H90: =TREND(H86:H87,B86:B87,B90) -> 0 | M90: =I90-J90+K90-L90 ->  | P90: 0 | Q90: 0 | R90: 0 | S90: 0 | T90: 0 | U90: 0 | V90: 0
B91: =B90+1 -> 3 | C91: 0 | D91: 0 | E91: 0 | F91: 0 | G91: =TREND(G86:G87,B86:B87,B91) -> 0 | H91: =TREND(H86:H87,B86:B87,B91) -> 0 | P91: 0 | Q91: 0 | R91: 0 | S91: 0 | T91: 0 | U91: 0 | V91: 0
B92: 4 | C92: 0 | D92: 0 | E92: 0 | F92: 0 | G92: =TREND(G86:G87,B86:B87,B92) -> 0 | H92: =TREND(H86:H87,B86:B87,B92) -> 0 | P92: 0 | Q92: 0 | R92: 0 | S92: 0 | T92: 0 | U92: 0 | V92: 0
B93: 5 | C93: 0 | D93: 0 | E93: 0 | F93: 0 | G93: =TREND(G86:G87,B86:B87,B93) -> 0 | H93: =TREND(H86:H87,B86:B87,B93) -> 0 | P93: 0 | Q93: 0 | R93: 0 | S93: 0 | T93: 0 | U93: 0 | V93: 0
B94: 6 | C94: 0 | D94: 0 | E94: 0 | F94: 0 | G94: =TREND(G86:G87,B86:B87,B94) -> 0 | H94: =TREND(H86:H87,B86:B87,B94) -> 0 | P94: 0 | Q94: 0 | R94: 0 | S94: 0 | T94: 0 | U94: 0 | V94: 0
B95: 7 | C95: 0 | D95: 0 | E95: 0 | F95: 0 | G95: =TREND(G86:G87,B86:B87,B95) -> 0 | H95: =TREND(H86:H87,B86:B87,B95) -> 0 | I95: =C95/907185*(VLOOKUP(MAX($G95, 5),EmTruck20,2)*VLOOKUP(ProjLoc,EmCost,2)+VLOOKUP(MAX($G95, 5),EmTruck20,3)*VLOOKUP(ProjLoc,EmCost,3)*(1+CO2Uprater)^($B95-CurrentYear)+VLOOKUP(MAX($G95, 5),EmTruck20,4)*VLOOKUP(ProjLoc,EmCost,4)+VLOOKUP(MAX($G95, 5),EmTruck20,5)*VLOOKUP(ProjLoc,EmCost,5)+VLOOKUP(MAX($G95, 5),EmTruck20,6)*VLOOKUP(ProjLoc,EmCost,6)+VLOOKUP(MAX($G95, 5),EmTruck20,7)*VLOOKUP(ProjLoc,EmCost,7)) ->  | J95: =D95/907185*(VLOOKUP(MAX($H95, 5),EmTruck20,2)*VLOOKUP(ProjLoc,EmCost,2)+VLOOKUP(MAX($H95, 5),EmTruck20,3)*VLOOKUP(ProjLoc,EmCost,3)*(1+CO2Uprater)^($B95-CurrentYear)+VLOOKUP(MAX($H95, 5),EmTruck20,4)*VLOOKUP(ProjLoc,EmCost,4)+VLOOKUP(MAX($H95, 5),EmTruck20,5)*VLOOKUP(ProjLoc,EmCost,5)+VLOOKUP(MAX($H95, 5),EmTruck20,6)*VLOOKUP(ProjLoc,EmCost,6)+VLOOKUP(MAX($H95, 5),EmTruck20,7)*VLOOKUP(ProjLoc,EmCost,7)) ->  | K95: =E95/907185*(VLOOKUP(MAX($G95, 5),EmTruck20,2)*VLOOKUP(ProjLoc,EmCost,2)+VLOOKUP(MAX($G95, 5),EmTruck20,3)*VLOOKUP(ProjLoc,EmCost,3)*(1+CO2Uprater)^($B95-CurrentYear)+VLOOKUP(MAX($G95, 5),EmTruck20,4)*VLOOKUP(ProjLoc,EmCost,4)+VLOOKUP(MAX($G95, 5),EmTruck20,5)*VLOOKUP(ProjLoc,EmCost,5)+VLOOKUP(MAX($G95, 5),EmTruck20,6)*VLOOKUP(ProjLoc,EmCost,6)+VLOOKUP(MAX($G95, 5),EmTruck20,7)*VLOOKUP(ProjLoc,EmCost,7)) ->  | L95: =F95/907185*(VLOOKUP(MAX($H95, 5),EmTruck20,2)*VLOOKUP(ProjLoc,EmCost,2)+VLOOKUP(MAX($H95, 5),EmTruck20,3)*VLOOKUP(ProjLoc,EmCost,3)*(1+CO2Uprater)^($B95-CurrentYear)+VLOOKUP(MAX($H95, 5),EmTruck20,4)*VLOOKUP(ProjLoc,EmCost,4)+VLOOKUP(MAX($H95, 5),EmTruck20,5)*VLOOKUP(ProjLoc,EmCost,5)+VLOOKUP(MAX($H95, 5),EmTruck20,6)*VLOOKUP(ProjLoc,EmCost,6)+VLOOKUP(MAX($H95, 5),EmTruck20,7)*VLOOKUP(ProjLoc,EmCost,7)) ->  | M95: =I95-J95+K95-L95 ->  | P95: =(1/907185)*(($C95+$E95)*VLOOKUP(MAX($G95, 5),EmTruck20,2)-($D95+$F95)*VLOOKUP(MAX($H95, 5),EmTruck20,2)) -> 0 | Q95: =(1/907185)*(($C95+$E95)*VLOOKUP(MAX($G95, 5),EmTruck20,3)-($D95+$F95)*VLOOKUP(MAX($H95, 5),EmTruck20,3)) -> 0 | R95: =(1/907185)*(($C95+$E95)*VLOOKUP(MAX($G95, 5),EmTruck20,4)-($D95+$F95)*VLOOKUP(MAX($H95, 5),EmTruck20,4)) -> 0 | S95: =(1/907185)*(($C95+$E95)*VLOOKUP(MAX($G95, 5),EmTruck20,5)-($D95+$F95)*VLOOKUP(MAX($H95, 5),EmTruck20,5)) -> 0 | T95: =(1/907185)*(($C95+$E95)*VLOOKUP(MAX($G95, 5),EmTruck20,6)-($D95+$F95)*VLOOKUP(MAX($H95, 5),EmTruck20,6)) -> 0 | U95: =(1/907185)*(($C95+$E95)*VLOOKUP(MAX($G95, 5),EmTruck20,7)-($D95+$F95)*VLOOKUP(MAX($H95, 5),EmTruck20,7)) -> 0 | V95: =(1/907185)*(($C95+$E95)*VLOOKUP(MAX($G95, 5),EmTruck20,8)-($D95+$F95)*VLOOKUP(MAX($H95, 5),EmTruck20,8)) -> 0
B96: 8 | C96: 0 | D96: 0 | E96: 0 | F96: 0 | G96: =TREND(G86:G87,B86:B87,B96) -> 0 | H96: =TREND(H86:H87,B86:B87,B96) -> 0 | M96: =I96-J96+K96-L96 ->  | P96: 0 | Q96: 0 | R96: 0 | S96: 0 | T96: 0 | U96: 0 | V96: 0
B97: 9 | C97: 0 | D97: 0 | E97: 0 | F97: 0 | G97: =TREND(G86:G87,B86:B87,B97) -> 0 | H97: =TREND(H86:H87,B86:B87,B97) -> 0 | P97: 0 | Q97: 0 | R97: 0 | S97: 0 | T97: 0 | U97: 0 | V97: 0
B98: 10 | C98: 0 | D98: 0 | E98: 0 | F98: 0 | G98: =TREND(G86:G87,B86:B87,B98) -> 0 | H98: =TREND(H86:H87,B86:B87,B98) -> 0 | P98: 0 | Q98: 0 | R98: 0 | S98: 0 | T98: 0 | U98: 0 | V98: 0
B99: 11 | C99: 0 | D99: 0 | E99: 0 | F99: 0 | G99: =TREND(G86:G87,B86:B87,B99) -> 0 | H99: =TREND(H86:H87,B86:B87,B99) -> 0 | P99: 0 | Q99: 0 | R99: 0 | S99: 0 | T99: 0 | U99: 0 | V99: 0
B100: 12 | C100: 0 | D100: 0 | E100: 0 | F100: 0 | G100: =TREND(G86:G87,B86:B87,B100) -> 0 | H100: =TREND(H86:H87,B86:B87,B100) -> 0 | P100: 0 | Q100: 0 | R100: 0 | S100: 0 | T100: 0 | U100: 0 | V100: 0
B101: 13 | C101: 0 | D101: 0 | E101: 0 | F101: 0 | G101: =TREND(G86:G87,B86:B87,B101) -> 0 | H101: =TREND(H86:H87,B86:B87,B101) -> 0 | P101: 0 | Q101: 0 | R101: 0 | S101: 0 | T101: 0 | U101: 0 | V101: 0
B102: 14 | C102: 0 | D102: 0 | E102: 0 | F102: 0 | G102: =TREND(G86:G87,B86:B87,B102) -> 0 | H102: =TREND(H86:H87,B86:B87,B102) -> 0 | P102: 0 | Q102: 0 | R102: 0 | S102: 0 | T102: 0 | U102: 0 | V102: 0
B103: 15 | C103: 0 | D103: 0 | E103: 0 | F103: 0 | G103: =TREND(G86:G87,B86:B87,B103) -> 0 | H103: =TREND(H86:H87,B86:B87,B103) -> 0 | P103: 0 | Q103: 0 | R103: 0 | S103: 0 | T103: 0 | U103: 0 | V103: 0
B104: 16 | C104: 0 | D104: 0 | E104: 0 | F104: 0 | G104: =TREND(G86:G87,B86:B87,B104) -> 0 | H104: =TREND(H86:H87,B86:B87,B104) -> 0 | P104: 0 | Q104: 0 | R104: 0 | S104: 0 | T104: 0 | U104: 0 | V104: 0
B105: 17 | C105: 0 | D105: 0 | E105: 0 | F105: 0 | G105: =TREND(G86:G87,B86:B87,B105) -> 0 | H105: =TREND(H86:H87,B86:B87,B105) -> 0 | P105: 0 | Q105: 0 | R105: 0 | S105: 0 | T105: 0 | U105: 0 | V105: 0
B106: 18 | C106: 0 | D106: 0 | E106: 0 | F106: 0 | G106: =TREND(G86:G87,B86:B87,B106) -> 0 | H106: =TREND(H86:H87,B86:B87,B106) -> 0 | P106: 0 | Q106: 0 | R106: 0 | S106: 0 | T106: 0 | U106: 0 | V106: 0
B108: Total | N108: =SUM(N86:N106) ->  | P108: =SUM(P86:P106) -> 0 | Q108: 0 | R108: 0 | S108: 0 | T108: 0 | U108: 0 | V108: 0
B111: Terminal Efficiency
E113: RAIL DWELL TIME | K113: RAIL DWELL EMISSIONS | P113: TONS EMISSIONS SAVED | W113: DOLLARS EMISSIONS SAVED
E114: (hrs/yr) | K114: ($/yr) | P114: (tons/yr) | W114: (PV $/yr)
B115: Year | M115: Constant | N115: Present
E116: No Build | F116: Build | K116: No Build | L116: Build | M116: Dollars | N116: Value | P116: CO | Q116: CO2 | R116: NOX | S116: PM10 | T116: SOX | U116: VOC | V116: PM2.5 | W116: CO | X116: CO2 | Y116: NOX | Z116: PM10 | AA116: SOX | AB116: VOC
B117: =YearStart -> 0 | E117: =DwellRNB1 -> 0 | F117: =DwellRB1 -> 0 | K117: =E117*IdleFreightRail/907185*(VLOOKUP($B117,EmFreightTrain,2)*VLOOKUP(ProjLoc,EmCost,2)+VLOOKUP($B117,EmFreightTrain,3)*VLOOKUP(ProjLoc,EmCost,3)*(1+CO2Uprater)^($B117-CurrentYear)+VLOOKUP($B117,EmFreightTrain,4)*VLOOKUP(ProjLoc,EmCost,4)+VLOOKUP($B117,EmFreightTrain,5)*VLOOKUP(ProjLoc,EmCost,5)+VLOOKUP($B117,EmFreightTrain,6)*VLOOKUP(ProjLoc,EmCost,6)+VLOOKUP($B117,EmFreightTrain,7)*VLOOKUP(ProjLoc,EmCost,7)) ->  | L117: =F117*IdleFreightRail/907185*(VLOOKUP($B117,EmFreightTrain,2)*VLOOKUP(ProjLoc,EmCost,2)+VLOOKUP($B117,EmFreightTrain,3)*VLOOKUP(ProjLoc,EmCost,3)*(1+CO2Uprater)^($B117-CurrentYear)+VLOOKUP($B117,EmFreightTrain,4)*VLOOKUP(ProjLoc,EmCost,4)+VLOOKUP($B117,EmFreightTrain,5)*VLOOKUP(ProjLoc,EmCost,5)+VLOOKUP($B117,EmFreightTrain,6)*VLOOKUP(ProjLoc,EmCost,6)+VLOOKUP($B117,EmFreightTrain,7)*VLOOKUP(ProjLoc,EmCost,7)) ->  | M117: =K117-L117 ->  | N117: =$M117/(1+DiscRate)^($B117-CurrentYear) ->  | P117: =(1/907185)*(($E117-$F117)*IdleFreightRail*VLOOKUP($B117,EmFreightTrain,2)) ->  | Q117: =(1/907185)*(($E117-$F117)*IdleFreightRail*VLOOKUP($B117,EmFreightTrain,3)) ->  | R117: =(1/907185)*(($E117-$F117)*IdleFreightRail*VLOOKUP($B117,EmFreightTrain,4)) ->  | S117: =(1/907185)*(($E117-$F117)*IdleFreightRail*VLOOKUP($B117,EmFreightTrain,5)) ->  | T117: =(1/907185)*(($E117-$F117)*IdleFreightRail*VLOOKUP($B117,EmFreightTrain,6)) ->  | U117: =(1/907185)*(($E117-$F117)*IdleFreightRail*VLOOKUP($B117,EmFreightTrain,7)) ->  | V117: =(1/907185)*(($E117-$F117)*IdleFreightRail*VLOOKUP($B117,EmFreightTrain,8)) ->  | W117: =P117*VLOOKUP(ProjLoc,EmCost,2)/(1+DiscRate)^($B117-CurrentYear) ->  | X117: =Q117*VLOOKUP(ProjLoc,EmCost,3)*(1+CO2Uprater)^($B117-CurrentYear)/(1+DiscRate)^($B117-CurrentYear) ->  | Y117: =R117*VLOOKUP(ProjLoc,EmCost,4)/(1+DiscRate)^($B117-CurrentYear) ->  | Z117: =S117*VLOOKUP(ProjLoc,EmCost,5)/(1+DiscRate)^($B117-CurrentYear) ->  | AA117: =T117*VLOOKUP(ProjLoc,EmCost,6)/(1+DiscRate)^($B117-CurrentYear) ->  | AB117: =U117*VLOOKUP(ProjLoc,EmCost,7)/(1+DiscRate)^($B117-CurrentYear) -> 
B118: =YearStart+20-1 -> 19 | E118: =DwellRNB20 -> 0 | F118: =DwellRB20 -> 0 | K118: =E118*IdleFreightRail/907185*(VLOOKUP($B118,EmFreightTrain,2)*VLOOKUP(ProjLoc,EmCost,2)+VLOOKUP($B118,EmFreightTrain,3)*VLOOKUP(ProjLoc,EmCost,3)*(1+CO2Uprater)^($B118-CurrentYear)+VLOOKUP($B118,EmFreightTrain,4)*VLOOKUP(ProjLoc,EmCost,4)+VLOOKUP($B118,EmFreightTrain,5)*VLOOKUP(ProjLoc,EmCost,5)+VLOOKUP($B118,EmFreightTrain,6)*VLOOKUP(ProjLoc,EmCost,6)+VLOOKUP($B118,EmFreightTrain,7)*VLOOKUP(ProjLoc,EmCost,7)) ->  | L118: =F118*IdleFreightRail/907185*(VLOOKUP($B118,EmFreightTrain,2)*VLOOKUP(ProjLoc,EmCost,2)+VLOOKUP($B118,EmFreightTrain,3)*VLOOKUP(ProjLoc,EmCost,3)*(1+CO2Uprater)^($B118-CurrentYear)+VLOOKUP($B118,EmFreightTrain,4)*VLOOKUP(ProjLoc,EmCost,4)+VLOOKUP($B118,EmFreightTrain,5)*VLOOKUP(ProjLoc,EmCost,5)+VLOOKUP($B118,EmFreightTrain,6)*VLOOKUP(ProjLoc,EmCost,6)+VLOOKUP($B118,EmFreightTrain,7)*VLOOKUP(ProjLoc,EmCost,7)) ->  | N118: =$M118/(1+DiscRate)^($B118-CurrentYear) ->  | P118: =(1/907185)*(($E118-$F118)*IdleFreightRail*VLOOKUP($B118,EmFreightTrain,2)) ->  | Q118: =(1/907185)*(($E118-$F118)*IdleFreightRail*VLOOKUP($B118,EmFreightTrain,3)) ->  | R118: =(1/907185)*(($E118-$F118)*IdleFreightRail*VLOOKUP($B118,EmFreightTrain,4)) ->  | S118: =(1/907185)*(($E118-$F118)*IdleFreightRail*VLOOKUP($B118,EmFreightTrain,5)) ->  | T118: =(1/907185)*(($E118-$F118)*IdleFreightRail*VLOOKUP($B118,EmFreightTrain,6)) ->  | U118: =(1/907185)*(($E118-$F118)*IdleFreightRail*VLOOKUP($B118,EmFreightTrain,7)) ->  | V118: =(1/907185)*(($E118-$F118)*IdleFreightRail*VLOOKUP($B118,EmFreightTrain,8)) -> 
B120: =B117+1 -> 1 | E120: =(IF(AND(DistRNB<>0, (TonsPerRailcarNB*RailcarPerTrainNB)<>0), (C58/DistRNB)*(TLTonRail1+(TLTonRail20-TLTonRail1)/(20-1)*($B120-YearStart))/(TonsPerRailcarNB*RailcarPerTrainNB), 0)+IF(AND(TEUDistRNB<>0, (TEUPerRailcarNB*TEURailcarPerTrainNB)<>0), (E58/(TEUDistRNB*TonsPerTEUNB))*(TLTEURail1+(TLTEURail20-TLTEURail1)/(20-1)*($B120-YearStart))/(TEUPerRailcarNB*TEURailcarPerTrainNB), 0))*IdleRailNB*(1+IdleGrowthRNB)^($B120-YearStart)/60 -> 0 | F120: =(IF(AND(DistRB<>0, (TonsPerRailcarB*RailcarPerTrainB)<>0), (D58/DistRB)*(TLTonRail1+(TLTonRail20-TLTonRail1)/(20-1)*($B120-YearStart))/(TonsPerRailcarB*RailcarPerTrainB), 0)+IF(AND(TEUDistRB<>0, (TEUPerRailcarB*TEURailcarPerTrainB)<>0), (F58/(TEUDistRB*TonsPerTEUB))*(TLTEURail1+(TLTEURail20-TLTEURail1)/(20-1)*($B120-YearStart))/(TEUPerRailcarB*TEURailcarPerTrainB), 0))*IdleRailB*(1+IdleGrowthRB)^($B120-YearStart)/60 -> 0 | K120: =E120*IdleFreightRail/907185*(VLOOKUP($B120,EmFreightTrain,2)*VLOOKUP(ProjLoc,EmCost,2)+VLOOKUP($B120,EmFreightTrain,3)*VLOOKUP(ProjLoc,EmCost,3)*(1+CO2Uprater)^($B120-CurrentYear)+VLOOKUP($B120,EmFreightTrain,4)*VLOOKUP(ProjLoc,EmCost,4)+VLOOKUP($B120,EmFreightTrain,5)*VLOOKUP(ProjLoc,EmCost,5)+VLOOKUP($B120,EmFreightTrain,6)*VLOOKUP(ProjLoc,EmCost,6)+VLOOKUP($B120,EmFreightTrain,7)*VLOOKUP(ProjLoc,EmCost,7)) ->  | L120: =F120*IdleFreightRail/907185*(VLOOKUP($B120,EmFreightTrain,2)*VLOOKUP(ProjLoc,EmCost,2)+VLOOKUP($B120,EmFreightTrain,3)*VLOOKUP(ProjLoc,EmCost,3)*(1+CO2Uprater)^($B120-CurrentYear)+VLOOKUP($B120,EmFreightTrain,4)*VLOOKUP(ProjLoc,EmCost,4)+VLOOKUP($B120,EmFreightTrain,5)*VLOOKUP(ProjLoc,EmCost,5)+VLOOKUP($B120,EmFreightTrain,6)*VLOOKUP(ProjLoc,EmCost,6)+VLOOKUP($B120,EmFreightTrain,7)*VLOOKUP(ProjLoc,EmCost,7)) ->  | M120: =K120-L120 ->  | P120: =(1/907185)*(($E120-$F120)*IdleFreightRail*VLOOKUP($B120,EmFreightTrain,2)) ->  | Q120: =(1/907185)*(($E120-$F120)*IdleFreightRail*VLOOKUP($B120,EmFreightTrain,3)) ->  | R120: =(1/907185)*(($E120-$F120)*IdleFreightRail*VLOOKUP($B120,EmFreightTrain,4)) ->  | S120: =(1/907185)*(($E120-$F120)*IdleFreightRail*VLOOKUP($B120,EmFreightTrain,5)) ->  | T120: =(1/907185)*(($E120-$F120)*IdleFreightRail*VLOOKUP($B120,EmFreightTrain,6)) ->  | U120: =(1/907185)*(($E120-$F120)*IdleFreightRail*VLOOKUP($B120,EmFreightTrain,7)) ->  | V120: =(1/907185)*(($E120-$F120)*IdleFreightRail*VLOOKUP($B120,EmFreightTrain,8)) ->  | W120: =P120*VLOOKUP(ProjLoc,EmCost,2)/(1+DiscRate)^($B120-CurrentYear) ->  | X120: =Q120*VLOOKUP(ProjLoc,EmCost,3)*(1+CO2Uprater)^($B120-CurrentYear)/(1+DiscRate)^($B120-CurrentYear) ->  | Y120: =R120*VLOOKUP(ProjLoc,EmCost,4)/(1+DiscRate)^($B120-CurrentYear) ->  | Z120: =S120*VLOOKUP(ProjLoc,EmCost,5)/(1+DiscRate)^($B120-CurrentYear) ->  | AA120: =T120*VLOOKUP(ProjLoc,EmCost,6)/(1+DiscRate)^($B120-CurrentYear) ->  | AB120: =U120*VLOOKUP(ProjLoc,EmCost,7)/(1+DiscRate)^($B120-CurrentYear) -> 
B121: =B120+1 -> 2 | E121: 0 | F121: 0 | M121: =K121-L121 ->  | W121: =P121*VLOOKUP(ProjLoc,EmCost,2)/(1+DiscRate)^($B121-CurrentYear) ->  | X121: =Q121*VLOOKUP(ProjLoc,EmCost,3)*(1+CO2Uprater)^($B121-CurrentYear)/(1+DiscRate)^($B121-CurrentYear) ->  | Y121: =R121*VLOOKUP(ProjLoc,EmCost,4)/(1+DiscRate)^($B121-CurrentYear) ->  | Z121: =S121*VLOOKUP(ProjLoc,EmCost,5)/(1+DiscRate)^($B121-CurrentYear) ->  | AA121: =T121*VLOOKUP(ProjLoc,EmCost,6)/(1+DiscRate)^($B121-CurrentYear) ->  | AB121: =U121*VLOOKUP(ProjLoc,EmCost,7)/(1+DiscRate)^($B121-CurrentYear) -> 
B122: =B121+1 -> 3 | E122: 0 | F122: 0
B123: 4 | E123: 0 | F123: 0
B124: 5 | E124: 0 | F124: 0
B125: 6 | E125: 0 | F125: 0
B126: 7 | E126: 0 | F126: 0
B127: 8 | E127: 0 | F127: 0
B128: 9 | E128: 0 | F128: 0
B129: 10 | E129: 0 | F129: 0
B130: 11 | E130: 0 | F130: 0
B131: 12 | E131: 0 | F131: 0
B132: 13 | E132: 0 | F132: 0
B133: 14 | E133: 0 | F133: 0
B134: 15 | E134: 0 | F134: 0
B135: 16 | E135: 0 | F135: 0
B136: 17 | E136: 0 | F136: 0
B137: 18 | E137: 0 | F137: 0
B139: Total | N139: =SUM(N117:N137) ->  | P139: =SUM(P117:P137) -> 
K142: Present Value = Future Value (in Constant Dollars)
L143: ( 1 + Real Discount Rate) ^ Year

Sheet Final Calculations
B1: Final Calculations
B3: This sheet performs the final calculations before presenting the summary results.
B4: Both net present value and internal rate of return on investment are calculated.
B14: A | C14: NET PRESENT VALUE CALCULATION | K14: B | L14: INTERNAL RATE OF RETURN ON INVESTMENT AND PAYBACK PERIOD
C19: PRESENT VALUE OF USER BENEFITS | F19: Present | G19: Present | L19: USER BENEFITS IN CONSTANT DOLLARS | P19: Total
F20: Value | G20: Value | O20: Total User | P20: Project | Q20: ANNUAL | R20: CUMULATIVE | T20: Years | U20: ANNUAL
C21: Transportation | E21: Vehicle | F21: of Total | G21: of Total | H21: NET | L21: Transportation | N21: Vehicle | O21: Benefits in | P21: Costs in | Q21: RETURNS | R21: RETURNS | T21: After | U21: RETURNS
B22: Year | C22: Cost | D22: Accident | E22: Emission | F22: User | G22: Project | H22: PRESENT | K22: Year | L22: Cost | M22: Accident | N22: Emission | O22: Constant | P22: Constant | Q22: ON | R22: AFTER | T22: Construction | U22: ON
C23: Savings | D23: Reductions | E23: Reductions | F23: Benefits | G23: Costs | H23: VALUE | L23: Savings | M23: Reductions | N23: Reductions | O23: Dollars | P23: Dollars | Q23: INVESTMENT | R23: PROJ OPENS | T23: Begins | U23: INVESTMENT
B24: Construction Period | K24: Construction Period | T24: =YearConstruct -> 0 | U24: =SUMIF($K$25:$K$53, $T24, $Q$25:$Q$53) -> 
B25: =YearConstruct -> 0 | F25: =SUM(C25:E25) -> 0 | G25: ='1) Project Information'!AF14 -> 0 | H25: =F25-G25 -> 0 | K25: =YearConstruct -> 0 | O25: =SUM(L25:N25) -> 0 | P25: ='1) Project Information'!AE14 -> 0 | Q25: =O25-P25 -> 0 | T25: =T24+1 -> 1 | U25: =SUMIF($K$25:$K$53, $T25, $Q$25:$Q$53) -> 
B26: =B25+1 -> 1 | F26: 0 | G26: ='1) Project Information'!AF15 -> 0 | H26: =F26-G26 -> 0 | K26: =K25+1 -> 1 | O26: 0 | P26: ='1) Project Information'!AE15 -> 0 | Q26: =O26-P26 -> 0 | T26: =T25+1 -> 2 | U26: =SUMIF($K$25:$K$53, $T26, $Q$25:$Q$53) -> 
B27: =B26+1 -> 2 | F27: 0 | G27: ='1) Project Information'!AF16 -> 0 | H27: 0 | K27: =K26+1 -> 2 | O27: 0 | P27: ='1) Project Information'!AE16 -> 0 | Q27: 0 | T27: 3
B28: 3 | F28: 0 | G28: ='1) Project Information'!AF17 -> 0 | H28: 0 | K28: 3 | O28: 0 | P28: ='1) Project Information'!AE17 -> 0 | Q28: 0 | T28: 4
B29: 4 | F29: 0 | G29: ='1) Project Information'!AF18 -> 0 | H29: 0 | K29: 4 | O29: 0 | P29: ='1) Project Information'!AE18 -> 0 | Q29: 0 | T29: 5
B30: 5 | F30: 0 | G30: ='1) Project Information'!AF19 -> 0 | H30: 0 | K30: 5 | O30: 0 | P30: ='1) Project Information'!AE19 -> 0 | Q30: 0 | T30: 6
B31: 6 | F31: 0 | G31: ='1) Project Information'!AF20 -> 0 | H31: 0 | K31: 6 | O31: 0 | P31: ='1) Project Information'!AE20 -> 0 | Q31: 0 | T31: 7
B32: 7 | F32: 0 | G32: ='1) Project Information'!AF21 -> 0 | H32: 0 | K32: 7 | O32: 0 | P32: ='1) Project Information'!AE21 -> 0 | Q32: 0 | T32: 8
B33: Project Open | K33: Project Open | T33: 9
B34: =YearStart -> 0 | C34: ='Shipper Costs'!W26 -> 0 | D34: ='Accident Costs'!R24 -> 0 | E34: =Emissions!AJ24 ->  | F34: =SUM(C34:E34) ->  | G34: ='1) Project Information'!AF23 -> 0 | H34: =F34-G34 ->  | K34: =YearStart -> 0 | L34: ='Shipper Costs'!Y26 -> 0 | M34: ='Accident Costs'!T24 -> 0 | N34: =Emissions!AL24 ->  | O34: =SUM(L34:N34) ->  | P34: ='1) Project Information'!AE23 -> 0 | Q34: =O34-P34 ->  | R34: =Q34 ->  | T34: 10
B35: =B34+1 -> 1 | C35: ='Shipper Costs'!W29 -> 0 | D35: ='Accident Costs'!R27 -> 0 | E35: =Emissions!AJ27 ->  | G35: ='1) Project Information'!AF24 -> 0 | H35: =F35-G35 ->  | K35: =K34+1 -> 1 | L35: ='Shipper Costs'!Y29 -> 0 | M35: ='Accident Costs'!T27 -> 0 | N35: =Emissions!AL27 ->  | P35: ='1) Project Information'!AE24 -> 0 | Q35: =O35-P35 ->  | R35: =R34+Q35 ->  | T35: 11
B36: =B35+1 -> 2 | C36: ='Shipper Costs'!W30 -> 0 | D36: ='Accident Costs'!R28 -> 0 | E36: =Emissions!AJ28 ->  | G36: ='1) Project Information'!AF25 -> 0 | K36: =K35+1 -> 2 | L36: ='Shipper Costs'!Y30 -> 0 | M36: ='Accident Costs'!T28 -> 0 | N36: =Emissions!AL28 ->  | P36: ='1) Project Information'!AE25 -> 0 | R36: =R35+Q36 ->  | T36: 12
B37: 3 | C37: ='Shipper Costs'!W31 -> 0 | D37: ='Accident Costs'!R29 -> 0 | E37: =Emissions!AJ29 ->  | G37: ='1) Project Information'!AF26 -> 0 | K37: 3 | L37: ='Shipper Costs'!Y31 -> 0 | M37: ='Accident Costs'!T29 -> 0 | N37: =Emissions!AL29 ->  | P37: ='1) Project Information'!AE26 -> 0 | T37: 13
B38: 4 | C38: ='Shipper Costs'!W32 -> 0 | D38: ='Accident Costs'!R30 -> 0 | E38: =Emissions!AJ30 ->  | G38: ='1) Project Information'!AF27 -> 0 | K38: 4 | L38: ='Shipper Costs'!Y32 -> 0 | M38: ='Accident Costs'!T30 -> 0 | N38: =Emissions!AL30 ->  | P38: ='1) Project Information'!AE27 -> 0 | T38: 14
B39: 5 | C39: ='Shipper Costs'!W33 -> 0 | D39: ='Accident Costs'!R31 -> 0 | E39: =Emissions!AJ31 ->  | G39: ='1) Project Information'!AF28 -> 0 | K39: 5 | L39: ='Shipper Costs'!Y33 -> 0 | M39: ='Accident Costs'!T31 -> 0 | N39: =Emissions!AL31 ->  | P39: ='1) Project Information'!AE28 -> 0 | T39: 15
B40: 6 | C40: ='Shipper Costs'!W34 -> 0 | D40: ='Accident Costs'!R32 -> 0 | E40: =Emissions!AJ32 ->  | G40: ='1) Project Information'!AF29 -> 0 | K40: 6 | L40: ='Shipper Costs'!Y34 -> 0 | M40: ='Accident Costs'!T32 -> 0 | N40: =Emissions!AL32 ->  | P40: ='1) Project Information'!AE29 -> 0 | T40: 16
B41: 7 | C41: ='Shipper Costs'!W35 -> 0 | D41: ='Accident Costs'!R33 -> 0 | E41: =Emissions!AJ33 ->  | G41: ='1) Project Information'!AF30 -> 0 | K41: 7 | L41: ='Shipper Costs'!Y35 -> 0 | M41: ='Accident Costs'!T33 -> 0 | N41: =Emissions!AL33 ->  | P41: ='1) Project Information'!AE30 -> 0 | T41: 17
B42: 8 | C42: ='Shipper Costs'!W36 -> 0 | D42: ='Accident Costs'!R34 -> 0 | E42: =Emissions!AJ34 ->  | G42: ='1) Project Information'!AF31 -> 0 | K42: 8 | L42: ='Shipper Costs'!Y36 -> 0 | M42: ='Accident Costs'!T34 -> 0 | N42: =Emissions!AL34 ->  | P42: ='1) Project Information'!AE31 -> 0 | T42: 18
B43: 9 | C43: ='Shipper Costs'!W37 -> 0 | D43: ='Accident Costs'!R35 -> 0 | E43: =Emissions!AJ35 ->  | G43: ='1) Project Information'!AF32 -> 0 | K43: 9 | L43: ='Shipper Costs'!Y37 -> 0 | M43: ='Accident Costs'!T35 -> 0 | N43: =Emissions!AL35 ->  | P43: ='1) Project Information'!AE32 -> 0 | T43: 19
B44: 10 | C44: ='Shipper Costs'!W38 -> 0 | D44: ='Accident Costs'!R36 -> 0 | E44: =Emissions!AJ36 ->  | G44: ='1) Project Information'!AF33 -> 0 | K44: 10 | L44: ='Shipper Costs'!Y38 -> 0 | M44: ='Accident Costs'!T36 -> 0 | N44: =Emissions!AL36 ->  | P44: ='1) Project Information'!AE33 -> 0 | T44: 20 | U44: 0
B45: 11 | C45: ='Shipper Costs'!W39 -> 0 | D45: ='Accident Costs'!R37 -> 0 | E45: =Emissions!AJ37 ->  | G45: ='1) Project Information'!AF34 -> 0 | K45: 11 | L45: ='Shipper Costs'!Y39 -> 0 | M45: ='Accident Costs'!T37 -> 0 | N45: =Emissions!AL37 ->  | P45: ='1) Project Information'!AE34 -> 0 | T45: 21 | U45: 0
B46: 12 | C46: ='Shipper Costs'!W40 -> 0 | D46: ='Accident Costs'!R38 -> 0 | E46: =Emissions!AJ38 ->  | G46: ='1) Project Information'!AF35 -> 0 | K46: 12 | L46: ='Shipper Costs'!Y40 -> 0 | M46: ='Accident Costs'!T38 -> 0 | N46: =Emissions!AL38 ->  | P46: ='1) Project Information'!AE35 -> 0 | T46: 22 | U46: 0
B47: 13 | C47: ='Shipper Costs'!W41 -> 0 | D47: ='Accident Costs'!R39 -> 0 | E47: =Emissions!AJ39 ->  | G47: ='1) Project Information'!AF36 -> 0 | K47: 13 | L47: ='Shipper Costs'!Y41 -> 0 | M47: ='Accident Costs'!T39 -> 0 | N47: =Emissions!AL39 ->  | P47: ='1) Project Information'!AE36 -> 0 | T47: 23 | U47: 0
B48: 14 | C48: ='Shipper Costs'!W42 -> 0 | D48: ='Accident Costs'!R40 -> 0 | E48: =Emissions!AJ40 ->  | G48: ='1) Project Information'!AF37 -> 0 | K48: 14 | L48: ='Shipper Costs'!Y42 -> 0 | M48: ='Accident Costs'!T40 -> 0 | N48: =Emissions!AL40 ->  | P48: ='1) Project Information'!AE37 -> 0 | T48: 24 | U48: 0
B49: 15 | C49: ='Shipper Costs'!W43 -> 0 | D49: ='Accident Costs'!R41 -> 0 | E49: =Emissions!AJ41 ->  | G49: ='1) Project Information'!AF38 -> 0 | K49: 15 | L49: ='Shipper Costs'!Y43 -> 0 | M49: ='Accident Costs'!T41 -> 0 | N49: =Emissions!AL41 ->  | P49: ='1) Project Information'!AE38 -> 0 | T49: 25 | U49: 0
B50: 16 | C50: ='Shipper Costs'!W44 -> 0 | D50: ='Accident Costs'!R42 -> 0 | E50: =Emissions!AJ42 ->  | G50: ='1) Project Information'!AF39 -> 0 | K50: 16 | L50: ='Shipper Costs'!Y44 -> 0 | M50: ='Accident Costs'!T42 -> 0 | N50: =Emissions!AL42 ->  | P50: ='1) Project Information'!AE39 -> 0 | T50: 26 | U50: 0
B51: 17 | C51: ='Shipper Costs'!W45 -> 0 | D51: ='Accident Costs'!R43 -> 0 | E51: =Emissions!AJ43 ->  | G51: ='1) Project Information'!AF40 -> 0 | K51: 17 | L51: ='Shipper Costs'!Y45 -> 0 | M51: ='Accident Costs'!T43 -> 0 | N51: =Emissions!AL43 ->  | P51: ='1) Project Information'!AE40 -> 0 | T51: 27 | U51: 0
B52: 18 | C52: ='Shipper Costs'!W46 -> 0 | D52: ='Accident Costs'!R44 -> 0 | E52: =Emissions!AJ44 ->  | G52: ='1) Project Information'!AF41 -> 0 | K52: 18 | L52: ='Shipper Costs'!Y46 -> 0 | M52: ='Accident Costs'!T44 -> 0 | N52: =Emissions!AL44 ->  | P52: ='1) Project Information'!AE41 -> 0
B53: 19 | C53: ='Shipper Costs'!W27 -> 0 | D53: ='Accident Costs'!R25 -> 0 | E53: =Emissions!AJ25 ->  | G53: ='1) Project Information'!AF42 -> 0 | K53: 19 | L53: ='Shipper Costs'!Y27 -> 0 | M53: ='Accident Costs'!T25 -> 0 | N53: =Emissions!AL25 ->  | P53: ='1) Project Information'!AE42 -> 0 | T53: Internal Rate | W53: The INTERNAL RATE OF RETURN (IRR) is the discount rate at which benefits and costs break even (are equal). For a project
T54: of Return | U54: =IF(SUM(U24:U51)=0,"N/A",IRR(U24:U51)) ->  | W54: with an IRR greater than the Discount Rate, benefits are greater than costs, and the project has a positive economic value. The
B55: Total | C55: =SUM(C34:C53) -> 0 | D55: =SUM(D34:D53) -> 0 | E55: =SUM(E34:E53) ->  | F55: =SUM(F25:F53) ->  | G55: =SUM(G25:G53) -> 0 | H55: =SUM(H25:H53) ->  | K55: Total | L55: =SUM(L34:L53) -> 0 | M55: =SUM(M34:M53) -> 0 | N55: =SUM(N34:N53) ->  | O55: =SUM(O25:O53) ->  | P55: =SUM(P25:P53) -> 0 | Q55: =SUM(Q25:Q53) ->  | W55: IRR allows projects with different costs, different benefit flows, and different time periods to be compared.
T57: Payback | W57: The PAYBACK PERIOD is the number of years it takes for the net benefits (benefits minus costs) to equal, or payback, the initial
P58: Total Construction Costs | R58: =ABS(SUM(Q25:Q32)) -> 0 | T58: Period | U58: =IF(R58=0,"N/A",IF(R58<R34,1,IF(R58>R53,21,(LOOKUP(R58,R34:R53,K34:K53)-YearStart+1)))) -> N/A | W58: construction costs. For a project with a Payback Period longer than the life-cycle of the project, initial construction costs are not
C59: tons | D59: $ PV | W59: recovered. The Payback Period varies inversely with the Benefit-Cost Ratio: shorter Payback Period yields higher Benefit-Cost.
C60: =Emissions!AN46 ->  | D60: =Emissions!AU46 ->  | E60: CO Saved
C61: =Emissions!AO46 ->  | D61: =Emissions!AV46 ->  | E61: CO2 Saved
C62: =Emissions!AP46 ->  | D62: =Emissions!AW46 ->  | E62: NOX Saved
C63: =Emissions!AQ46 ->  | D63: =Emissions!AX46 ->  | E63: PM10 Saved
C64: =Emissions!AT46 ->  | E64: PM2.5 Saved
C65: =Emissions!AR46 ->  | D65: =Emissions!AY46 ->  | E65: SOX Saved
C66: =Emissions!AS46 ->  | D66: =Emissions!AZ46 ->  | E66: VOC Saved

Sheet PARAMETERS
B1: Parameters
B3: This page contains all economic values and rate tables.
B4: To update economic values automatically, change "Economic Update Factor." | AF4: Travel Demand Tables | AQ4: Operating Cost Tables | AX4: Accident Tables | BO4: Emissions Tables | DA4: Pavement Adjustments (used only for pavement projects) | DO4: Weaving Adjustments (used only for freeway | DV4: TMS Adjustments (used only for ramp metering, ramp metering signal coordination, incident | EI4: Reliability Tables (used for calculating travel time reliability
DO5: connector, HOV connector, and HOV drop ramp projects) | DV5: management, traveler information projects, AVL, transit priority, and BRT projects) | EI5: impacts if included)
B7: General Economic Parameters | I7: Mode Types | Y7: Project Types
AG8: DEMAND FOR TRAVEL IN PEAK PERIOD | AR8: FUEL CONSUMPTION RATES | AY8: HIGHWAY INJURY SEVERITY FREQUENCY | BG8: RATES FOR NON-HIGHWAY ACCIDENT EVENTS | BP8: HIGHWAY EMISSIONS FACTORS (g/mi) | CB8: HIGHWAY EMISSIONS FACTORS (g/mi) | CO8: HEALTH COST OF TRANSPORTATION EMISSIONS | DB8: PAVEMENT DETERIORATION | DI8: VEHICLE OPERATING SPEED | DP8: VEHICLE OPERATING SPEED | DW8: PEAK PERIOD SPEED, VOLUME, AND NON-HIGHWAY BENEFITS | EJ8: C11 RELIABILITY PARAMETERS
C9: Year of Current Dollars for Model | F9: 2024 | J9: Bus | Z9: Highway Capacity Expansion | AC9: Please select a type of highway project | AG9: (percent of total daily travel) | AR9: (gal/veh-mi) | AY9: (percent of injuries) | BG9: (events/million veh-mi) | BP9: Model Year 2024 | CB9: Model Year 2044 | CO9: ($/ton) | DB9: (IRI in inches/mile) | DI9: (percent adjustment) | DP9: (percent adjustment) | DW9: (percent adjustment) | EJ9: (coefficients for standard deviation calculations)
C10: Economic Update Factor (Using GDP Deflator) | F10: 1.1469 | H10: 1 | J10: Pass Train | Z10: General Highway | AB10: GenHwy
J11: Light Rail | Z11: HOV Lane Addition | AB11: HOV | AC11: Enter HOV restriction in section 1B | AG11: Number of | AH11: Urban | AR11: Speed | AS11: Auto* | AT11: Truck | AY11: Event | AZ11: Urban | BA11: Suburban | BB11: Rural | BC11: Average | BG11: Event | BH11: Pass Train | BI11: Light Rail | BJ11: Bus | BK11: Freight Rail | BP11: Mode | BQ11: Speed | BR11: CO | BS11: CO2 | BT11: NOX | BU11: PM10 | BV11: SOX | BW11: VOC | BX11: PM2.5 | CB11: Mode | CC11: Speed | CD11: CO | CE11: CO2 | CF11: NOX | CG11: PM10 | CH11: SOX | CI11: VOC | CJ11: PM2.5 | CO11: Area | CP11: Proj Loc | CQ11: CO | CR11: CO2e | CS11: NOX | CT11: PM10 | CU11: SOX | CV11: VOC | DC11: Year 20, By Loading | DP11: Percent | DQ11: Freeway | DR11: HOV | DW11: TMS | DX11: Without | DZ11: With | EB11: Non-Highway Benefits | EE11: Total | EJ11: AlphaTTI | EK11: BetaTTI | EL11: AlphaSTD | EM11: BetaSTD
C12: Real Discount Rate | F12: 0.07 | H12: 2 | J12: Highway | Z12: HOT Lane Addition | AB12: HOT | AC12: Include toll payers as HOVs & check AVOs | AG12: Hours in | AH12: So. California | AJ12: No. California | AL12: Rural | AR12: 5 | AS12: 0.0515 | AT12: 0.14 | AY12: Severe Injury (A) | AZ12: =ROUND((11713+2488)/277160,4) -> 0.0512 | BA12: =ROUND((11713+2488)/277160,4) -> 0.0512 | BB12: =ROUND((11713+2488)/277160,4) -> 0.0512 | BC12: =ROUND((11713+2488)/277160,4) -> 0.0512 | BG12: Fatality | BH12: 0.0804 | BI12: 0.2416 | BJ12: 0.0372 | BK12: 1.0368 | BP12: Auto | BQ12: 0 | BR12: 3.5182 | BS12: 78.9185 | BT12: 0.3056 | BU12: 0.0022 | BV12: 0.0008 | BW12: 0.39 | BX12: 0.002 | CB12: Auto | CC12: 0 | CD12: 1.7535 | CE12: 60.2289 | CF12: 0.1686 | CG12: 0.0008 | CH12: 0.0006 | CI12: 0.1451 | CJ12: 0.0008 | CO12: LA/South Coast | CP12: 1 | CS12: 19958 | CT12: 971333 | CU12: 54522 | DB12: Year 0 | DC12: Light | DD12: Medium | DE12: Heavy | DI12: IRI | DJ12: Auto | DK12: Truck | DP12: Weaving | DQ12: Conn | DR12: Project | DW12: Strategy | DX12: Speed | DY12: Volume | DZ12: Speed | EA12: Volume | EB12: TT | EC12: VOC | ED12: Em | EE12: Benefit | EJ12: 1.0274 | EK12: 1.2204 | EL12: 0.71 | EM12: 0.56
Z13: Passing Lane | AB13: Passing | AC13: Enter a truck speed in section 1B | AG13: Peak Period | AH13: Fwy/Exp | AI13: Other | AJ13: Fwy/Exp | AK13: Other | AL13: Fwy/Exp | AM13: Other | AR13: 6 | AS13: 0.0501 | AT13: 0.1377 | AY13: Other Visible Injury (B) | AZ13: =ROUND((60380+9746)/277160,4) -> 0.253 | BA13: =ROUND((60380+9746)/277160,4) -> 0.253 | BB13: =ROUND((60380+9746)/277160,4) -> 0.253 | BC13: =ROUND((60380+9746)/277160,4) -> 0.253 | BG13: Injury | BH13: 0.2855 | BI13: 2.9209 | BJ13: 3.5526 | BK13: 7.3121 | BQ13: 5 | BR13: 1.3616 | BS13: 555.4365 | BT13: 0.0959 | BU13: 0.007 | BV13: 0.0055 | BW13: 0.0868 | BX13: 0.0065 | CC13: 5 | CD13: 0.5559 | CE13: 330.9034 | CF13: 0.0223 | CG13: 0.0019 | CH13: 0.0033 | CI13: 0.0249 | CJ13: 0.0018 | CO13: CA Urban Area | CP13: 2 | CS13: 19958 | CT13: 971333 | CU13: 54522 | DB13: 0 | DC13: 125 | DD13: 150 | DE13: 350 | DI13: 0 | DJ13: 1 | DK13: 1.025 | DP13: 0 | DQ13: 1 | DR13: 1 | DW13: AMoth | DX13: 1.024390244 | DY13: 0.9503320629 | DZ13: 1.022648084 | EA13: 0.9502478565 | EB13: -5.048265471 | EC13: 12.81200477 | ED13: 1.368537764 | EE13: 0.736497545
Z14: Intersection | AB14: Intersect | AC14: Remember to run model for both roads | AG14: 1 | AH14: 0.085 | AI14: 0.085 | AJ14: 0.085 | AK14: 0.085 | AL14: 0.085 | AM14: 0.085 | AR14: 7 | AS14: 0.0488 | AT14: 0.1355 | AY14: Complaint of Pain (C) | AZ14: =ROUND((174210+18623)/277160,4) -> 0.6957 | BA14: =ROUND((174210+18623)/277160,4) -> 0.6957 | BB14: =ROUND((174210+18623)/277160,4) -> 0.6957 | BC14: =ROUND((174210+18623)/277160,4) -> 0.6957 | BG14: All Accidents | BH14: 0.3128 | BI14: 4.1374 | BJ14: 2.0523 | BK14: 13.2505 | BQ14: 6 | BR14: 1.3409 | BS14: 538.7039 | BT14: 0.0933 | BU14: 0.0065 | BV14: 0.0053 | BW14: 0.0797 | BX14: 0.006 | CC14: 6 | CD14: 0.5576 | CE14: 324.7042 | CF14: 0.0221 | CG14: 0.0018 | CH14: 0.0032 | CI14: 0.0233 | CJ14: 0.0016 | CO14: CA Rural Area | CP14: 3 | CS14: 19958 | CT14: 971333 | CU14: 54522 | DB14: 25 | DC14: 150 | DD14: 200 | DE14: 500 | DI14: 25 | DJ14: 1 | DK14: 1.025 | DP14: 0.002 | DQ14: 0.982 | DR14: 0.988 | DW14: AMsev | DX14: 1.530973451 | DY14: 0.9385815808 | DZ14: 1.533923304 | EA14: 0.9365252325 | EB14: 1.205596712 | EC14: 1.379528678 | ED14: -0.3652658395 | EE14: 1
Z15: Truck Only Lane | AB15: TruckLane | AC15: Remember to run macro for truck lane | AG15: 2 | AH15: 0.168 | AI15: 0.168 | AJ15: 0.168 | AK15: 0.168 | AL15: 0.168 | AM15: 0.168 | AR15: 8 | AS15: 0.0476 | AT15: 0.1333 | BQ15: 7 | BR15: 1.3206 | BS15: 522.4754 | BT15: 0.0907 | BU15: 0.006 | BV15: 0.0052 | BW15: 0.0732 | BX15: 0.0055 | CC15: 7 | CD15: 0.5594 | CE15: 318.621 | CF15: 0.0219 | CG15: 0.0017 | CH15: 0.0031 | CI15: 0.0217 | CJ15: 0.0015 | DB15: 50 | DC15: 175 | DD15: 250 | DE15: 675 | DI15: 50 | DJ15: 1 | DK15: 1.025 | DP15: 0.004 | DQ15: 0.964 | DR15: 0.976 | DW15: IMoth | DX15: 0.8763197587 | DY15: 1.178741497 | DZ15: 0.9793459552 | EA15: 0.9556060017 | EB15: 0.5127996725 | EC15: 0.148212878 | ED15: 0.05879892443 | EE15: 0.736497545 | EI15: Source: Pricing and Travel Time Reliability Enhancements in the
Z16: Bypass | AB16: Bypass | AC16: Remember to run model for both roads | AG16: 3 | AH16: 0.25 | AI16: 0.25 | AJ16: 0.25 | AK16: 0.25 | AL16: 0.25 | AM16: 0.25 | AR16: 9 | AS16: 0.0464 | AT16: 0.1312 | BQ16: 8 | BR16: 1.3005 | BS16: 506.7358 | BT16: 0.0881 | BU16: 0.0055 | BV16: 0.005 | BW16: 0.0672 | BX16: 0.0051 | CC16: 8 | CD16: 0.5612 | CE16: 312.6518 | CF16: 0.0218 | CG16: 0.0016 | CH16: 0.0031 | CI16: 0.0203 | CJ16: 0.0014 | CQ16: CO2e Uprater | CR16: 0.02 | CS16: increase in value per year | DB16: 75 | DC16: 200 | DD16: 300 | DE16: 750 | DI16: 75 | DJ16: 1 | DK16: 1.025 | DP16: 0.006 | DQ16: 0.945 | DR16: 0.964 | DW16: IMsev | DX16: 1.006389776 | DY16: 0.9724862862 | DZ16: 1.009584665 | EA16: 0.9461055622 | EB16: 0.2957044886 | EC16: 0.3126114503 | ED16: 0.3020072069 | EE16: 1 | EJ16: SANDAG Activity-Based Travel Model: Final Report, 2016.
B17: Travel Time Parameters | I17: Highway Operations Parameters | R17: Active Transportation Parameters | Z17: Queuing | AB17: Queuing | AC17: Add arrival rate & check departure rate in 1B | AG17: 4 | AH17: 0.328 | AI17: 0.328 | AJ17: 0.328 | AK17: 0.328 | AL17: 0.328 | AM17: 0.328 | AR17: 10 | AS17: 0.0452 | AT17: 0.1291 | AX17: Source: 2017 SWITRS Annual Report, Table 8C | BF17: Sources: USDOT,Transportation Statistics Annual Report, Table 2-33, 2010 to 2019 average | BQ17: 9 | BR17: 1.2807 | BS17: 491.4703 | BT17: 0.0857 | BU17: 0.0051 | BV17: 0.0049 | BW17: 0.0617 | BX17: 0.0047 | CC17: 9 | CD17: 0.563 | CE17: 306.7945 | CF17: 0.0216 | CG17: 0.0014 | CH17: 0.003 | CI17: 0.0189 | CJ17: 0.0013 | DB17: 100 | DC17: 275 | DD17: 400 | DE17: 750 | DI17: 100 | DJ17: 1 | DK17: 1.025 | DP17: 0.008 | DQ17: 0.927 | DR17: 0.952 | DW17: NoAdj | DX17: 1 | DY17: 1 | DZ17: 1 | EA17: 1 | EB17: 0 | EC17: 0 | ED17: 0 | EE17: 1
E18: Value | F18: Units | M18: Value | N18: Units | Z18: Pavement | AB18: Pavement | AC18: Enter pavement condition in section 1B | AG18: 5 | AH18: 0.403 | AI18: 0.403 | AJ18: 0.403 | AK18: 0.403 | AL18: 0.403 | AM18: 0.403 | AR18: 11 | AS18: 0.0429 | AT18: 0.1238 | BG18: FRA, Office of Safety Analysis, Table 1.13, 2011 to 2020 CY average | BQ18: 10 | BR18: 1.2613 | BS18: 476.6647 | BT18: 0.0833 | BU18: 0.0047 | BV18: 0.0047 | BW18: 0.0567 | BX18: 0.0043 | CC18: 10 | CD18: 0.5647 | CE18: 301.0469 | CF18: 0.0214 | CG18: 0.0014 | CH18: 0.003 | CI18: 0.0177 | CJ18: 0.0012 | DB18: 125 | DC18: 325 | DD18: 475 | DE18: 750 | DI18: 125 | DJ18: 1 | DK18: 1.025 | DP18: 0.01 | DQ18: 0.909 | DR18: 0.939 | DW18: ORoth | DX18: =1/1.025 -> 0.9756097561 | DY18: =1/0.967507287790243 -> 1.033583946 | DZ18: 1 | EA18: 1 | EB18: -0.07356647791 | EC18: -0.03071615219 | ED18: -0.0696029926 | EG18: 27
C19: Statewide Average Hourly Wage | E19: =32.94*ValueUpdate -> 37.778886 | F19: $/hr | H19: 3 | J19: Maximum V/C Ratio | M19: 1.56 | N19: - | Q19: 16 | S19: General Travel Activity Characteristics Parameters | U19: Value | V19: Units | AG19: 6 | AH19: 0.474 | AI19: 0.474 | AJ19: 0.474 | AK19: 0.474 | AL19: 0.474 | AM19: 0.474 | AR19: 12 | AS19: 0.0407 | AT19: 0.1186 | BQ19: 11 | BR19: 1.2223 | BS19: 452.58 | BT19: 0.0804 | BU19: 0.0043 | BV19: 0.0045 | BW19: 0.0518 | BX19: 0.0039 | CC19: 11 | CD19: 0.5479 | CE19: 285.9535 | CF19: 0.0206 | CG19: 0.0012 | CH19: 0.0028 | CI19: 0.0161 | CJ19: 0.0011 | CN19: Sources: McCubbin and Delucchi, 1996 for emissions other than CO2e | DB19: 150 | DC19: 400 | DD19: 575 | DE19: 750 | DI19: 150 | DJ19: 1 | DK19: 1.013 | DP19: 0.012 | DQ19: 0.891 | DR19: 0.927 | DW19: ORsev | DX19: =1/1.05014749262537 -> 0.952247191 | DY19: =1/0.972697289554735 -> 1.028069072 | DZ19: 1 | EA19: 1 | EB19: -0.001481505335 | EC19: -0.001323833569 | ED19: 5.67437418 | EG19: 27
T20: Cycling Days per Year | U20: 365 | V20: days | Z20: Rail or Transit Cap Expansion | AC20: Please select a type of rail or transit project | AG20: 7 | AH20: 0.542 | AI20: 0.542 | AJ20: 0.542 | AK20: 0.542 | AL20: 0.542 | AM20: 0.542 | AR20: 13 | AS20: 0.0387 | AT20: 0.1137 | BQ20: 12 | BR20: 1.1846 | BS20: 429.7124 | BT20: 0.0775 | BU20: 0.0039 | BV20: 0.0042 | BW20: 0.0473 | BX20: 0.0036 | CC20: 12 | CD20: 0.5315 | CE20: 271.6169 | CF20: 0.0199 | CG20: 0.0011 | CH20: 0.0027 | CI20: 0.0147 | CJ20: 0.001 | CO20: Interagency Working Group on Social Cost of Carbon, United States Government, 2021 for CO2e | DB20: 175 | DC20: 500 | DD20: 700 | DE20: 750 | DI20: 175 | DJ20: 1 | DK20: 1 | DP20: 0.014 | DQ20: 0.873 | DR20: 0.915 | DW20: RMoth | DX20: 1 | DY20: 1 | DZ20: 1.025 | EA20: 0.9675072878 | EB20: -0.07356647791 | EC20: -0.03071615219 | ED20: -0.0696029926 | EE20: 1 | EJ20: RELIABILITY RATIO
C21: Heavy and Light Truck Drivers | J21: Percent ADT in Peak Period | N21: % | T21: Walking Days per Year | U21: 365 | V21: days | Z21: Passenger Rail | AB21: PassRail | AC21: Enter data in both sections 1B & 1E | AG21: 8 | AH21: 0.608 | AI21: 0.608 | AJ21: 0.608 | AK21: 0.608 | AL21: 0.608 | AM21: 0.608 | AR21: 14 | AS21: 0.0367 | AT21: 0.109 | BQ21: 13 | BR21: 1.148 | BS21: 408.0001 | BT21: 0.0748 | BU21: 0.0036 | BV21: 0.004 | BW21: 0.0433 | BX21: 0.0033 | CC21: 13 | CD21: 0.5156 | CE21: 257.9991 | CF21: 0.0192 | CG21: 0.001 | CH21: 0.0026 | CI21: 0.0134 | CJ21: 0.0009 | DB21: 200 | DC21: 575 | DD21: 750 | DE21: 750 | DI21: 200 | DJ21: 1 | DK21: 0.98 | DP21: 0.016 | DQ21: 0.855 | DR21: 0.903 | DW21: RMsev | DX21: 1 | DY21: 1 | DZ21: 1.050147493 | EA21: 0.9726972896 | EB21: -0.001481505335 | EC21: -0.001323833569 | ED21: 5.67437418 | EE21: 1 | EJ21: (value of reliability relative to value of time)
D22: Average Hourly Wage | E22: =25.06*ValueUpdate -> 28.741314 | F22: $/hr | H22: 3 | J22: Percent ADT in Average Peak Hour | N22: % | T22: School Days per Year | U22: 180 | V22: days | Z22: Light-Rail (LRT) | AB22: LRT | AC22: Enter data in both sections 1B & 1E | AG22: 9 | AH22: 0.671 | AI22: 0.671 | AJ22: 0.671 | AK22: 0.671 | AL22: 0.671 | AM22: 0.671 | AR22: 15 | AS22: 0.0349 | AT22: 0.1044 | AY22: NUMBER OF FATALITIES | BG22: COST OF NON-HIGHWAY ACCIDENT EVENTS | BQ22: 14 | BR22: 1.1126 | BS22: 387.3849 | BT22: 0.0721 | BU22: 0.0033 | BV22: 0.0038 | BW22: 0.0396 | BX22: 0.003 | CC22: 14 | CD22: 0.5002 | CE22: 245.064 | CF22: 0.0185 | CG22: 0.0009 | CH22: 0.0024 | CI22: 0.0122 | CJ22: 0.0009 | DB22: 225 | DC22: 650 | DD22: 750 | DE22: 750 | DI22: 225 | DJ22: 1 | DK22: 0.949 | DP22: 0.018 | DQ22: 0.836 | DR22: 0.891 | DW22: TIoth | DX22: 1 | DY22: 1 | DZ22: 1.015463918 | EA22: 0.9691308177 | EB22: -0.1102658587 | EC22: -0.1187270477 | ED22: -0.3518002468 | EE22: 1
D23: Benefits and Costs | E23: =WageTruck*(32.42/21.65-1)*ValueUpdate -> 16.39796574 | F23: $/hr | H23: 4 | Z23: Bus | AB23: Bus | AC23: Enter data in both sections 1B & 1E | AG23: 10 | AH23: 0.734 | AI23: 0.734 | AJ23: 0.734 | AK23: 0.734 | AL23: 0.734 | AM23: 0.734 | AR23: 16 | AS23: 0.0351 | AT23: 0.1029 | AY23: (events/crash) | BG23: ($/event) | BQ23: 15 | BR23: 1.0783 | BS23: 367.8114 | BT23: 0.0696 | BU23: 0.003 | BV23: 0.0036 | BW23: 0.0361 | BX23: 0.0027 | CC23: 15 | CD23: 0.4853 | CE23: 232.7774 | CF23: 0.0178 | CG23: 0.0008 | CH23: 0.0023 | CI23: 0.0111 | CJ23: 0.0008 | DB23: 250 | DC23: 750 | DD23: 750 | DE23: 750 | DI23: 250 | DJ23: 1 | DK23: 0.919 | DP23: 0.02 | DQ23: 0.789 | DR23: 0.879 | DW23: TIsev | DX23: 1 | DY23: 1 | DZ23: 1.005899705 | EA23: 0.9718304881 | EB23: -0.391225726 | EC23: -0.3916022882 | ED23: -0.3518002468 | EE23: 1 | EJ23: Mode | EK23: Value
J24: Annualization Factor | M24: 365 | N24: days/yr | S24: Vehicle Statistics | Z24: Hwy-Rail Grade Crossing | AB24: HwyRail | AC24: Put hwy design in 1B, safety in 1C & crossing in 1D | AG24: 11 | AH24: 0.79 | AI24: 0.79 | AJ24: 0.79 | AK24: 0.79 | AL24: 0.79 | AM24: 0.79 | AR24: 17 | AS24: 0.0352 | AT24: 0.1015 | BQ24: 16 | BR24: 1.0942 | BS24: 366.761 | BT24: 0.0702 | BU24: 0.0029 | BV24: 0.0036 | BW24: 0.0348 | BX24: 0.0026 | CC24: 16 | CD24: 0.5039 | CE24: 236.956 | CF24: 0.0184 | CG24: 0.0008 | CH24: 0.0023 | CI24: 0.0109 | CJ24: 0.0008 | CO24: PASSENGER TRAIN EMISSIONS FACTORS | DB24: 275 | DC24: 750 | DD24: 750 | DE24: 750 | DI24: 275 | DJ24: 0.991 | DK24: 0.89 | DP24: 0.022 | DQ24: 0.747 | DR24: 0.867 | EJ24: Auto | EK24: 0.8
C25: Value of Time | T25: Average Vehicle Speed | U25: 25 | V25: mph | AG25: 12 | AH25: 0.843 | AI25: 0.843 | AJ25: 0.843 | AK25: 0.843 | AL25: 0.843 | AM25: 0.843 | AR25: 18 | AS25: 0.0354 | AT25: 0.1 | AY25: Crash Type | AZ25: Urban | BA25: Suburban | BB25: Rural | BC25: Average | BG25: Event | BH25: Pass Train | BI25: Light Rail | BJ25: Bus | BK25: Freight Rail | BQ25: 17 | BR25: 1.1103 | BS25: 365.7136 | BT25: 0.0708 | BU25: 0.0028 | BV25: 0.0036 | BW25: 0.0335 | BX25: 0.0025 | CC25: 17 | CD25: 0.5232 | CE25: 241.2096 | CF25: 0.019 | CG25: 0.0008 | CH25: 0.0024 | CI25: 0.0107 | CJ25: 0.0008 | CO25: (g/train-mile) | DB25: 300 | DC25: 750 | DD25: 750 | DE25: 750 | DI25: 300 | DJ25: 0.981 | DK25: 0.862 | DP25: 0.024 | DQ25: 0.706 | DR25: 0.855 | EJ25: Truck | EK25: 1.1
D26: Automobile | E26: 21.8 | F26: $/hr/per | H26: 5 | N26: Capacity | O26: Dep. Rate | T26: Average Vehicle Occupancy | U26: 1.51 | V26: persons / veh | X26: 19 | Z26: Hwy Operational Improvement | AC26: Please select a type of op. improvement | AG26: 13 | AH26: 0.886 | AI26: 0.886 | AJ26: 0.886 | AK26: 0.886 | AL26: 0.886 | AM26: 0.886 | AR26: 19 | AS26: 0.0356 | AT26: 0.0986 | AY26: Fatal Crash | AZ26: 1.09 | BA26: 1.08 | BB26: 1.14 | BC26: 1.11 | BG26: Fatality | BH26: =FatValue -> 13700000 | BI26: =FatValue -> 13700000 | BJ26: =FatValue -> 13700000 | BK26: =FatValue -> 13700000 | BQ26: 18 | BR26: 1.1267 | BS26: 364.6693 | BT26: 0.0714 | BU26: 0.0027 | BV26: 0.0036 | BW26: 0.0323 | BX26: 0.0024 | CC26: 18 | CD26: 0.5433 | CE26: 245.5396 | CF26: 0.0197 | CG26: 0.0008 | CH26: 0.0024 | CI26: 0.0105 | CJ26: 0.0007 | DB26: 325 | DC26: 750 | DD26: 750 | DE26: 750 | DI26: 325 | DJ26: 0.971 | DK26: 0.834 | DP26: 0.026 | DQ26: 0.664 | DR26: 0.842 | DV26: Source: California Department of Transportation TMS Master Plan, 2003
D27: Truck | E27: 37.2 | F27: $/hr/veh | H27: 5 | L27: Alpha | M27: Beta | N27: (vphpl) | O27: (vphpl) | Z27: Auxiliary Lane | AB27: AuxLane | AC27: Enter ramp design speed & on-ramp volume | AG27: 14 | AH27: 0.916 | AI27: 0.916 | AJ27: 0.916 | AK27: 0.916 | AL27: 0.916 | AM27: 0.916 | AR27: 20 | AS27: 0.0358 | AT27: 0.0972 | BG27: Injury | BH27: =ROUND((BC12*InjAValue+BC13*InjBValue)/SUM(BC12:BC13),-2) -> 432400 | BI27: =ROUND((BC12*InjAValue+BC13*InjBValue)/SUM(BC12:BC13),-2) -> 432400 | BJ27: =ROUND((BC12*InjAValue+BC13*InjBValue)/SUM(BC12:BC13),-2) -> 432400 | BK27: =ROUND((BC12*InjAValue+BC13*InjBValue)/SUM(BC12:BC13),-2) -> 432400 | BQ27: 19 | BR27: 1.1433 | BS27: 363.6278 | BT27: 0.072 | BU27: 0.0026 | BV27: 0.0036 | BW27: 0.0311 | BX27: 0.0024 | CC27: 19 | CD27: 0.5641 | CE27: 249.9473 | CF27: 0.0203 | CG27: 0.0008 | CH27: 0.0025 | CI27: 0.0103 | CJ27: 0.0007 | CO27: Mode | CP27: Year | CQ27: CO | CR27: CO2 | CS27: NOX | CT27: PM10 | CU27: SOX | CV27: VOC | CW27: PM2.5 | DB27: 350 | DC27: 750 | DD27: 750 | DE27: 750 | DI27: 350 | DJ27: 0.961 | DK27: 0.808 | DP27: 0.028 | DQ27: 0.623 | DR27: 0.817 | DW27: 27) Chaudhary and Messer, 2000
D28: Auto & Truck Composite | E28: =ROUND((1.3*ValTimeAuto*0.91+ValTimeTruck*0.09)/5,2)*5 -> 29.15 | F28: $/hr/veh | H28: 6 | J28: Freeway | L28: 0.2 | M28: 10 | N28: 2000 | O28: 1800 | Q28: 16, 17 | S28: Active Transportation User Characteristics | Z28: Freeway Connector | AB28: FreeConn | AC28: Check percent traffic in weave in section 1B | AG28: 15 | AH28: 0.943 | AI28: 0.943 | AJ28: 0.943 | AK28: 0.943 | AL28: 0.943 | AM28: 0.943 | AR28: 21 | AS28: 0.0354 | AT28: 0.094 | BG28: Prop Damage | BH28: 90000 | BI28: 14200 | BJ28: 4300 | BK28: 156700 | BQ28: 20 | BR28: 1.1601 | BS28: 362.5894 | BT28: 0.0726 | BU28: 0.0025 | BV28: 0.0036 | BW28: 0.03 | BX28: 0.0023 | CC28: 20 | CD28: 0.5858 | CE28: 254.4341 | CF28: 0.021 | CG28: 0.0008 | CH28: 0.0025 | CI28: 0.0101 | CJ28: 0.0007 | CO28: Passenger Train | CP28: 2010 | CQ28: 8.110940668 | CR28: 5150.447324 | CS28: 96.11464692 | CT28: 2.027735167 | CW28: 2.027735167 | DB28: 375 | DC28: 750 | DD28: 750 | DE28: 750 | DI28: 375 | DJ28: 0.952 | DK28: 0.782 | DP28: 0.03 | DQ28: 0.581 | DR28: 0.789 | EI28: Source: SHRP2 Project C11: Reliability Analysis
D29: Transit | E29: 21.8 | F29: $/hr/per | H29: 5 | J29: Expressway | L29: 0.2 | M29: 10 | N29: 2000 | O29: 1800 | Q29: 16, 17 | T29: Average Cycling Speed | U29: 8.7 | V29: mph | X29: 20 | Z29: HOV Connector | AB29: HOVConn | AC29: Check percent traffic in weave in section 1B | AG29: 16 | AH29: 0.964 | AI29: 0.964 | AJ29: 0.964 | AK29: 0.964 | AL29: 0.964 | AM29: 0.964 | AR29: 22 | AS29: 0.035 | AT29: 0.0909 | AY29: NUMBER OF INJURIES | BQ29: 21 | BR29: 1.1563 | BS29: 356.251 | BT29: 0.0724 | BU29: 0.0024 | BV29: 0.0035 | BW29: 0.0287 | BX29: 0.0022 | CC29: 21 | CD29: 0.591 | CE29: 253.2384 | CF29: 0.0211 | CG29: 0.0008 | CH29: 0.0025 | CI29: 0.0098 | CJ29: 0.0007 | CP29: 2040 | CQ29: 0.4055470334 | CR29: 359.3146716 | CS29: 4.866564401 | CT29: 0 | CW29: 0 | DB29: 400 | DC29: 750 | DD29: 750 | DE29: 750 | DI29: 400 | DJ29: 0.942 | DK29: 0.758 | DP29: 0.032 | DQ29: 0.54 | DR29: 0.761 | EJ29: Tool: User's Guide, January 2013.
D30: Out-of-Vehicle Travel | E30: 1.82 | F30: times | H30: 5 | J30: Conventional Highway | L30: 0.05 | M30: 10 | N30: 800 | O30: 1400 | Q30: 17 | T30: Average Walking Speed | U30: 3.3 | V30: mph | X30: 20 | Z30: HOV Drop Ramp | AB30: HOVDrop | AC30: Check percent traffic in weave in section 1B | AG30: 17 | AH30: 0.976 | AI30: 0.976 | AJ30: 0.976 | AK30: 0.976 | AL30: 0.976 | AM30: 0.976 | AR30: 23 | AS30: 0.0345 | AT30: 0.0879 | AY30: (events/crash) | BQ30: 22 | BR30: 1.1524 | BS30: 350.0234 | BT30: 0.0723 | BU30: 0.0022 | BV30: 0.0035 | BW30: 0.0275 | BX30: 0.0021 | CC30: 22 | CD30: 0.5964 | CE30: 252.0482 | CF30: 0.0213 | CG30: 0.0007 | CH30: 0.0025 | CI30: 0.0094 | CJ30: 0.0007 | DB30: 425 | DC30: 750 | DD30: 750 | DE30: 750 | DI30: 425 | DJ30: 0.932 | DK30: 0.734 | DP30: 0.034 | DQ30: 0.498 | DR30: 0.734
D31: Incident-Related Travel | E31: 3 | F31: times | H31: 7 | J31: HOV Lanes | L31: 0.55 | M31: 8 | N31: 1600 | Q31: 18 | T31: Number of Unlinked Cycling Trips per Day | U31: 2.23 | V31: trips | X31: 19 | Z31: Off-Ramp Widening | AB31: OffRamp | AC31: Check percent traffic in weave in section 1B | AG31: 18 | AH31: 0.985 | AI31: 0.985 | AJ31: 0.985 | AK31: 0.985 | AL31: 0.985 | AM31: 0.985 | AR31: 24 | AS31: 0.0341 | AT31: 0.085 | BF31: Sources: FTA, Transit Safety & Security Statistics, 2002 to 2011 average | BQ31: 23 | BR31: 1.1486 | BS31: 343.9046 | BT31: 0.0721 | BU31: 0.0022 | BV31: 0.0034 | BW31: 0.0263 | BX31: 0.002 | CC31: 23 | CD31: 0.6018 | CE31: 250.8636 | CF31: 0.0215 | CG31: 0.0007 | CH31: 0.0025 | CI31: 0.0091 | CJ31: 0.0006 | DB31: 450 | DC31: 750 | DD31: 750 | DE31: 750 | DI31: 450 | DJ31: 0.923 | DK31: 0.709 | DP31: 0.036 | DQ31: 0.476 | DR31: 0.706
D32: Travel Time Uprater | E32: 0 | F32: annual incr | T32: Number of Unlinked Pedestrian Trips per Day | U32: 2.1 | V32: trips | X32: 19 | Z32: On-Ramp Widening | AB32: OnRamp | AC32: Enter on-ramp volume & metering strategy | AG32: 19 | AH32: 0.991 | AI32: 0.991 | AJ32: 0.991 | AK32: 0.991 | AL32: 0.991 | AM32: 0.991 | AR32: 25 | AS32: 0.0337 | AT32: 0.0822 | AY32: Crash Type | AZ32: Urban | BA32: Suburban | BB32: Rural | BC32: Average | BG32: FRA, Office of Safety Analysis, Table 3.16, 2018 to 2020 average | BQ32: 24 | BR32: 1.1448 | BS32: 337.8928 | BT32: 0.0719 | BU32: 0.0021 | BV32: 0.0033 | BW32: 0.0252 | BX32: 0.0019 | CC32: 24 | CD32: 0.6072 | CE32: 249.6847 | CF32: 0.0217 | CG32: 0.0007 | CH32: 0.0025 | CI32: 0.0088 | CJ32: 0.0006 | CO32: LIGHT RAIL EMISSIONS FACTORS | DP32: 0.038 | DQ32: 0.473 | DR32: 0.678 | DW32: TRANSIT TRAVEL TIME AND AGENCY COST SAVINGS
N33: Capacity | T33: Diversion of Cyclists from Personal Vehicles | U33: 0.5 | V33: assumption | Z33: HOV-2 to HOV-3 Conv | AB33: HOV2to3 | AC33: Check AVOs & trips in sections 1B & 2D | AG33: 20 | AH33: 0.994 | AI33: 0.994 | AJ33: 0.994 | AK33: 0.994 | AL33: 0.994 | AM33: 0.994 | AR33: 26 | AS33: 0.0334 | AT33: 0.0813 | AY33: Fatal Crash | AZ33: 0.81 | BA33: 0.82 | BB33: 1.12 | BC33: 0.95 | BQ33: 25 | BR33: 1.141 | BS33: 331.9861 | BT33: 0.0718 | BU33: 0.002 | BV33: 0.0033 | BW33: 0.0242 | BX33: 0.0018 | CC33: 25 | CD33: 0.6127 | CE33: 248.5112 | CF33: 0.0218 | CG33: 0.0007 | CH33: 0.0025 | CI33: 0.0085 | CJ33: 0.0006 | CO33: (g/veh-mile) | DP33: 0.04 | DQ33: 0.471 | DR33: 0.65 | DW33: (percent savings)
B34: Vehicle Operating Cost Parameters | J34: Non-HOV Lanes | L34: Alpha | M34: Beta | N34: (vphpl) | T34: Diversion of Pedestrians from Personal Vehicles | U34: 0.5 | V34: assumption | Z34: HOT Lane Conversion | AB34: HOTConv | AC34: Check AVOs & trips in sections 1B & 2D | AG34: 21 | AH34: 0.997 | AI34: 0.997 | AJ34: 0.997 | AK34: 0.997 | AL34: 0.997 | AM34: 0.997 | AR34: 27 | AS34: 0.0331 | AT34: 0.0803 | AY34: Injury Crash | AZ34: 1.44 | BA34: 1.43 | BB34: 1.5 | BC34: 1.44 | BQ34: 26 | BR34: 1.1286 | BS34: 327.2741 | BT34: 0.0711 | BU34: 0.0019 | BV34: 0.0032 | BW34: 0.0232 | BX34: 0.0017 | CC34: 26 | CD34: 0.6144 | CE34: 247.79 | CF34: 0.022 | CG34: 0.0006 | CH34: 0.0024 | CI34: 0.0083 | CJ34: 0.0006 | DA34: Source: Paterson, 1987 | DH34: Source: Botterill, 1996 and 1997 | DP34: 0.042 | DQ34: 0.468 | DR34: 0.623
K35: No Build | AG35: 22 | AH35: 0.998 | AI35: 0.998 | AJ35: 0.998 | AK35: 0.998 | AL35: 0.998 | AM35: 0.998 | AR35: 28 | AS35: 0.0328 | AT35: 0.0794 | BG35: COSTS OF NON-HIGHWAY ACCIDENTS | BQ35: 27 | BR35: 1.1164 | BS35: 322.6289 | BT35: 0.0703 | BU35: 0.0018 | BV35: 0.0032 | BW35: 0.0222 | BX35: 0.0017 | CC35: 27 | CD35: 0.6161 | CE35: 247.0709 | CF35: 0.0221 | CG35: 0.0006 | CH35: 0.0024 | CI35: 0.008 | CJ35: 0.0006 | CO35: Mode | CP35: Year | CQ35: CO | CR35: CO2 | CS35: NOX | CT35: PM10 | CU35: SOX | CV35: VOC | CW35: PM2.5 | DP35: 0.044 | DQ35: 0.466 | DR35: 0.595 | DZ35: Travel | EA35: Agency Costs
C36: Average Fuel Price | K36: Build | S36: Value of Travel Time | Z36: Transp Mgmt Systems (TMS) | AC36: Please select a type of TMS project | AG36: 23 | AH36: 0.999 | AI36: 0.999 | AJ36: 0.999 | AK36: 0.999 | AL36: 0.999 | AM36: 0.999 | AR36: 29 | AS36: 0.0325 | AT36: 0.0785 | BG36: ($/million veh-mi) | BQ36: 28 | BR36: 1.1042 | BS36: 318.0497 | BT36: 0.0696 | BU36: 0.0017 | BV36: 0.0031 | BW36: 0.0213 | BX36: 0.0016 | CC36: 28 | CD36: 0.6178 | CE36: 246.3539 | CF36: 0.0222 | CG36: 0.0006 | CH36: 0.0024 | CI36: 0.0078 | CJ36: 0.0006 | CO36: Light Rail | CP36: 2021 | CQ36: 0.3079346802 | CR36: 1241.733628 | CS36: 0.3867304278 | CT36: 0.06629953509 | CU36: 0.0872871461 | CV36: 0.02548694683 | CW36: 0.06433220275 | DP36: 0.046 | DQ36: 0.463 | DR36: 0.567 | DW36: TMS Strategy | DZ36: Time | EA36: Capital | EB36: O&M
D37: Automobile (regular unleaded) | E37: =AVERAGE(3.227,4.39)*ValueUpdate -> 4.36796865 | F37: $/gal | H37: 8 | T37: Adults | U37: =ValTimeAuto -> 21.8 | V37: $/hr/per | Z37: Ramp Metering | AB37: RM | AC37: Enter model data, if avail, in sections 2A & 2C | AG37: 24 | AH37: 1 | AI37: 1 | AJ37: 1 | AK37: 1 | AL37: 1 | AM37: 1 | AR37: 30 | AS37: 0.0322 | AT37: 0.0776 | AY37: NUMBER OF VEHICLES INVOLVED | BQ37: 29 | BR37: 1.0922 | BS37: 313.5355 | BT37: 0.0689 | BU37: 0.0017 | BV37: 0.0031 | BW37: 0.0204 | BX37: 0.0015 | CC37: 29 | CD37: 0.6195 | CE37: 245.6389 | CF37: 0.0224 | CG37: 0.0006 | CH37: 0.0024 | CI37: 0.0076 | CJ37: 0.0005 | CP37: 2022 | CQ37: 0.3079346802 | CR37: 1241.733628 | CS37: 0.3867304278 | CT37: 0.06629953509 | CU37: 0.0872871461 | CV37: 0.02548694683 | CW37: 0.06433220275 | DP37: 0.048 | DQ37: 0.46 | DR37: 0.54 | DW37: Transit Vehicle Location (AVL) | DZ37: 0.15 | EA37: 0.02 | EB37: 0.08
D38: Truck (diesel) | E38: =AVERAGE(4.372,3.366)*ValueUpdate -> 4.4373561 | F38: $/gal | H38: 8 | T38: Children | U38: =ValTimeAuto -> 21.8 | V38: $/hr/per | Z38: Ramp Metering Signal Coord | AB38: AM | AC38: Enter model data, if avail, in sections 2A & 2C | AR38: 31 | AS38: 0.0317 | AT38: 0.0778 | AY38: (events/crash) | BG38: Value | BH38: Pass Train | BI38: Light Rail | BJ38: Bus | BK38: Freight Rail | BQ38: 30 | BR38: 1.0804 | BS38: 309.0854 | BT38: 0.0682 | BU38: 0.0016 | BV38: 0.0031 | BW38: 0.0196 | BX38: 0.0015 | CC38: 30 | CD38: 0.6212 | CE38: 244.9261 | CF38: 0.0225 | CG38: 0.0006 | CH38: 0.0024 | CI38: 0.0074 | CJ38: 0.0005 | DB38: FUEL CONSUMPTION | DI38: NON-FUEL COSTS | DP38: 0.05 | DQ38: 0.458 | DR38: 0.512 | DW38: Transit Vehicle Signal Priority | DZ38: 0.1 | EA38: - | EB38: -
I39: Sources: 16) Highway Capacity Manual, 17) NCHRP 387, 18) PeMS data | Z39: Incident Management | AB39: IM | AC39: Enter model data, if avail, in sections 2A & 2C | AR39: 32 | AS39: 0.0313 | AT39: 0.0781 | BG39: Cost | BH39: =ROUND(BH12*BH26+BH13*BH27+BH14*BH28,-2) -> 1253100 | BI39: =ROUND(BI12*BI26+BI13*BI27+BI14*BI28,-2) -> 4631700 | BJ39: =ROUND(BJ12*BJ26+BJ13*BJ27+BJ14*BJ28,-2) -> 2054600 | BK39: =ROUND(BK12*BK26+BK13*BK27+BK14*BK28,-2) -> 19442300 | BQ39: 31 | BR39: 1.0681 | BS39: 304.8313 | BT39: 0.0679 | BU39: 0.0016 | BV39: 0.003 | BW39: 0.019 | BX39: 0.0014 | CC39: 31 | CD39: 0.6126 | CE39: 241.3366 | CF39: 0.0222 | CG39: 0.0006 | CH39: 0.0024 | CI39: 0.0071 | CJ39: 0.0005 | DB39: (percent adjustment) | DI39: (percent adjustment) | DP39: 0.052 | DQ39: 0.455 | DR39: 0.484 | DW39: Bus Rapid Transit (BRT) | DZ39: 0.29 | EA39: - | EB39: -
C40: Sales and Fuel Taxes | S40: Cycling Journey Quality - Facility Preference Factors as Function of Distance by Facility Class | Z40: Traveler Information | AB40: TI | AC40: Enter model data, if avail, in sections 2A & 2C | AF40: Source: California Department of Transportation, 2010-2012 California Household Travel | AR40: 33 | AS40: 0.0308 | AT40: 0.0784 | AY40: Crash Type | AZ40: Urban | BA40: Suburban | BB40: Rural | BC40: Average | BQ40: 32 | BR40: 1.0561 | BS40: 300.6357 | BT40: 0.0675 | BU40: 0.0015 | BV40: 0.003 | BW40: 0.0184 | BX40: 0.0014 | CC40: 32 | CD40: 0.6042 | CE40: 237.7997 | CF40: 0.022 | CG40: 0.0005 | CH40: 0.0024 | CI40: 0.0068 | CJ40: 0.0005 | CO40: FREIGHT LOCOMOTIVE EMISSIONS FACTORS | DP40: 0.054 | DQ40: 0.453 | DR40: 0.476
D41: State Sales Tax (gasoline) | E41: 0.0225 | F41: % | H41: 9 | T41: Class I | U41: 0.57 | V41: - | X41: 21 | Z41: Arterial Signal Management | AB41: ASM | AC41: Complete only sections 1A, 1E & 2C | AF41: Survey, Final Report Appendix, June 2013 | AR41: 34 | AS41: 0.0304 | AT41: 0.0787 | AY41: Fatal Crash | AZ41: 1.51 | BA41: 1.69 | BB41: 1.58 | BC41: 1.63 | BQ41: 33 | BR41: 1.0441 | BS41: 296.4979 | BT41: 0.0671 | BU41: 0.0014 | BV41: 0.0029 | BW41: 0.0178 | BX41: 0.0013 | CC41: 33 | CD41: 0.5959 | CE41: 234.3147 | CF41: 0.0217 | CG41: 0.0005 | CH41: 0.0023 | CI41: 0.0065 | CJ41: 0.0005 | CO41: (g/gal) | DB41: IRI | DC41: Auto | DD41: Truck | DI41: IRI | DJ41: Auto | DK41: Truck | DP41: 0.056 | DQ41: 0.453 | DR41: 0.474
D42: State Sales Tax (diesel) | E42: 0.13 | F42: % | H42: 10 | T42: Class II | U42: 0.49 | V42: - | X42: 21 | Z42: Transit Vehicle Location (AVL) | AB42: AVL | AC42: Enter transit agency costs in section 1D | AR42: 35 | AS42: 0.03 | AT42: 0.079 | AY42: Injury Crash | AZ42: 1.82 | BA42: 2.1 | BB42: 1.59 | BC42: 1.99 | BF42: Source: Combination of above two tables | BQ42: 34 | BR42: 1.0323 | BS42: 292.4171 | BT42: 0.0667 | BU42: 0.0014 | BV42: 0.0029 | BW42: 0.0172 | BX42: 0.0013 | CC42: 34 | CD42: 0.5877 | CE42: 230.8807 | CF42: 0.0215 | CG42: 0.0005 | CH42: 0.0023 | CI42: 0.0063 | CJ42: 0.0005 | DB42: 0 | DC42: 0.971 | DD42: 0.961 | DI42: 0 | DJ42: 1 | DK42: 1 | DP42: 0.058 | DQ42: 0.453 | DR42: 0.473 | DV42: Sources: FHWA ITS Deployment Analysis System (IDAS), California PATH
D43: Average Local Sales Tax | E43: 0.005 | F43: % | H43: 9 | T43: Class III | U43: 0.92 | V43: - | X43: 21 | Z43: Transit Vehicle Signal Priority | AB43: SigPriority | AC43: Check travel time in section 1D | AR43: 36 | AS43: 0.0298 | AT43: 0.0794 | AY43: PDO Crash | AZ43: 1.8 | BA43: 2.03 | BB43: 1.59 | BC43: 1.96 | BQ43: 35 | BR43: 1.0206 | BS43: 288.3924 | BT43: 0.0663 | BU43: 0.0013 | BV43: 0.0029 | BW43: 0.0167 | BX43: 0.0012 | CC43: 35 | CD43: 0.5796 | CE43: 227.497 | CF43: 0.0212 | CG43: 0.0005 | CH43: 0.0022 | CI43: 0.006 | CJ43: 0.0004 | CO43: Mode | CP43: Year | CQ43: CO | CR43: CO2 | CS43: NOX | CT43: PM10 | CU43: SOX | CV43: VOC | CW43: PM2.5 | DB43: 25 | DC43: 0.977 | DD43: 0.965 | DI43: 25 | DJ43: 1 | DK43: 1 | DP43: 0.06 | DQ43: 0.453 | DR43: 0.471
D44: Federal Fuel Excise Tax (gasoline) | E44: 0.183 | F44: $/gal | H44: 9 | T44: Class IV | U44: =CLASS2MRS -> 0.49 | V44: - | X44: 21 | Z44: Bus Rapid Transit (BRT) | AB44: BRT | AC44: Enter free-flow bus lane speed in section 1B | AR44: 37 | AS44: 0.0297 | AT44: 0.0799 | BQ44: 36 | BR44: 1.0098 | BS44: 287.1873 | BT44: 0.0661 | BU44: 0.0013 | BV44: 0.0028 | BW44: 0.0163 | BX44: 0.0012 | CC44: 36 | CD44: 0.5729 | CE44: 226.5716 | CF44: 0.0211 | CG44: 0.0005 | CH44: 0.0022 | CI44: 0.0058 | CJ44: 0.0004 | CO44: Freight Rail | CP44: 2020 | CQ44: 26.62 | CR44: 10217 | CS44: 107.38 | CT44: 3.2 | CW44: 3.11 | DB44: 50 | DC44: 0.98 | DD44: 0.97 | DI44: 50 | DJ44: 1 | DK44: 1 | DP44: 0.062 | DQ44: 0.453 | DR44: 0.469
D45: Federal Fuel Excise Tax (diesel) | E45: 0.243 | F45: $/gal | H45: 9 | T45: Note: Class IV assumed to be the same as Class II | AR45: 38 | AS45: 0.0296 | AT45: 0.0803 | BQ45: 37 | BR45: 0.9991 | BS45: 285.9872 | BT45: 0.0658 | BU45: 0.0013 | BV45: 0.0028 | BW45: 0.0159 | BX45: 0.0012 | CC45: 37 | CD45: 0.5664 | CE45: 225.6499 | CF45: 0.021 | CG45: 0.0004 | CH45: 0.0022 | CI45: 0.0057 | CJ45: 0.0004 | CP45: 2030 | CQ45: 26.62 | CR45: 10217 | CS45: 70.92 | CT45: 1.88 | CW45: 1.83 | DB45: 75 | DC45: 0.982 | DD45: 0.975 | DI45: 75 | DJ45: 1 | DK45: 1 | DP45: 0.064 | DQ45: 0.453 | DR45: 0.467
D46: State Fuel Excise Tax (gasoline) | E46: 0.612 | F46: $/gal | H46: 9 | Z46: TMS Lookup Code | AB46: TMSLookup | AG46: AGE COHORTS FOR MORTALITY RISK REDUCTION | AR46: 39 | AS46: 0.0295 | AT46: 0.0808 | AY46: DISTRIBUTION OF CRASH TYPES | BG46: HIGHWAY-RAIL GRADE CROSSING INCIDENTS | BQ46: 38 | BR46: 0.9885 | BS46: 284.7922 | BT46: 0.0656 | BU46: 0.0012 | BV46: 0.0028 | BW46: 0.0155 | BX46: 0.0011 | CC46: 38 | CD46: 0.5599 | CE46: 224.7319 | CF46: 0.0208 | CG46: 0.0004 | CH46: 0.0022 | CI46: 0.0055 | CJ46: 0.0004 | DB46: 100 | DC46: 0.985 | DD46: 0.98 | DI46: 100 | DJ46: 1 | DK46: 1 | DP46: 0.066 | DQ46: 0.453 | DR46: 0.466
D47: State Fuel Excise Tax (diesel) | E47: 0.466 | F47: $/gal | H47: 9 | S47: Walking Journey Quality Values per Mile by Amenity | Z47: User Modified Inputs | AB47: UserAdjInputs | AG47: (percent of population) | AR47: 40 | AS47: 0.0293 | AT47: 0.0812 | AY47: (percent of crashes) | BG47: (units in table) | BQ47: 39 | BR47: 0.978 | BS47: 283.6021 | BT47: 0.0653 | BU47: 0.0012 | BV47: 0.0028 | BW47: 0.0152 | BX47: 0.0011 | CC47: 39 | CD47: 0.5535 | CE47: 223.8177 | CF47: 0.0207 | CG47: 0.0004 | CH47: 0.0022 | CI47: 0.0053 | CJ47: 0.0004 | CR47: Freight Rail Fuel Efficiency | CS47: 480 | CT47: ton-miles/gal | DB47: 125 | DC47: 0.99 | DD47: 0.986 | DI47: 125 | DJ47: 1 | DK47: 1 | DP47: 0.068 | DQ47: 0.453 | DR47: 0.464
T48: Street Lighting | U48: 0.11 | V48: $/mi | X48: 22 | AR48: 41 | AS48: 0.0294 | AT48: 0.0813 | BQ48: 40 | BR48: 0.9677 | BS48: 282.417 | BT48: 0.0651 | BU48: 0.0012 | BV48: 0.0028 | BW48: 0.0148 | BX48: 0.0011 | CC48: 40 | CD48: 0.5471 | CE48: 222.9072 | CF48: 0.0206 | CG48: 0.0004 | CH48: 0.0022 | CI48: 0.0052 | CJ48: 0.0004 | CR48: Fuel Burned at Idle | CS48: =AVERAGE(3,5) -> 4 | CT48: gal/hr | DB48: 150 | DC48: 0.995 | DD48: 0.993 | DI48: 150 | DJ48: 1.017 | DK48: 1.018 | DP48: 0.07 | DQ48: 0.453 | DR48: 0.462
C49: Fuel Cost Per Gallon (Exclude Taxes) | T49: Curb Level | U49: 0.078 | V49: $/mi | X49: 22 | AJ49: Urban | AR49: 42 | AS49: 0.0294 | AT49: 0.0813 | AY49: Crash Type | AZ49: Urban | BA49: Suburban | BB49: Rural | BC49: Average | BG49: Value | BH49: Incident | BI49: Fatality | BJ49: Injury | BQ49: 41 | BR49: 0.9542 | BS49: 282.6316 | BT49: 0.0649 | BU49: 0.0012 | BV49: 0.0028 | BW49: 0.0146 | BX49: 0.0011 | CC49: 41 | CD49: 0.5398 | CE49: 223.3585 | CF49: 0.0205 | CG49: 0.0004 | CH49: 0.0022 | CI49: 0.0051 | CJ49: 0.0004 | DB49: 175 | DC49: 1 | DD49: 1 | DI49: 175 | DJ49: 1.034 | DK49: 1.038 | DP49: 0.072 | DQ49: 0.453 | DR49: 0.46
D50: Automobile | E50: =ROUND((FuelPriceAuto/(1+SalesTaxGasState+SalesTaxLocal)-ExciseTaxGasFed-ExciseTaxGasState)/5,2)*5 -> 3.45 | F50: $/gal | T50: Crowding | U50: 0.055 | V50: $/mi | X50: 22 | AG50: Mode | AH50: Age Cohort | AJ50: South | AK50: North | AL50: Rural | AR50: 43 | AS50: 0.0295 | AT50: 0.0814 | AY50: Fatal Crash | AZ50: =ROUND(553/123662,4) -> 0.0045 | BA50: =ROUND(250/34195,4) -> 0.0073 | BB50: =ROUND(559/27456,4) -> 0.0204 | BC50: =ROUND(1362/185313,4) -> 0.0073 | BE50: 26 | BG50: Total Events | BH50: 847 | BI50: 80 | BJ50: 462 | BQ50: 42 | BR50: 0.9408 | BS50: 282.8464 | BT50: 0.0647 | BU50: 0.0011 | BV50: 0.0028 | BW50: 0.0144 | BX50: 0.001 | CC50: 42 | CD50: 0.5325 | CE50: 223.8107 | CF50: 0.0205 | CG50: 0.0004 | CH50: 0.0022 | CI50: 0.005 | CJ50: 0.0004 | DB50: 200 | DC50: 1.005 | DD50: 1.007 | DI50: 200 | DJ50: 1.052 | DK50: 1.058 | DP50: 0.074 | DQ50: 0.453 | DR50: 0.459
D51: Truck | E51: =ROUND((FuelPriceTruck/(1+SalesTaxDieselState)-ExciseTaxDieselFed-ExciseTaxDieselState)/5,2)*5 -> 3.2 | F51: $/gal | T51: Pavement Evenness | U51: 0.026 | V51: $/mi | X51: 22 | AG51: Cycling | AH51: Age 16-64 | AJ51: 0.549 | AK51: 0.549 | AL51: 0.446 | AR51: 44 | AS51: 0.0295 | AT51: 0.0814 | AY51: Injury Crash | AZ51: =ROUND(39513/123662,4) -> 0.3195 | BA51: =ROUND(11328/34195,4) -> 0.3313 | BB51: =ROUND(9886/27456,4) -> 0.3601 | BC51: =ROUND(60727/185313,4) -> 0.3277 | BE51: 26 | BG51: Avg per Incident | BI51: =ROUND(BI50/BH50,4) -> 0.0945 | BJ51: =ROUND(BJ50/BH50,4) -> 0.5455 | BQ51: 43 | BR51: 0.9277 | BS51: 283.0613 | BT51: 0.0645 | BU51: 0.0011 | BV51: 0.0028 | BW51: 0.0142 | BX51: 0.001 | CC51: 43 | CD51: 0.5253 | CE51: 224.2638 | CF51: 0.0204 | CG51: 0.0004 | CH51: 0.0022 | CI51: 0.005 | CJ51: 0.0004 | CN51: Sources: Argonne National Laboratory, Energy Systems, GREET Model, 2021 | DB51: 225 | DC51: 1.012 | DD51: 1.017 | DI51: 225 | DJ51: 1.07 | DK51: 1.078 | DP51: 0.076 | DQ51: 0.453 | DR51: 0.457
T52: Information Panels | U52: 0.026 | V52: $/mi | X52: 22 | AG52: Walking | AH52: Age 16-74 | AJ52: 0.805 | AK52: 0.805 | AL52: 0.799 | AR52: 45 | AS52: 0.0295 | AT52: 0.0814 | AY52: PDO Crash | AZ52: =ROUND(83596/123662,4) -> 0.676 | BA52: =ROUND(22617/34195,4) -> 0.6614 | BB52: =ROUND(17011/27456,4) -> 0.6196 | BC52: =ROUND(123224/185313,4) -> 0.665 | BE52: 26 | BG52: Cost per Event | BI52: =BH26 -> 13700000 | BJ52: =BH27 -> 432400 | BQ52: 44 | BR52: 0.9147 | BS52: 283.2764 | BT52: 0.0643 | BU52: 0.0011 | BV52: 0.0028 | BW52: 0.014 | BX52: 0.001 | CC52: 44 | CD52: 0.5182 | CE52: 224.7179 | CF52: 0.0203 | CG52: 0.0004 | CH52: 0.0022 | CI52: 0.0049 | CJ52: 0.0004 | CO52: FTA, National Transit Database, Fuel and Energy, 2019 | DB52: 250 | DC52: 1.019 | DD52: 1.026 | DI52: 250 | DJ52: 1.088 | DK52: 1.097 | DP52: 0.078 | DQ52: 0.453 | DR52: 0.455
C53: Non-Fuel Cost Per Mile | T53: Benches | U53: 0.017 | V53: $/mi | X53: 22 | AR53: 46 | AS53: 0.0299 | AT53: 0.0786 | BQ53: 45 | BR53: 0.902 | BS53: 283.4917 | BT53: 0.0641 | BU53: 0.0011 | BV53: 0.0028 | BW53: 0.0138 | BX53: 0.001 | CC53: 45 | CD53: 0.5112 | CE53: 225.1728 | CF53: 0.0203 | CG53: 0.0004 | CH53: 0.0022 | CI53: 0.0048 | CJ53: 0.0004 | CO53: Energy Information Administration, Electricty Retail Sales, 2019 | DB53: 275 | DC53: 1.027 | DD53: 1.036 | DI53: 275 | DJ53: 1.105 | DK53: 1.117 | DP53: 0.08 | DQ53: 0.453 | DR53: 0.453
D54: Automobile | E54: =ROUND((0.0955+3900/15000)*ValueUpdate,3) -> 0.408 | F54: $/mi | H54: 11 | T54: Directional Signage | U54: 0.017 | V54: $/mi | X54: 22 | AR54: 47 | AS54: 0.0302 | AT54: 0.0758 | BQ54: 46 | BR54: 0.895 | BS54: 286.147 | BT54: 0.0643 | BU54: 0.0011 | BV54: 0.0028 | BW54: 0.0138 | BX54: 0.001 | CC54: 46 | CD54: 0.5081 | CE54: 228.0552 | CF54: 0.0203 | CG54: 0.0004 | CH54: 0.0023 | CI54: 0.0048 | CJ54: 0.0004 | CO54: Association of American Railroads, Freight Rail & Preserving the Environment, April 2021 | DB54: 300 | DC54: 1.034 | DD54: 1.047 | DI54: 300 | DJ54: 1.123 | DK54: 1.137
D55: Truck | E55: =ROUND((0.28+0.119+0.034)*(1.1578/1.1385)*ValueUpdate,3) -> 0.505 | F55: $/mi | H55: 12 | AG55: AVERAGE DISTANCE PER ACTIVE TRANSPORTATION TRIP | AR55: 48 | AS55: 0.0305 | AT55: 0.0731 | AX55: Source: California Department of Transportation,TASAS Unit, 2010 to 2013 average | BF55: Source: FRA, Office of Safety Analysis, 5.10 - Hwy/Rail Incidents Summary | BQ55: 47 | BR55: 0.8882 | BS55: 288.8273 | BT55: 0.0645 | BU55: 0.0011 | BV55: 0.0029 | BW55: 0.0138 | BX55: 0.001 | CC55: 47 | CD55: 0.5051 | CE55: 230.9745 | CF55: 0.0204 | CG55: 0.0004 | CH55: 0.0023 | CI55: 0.0048 | CJ55: 0.0004 | CO55: California Environmental Protection Agency / Air Resources Board, Technology Assessment: | DB55: 325 | DC55: 1.041 | DD55: 1.058 | DI55: 325 | DJ55: 1.141 | DK55: 1.156
S56: Health (Absenteeism Reduction) | AG56: (miles/trip) | AR56: 49 | AS56: 0.0309 | AT56: 0.0705 | AY56: 26) Crash Data on California State Highways 2018 | BG56: Table, California, Motor Vehicles, Public Crossings, Jan 2011 to Dec 2020 | BQ56: 48 | BR56: 0.8814 | BS56: 291.5326 | BT56: 0.0647 | BU56: 0.0011 | BV56: 0.0029 | BW56: 0.0137 | BX56: 0.001 | CC56: 48 | CD56: 0.5021 | CE56: 233.9312 | CF56: 0.0205 | CG56: 0.0004 | CH56: 0.0023 | CI56: 0.0048 | CJ56: 0.0004 | CO56: Freight Locomotives, November 2016 | DB56: 350 | DC56: 1.05 | DD56: 1.07 | DI56: 350 | DJ56: 1.159 | DK56: 1.176 | DO56: Source: Fitzpatrick, Brewer, and Venglar, 2003
C57: Idling Speed for Op. Costs and Emissions | E57: 5 | F57: mph | T57: Average Absence of Employees | U57: 3.5 | V57: days/yr | X57: 23 | AR57: 50 | AS57: 0.0312 | AT57: 0.068 | BQ57: 49 | BR57: 0.8746 | BS57: 294.2633 | BT57: 0.0649 | BU57: 0.0011 | BV57: 0.0029 | BW57: 0.0137 | BX57: 0.001 | CC57: 49 | CD57: 0.4991 | CE57: 236.9257 | CF57: 0.0206 | CG57: 0.0004 | CH57: 0.0023 | CI57: 0.0048 | CJ57: 0.0004 | DB57: 375 | DC57: 1.061 | DD57: 1.085 | DI57: 375 | DJ57: 1.176 | DK57: 1.196
T58: Percentage Covered by Short-Term Sick Leave | U58: 0.66 | V58: % | X58: 23 | AJ58: Urban | AR58: 51 | AS58: 0.0316 | AT58: 0.0707 | BQ58: 50 | BR58: 0.8679 | BS58: 297.0195 | BT58: 0.0652 | BU58: 0.0011 | BV58: 0.0029 | BW58: 0.0137 | BX58: 0.001 | CC58: 50 | CD58: 0.4961 | CE58: 239.9586 | CF58: 0.0207 | CG58: 0.0004 | CH58: 0.0024 | CI58: 0.0048 | CJ58: 0.0004 | DB58: 400 | DC58: 1.072 | DD58: 1.1 | DI58: 400 | DJ58: 1.194 | DK58: 1.216
B59: Accident Cost Parameters | T59: Percentage of Sick Days Reduced When Active at Least 30 Minutes per Day | U59: 0.06 | V59: % | X59: 24 | AG59: Mode | AH59: Age Cohort | AJ59: South | AK59: North | AL59: Rural | AR59: 52 | AS59: 0.0321 | AT59: 0.0735 | BQ59: 51 | BR59: 0.8608 | BS59: 300.5677 | BT59: 0.0655 | BU59: 0.0011 | BV59: 0.003 | BW59: 0.0138 | BX59: 0.001 | CC59: 51 | CD59: 0.4937 | CE59: 243.8377 | CF59: 0.0209 | CG59: 0.0004 | CH59: 0.0024 | CI59: 0.0049 | CJ59: 0.0004 | DB59: 425 | DC59: 1.082 | DD59: 1.114 | DI59: 425 | DJ59: 1.212 | DK59: 1.235
AG60: Cycling | AH60: Adults | AJ60: 2.29 | AK60: 2.29 | AL60: 7.89 | AR60: 53 | AS60: 0.0325 | AT60: 0.0764 | AY60: COST OF HIGHWAY CRASHES | BG60: PASSING LANE CRASH REDUCTION FACTORS | BQ60: 52 | BR60: 0.8537 | BS60: 304.1583 | BT60: 0.0659 | BU60: 0.0011 | BV60: 0.003 | BW60: 0.0139 | BX60: 0.001 | CC60: 52 | CD60: 0.4913 | CE60: 247.7794 | CF60: 0.0211 | CG60: 0.0004 | CH60: 0.0024 | CI60: 0.0049 | CJ60: 0.0004 | DB60: 450 | DC60: 1.093 | DD60: 1.129 | DI60: 450 | DJ60: 1.23 | DK60: 1.255
C61: Cost of a Fatality | E61: 13700000 | F61: $/event | H61: 13 | S61: Health (Mortality Reduction) | AH61: Children <16 | AJ61: 0.99 | AK61: 0.99 | AL61: 0.78 | AR61: 54 | AS61: 0.033 | AT61: 0.0794 | AY61: ($/crash) | BG61: (rate with passing lane/rate without passing lane) | BQ61: 53 | BR61: 0.8467 | BS61: 307.7918 | BT61: 0.0663 | BU61: 0.0011 | BV61: 0.003 | BW61: 0.014 | BX61: 0.001 | CC61: 53 | CD61: 0.4889 | CE61: 251.7849 | CF61: 0.0213 | CG61: 0.0004 | CH61: 0.0025 | CI61: 0.005 | CJ61: 0.0004
T62: Percentage of Cyclists Aged 16-64 | U62: =IF(ProjLoc=1,AJ51,IF(ProjLoc=2,AK51,AL51)) -> 0.446 | V62: % | AG62: Walking | AH62: Adults | AJ62: 0.68 | AK62: 0.68 | AL62: 0.6 | AR62: 55 | AS62: 0.0334 | AT62: 0.0826 | BQ62: 54 | BR62: 0.8398 | BS62: 311.4687 | BT62: 0.0667 | BU62: 0.0011 | BV62: 0.0031 | BW62: 0.0141 | BX62: 0.001 | CC62: 54 | CD62: 0.4866 | CE62: 255.8552 | CF62: 0.0215 | CG62: 0.0004 | CH62: 0.0025 | CI62: 0.0051 | CJ62: 0.0004
C63: Cost of an Injury | T63: Percentage of Pedestrians Aged 16-74 | U63: =IF(ProjLoc=1,AJ52,IF(ProjLoc=2,AK52,AL52)) -> 0.799 | V63: % | AH63: Children <16 | AJ63: 0.63 | AK63: 0.63 | AL63: 1.08 | AR63: 56 | AS63: 0.0337 | AT63: 0.0865 | AY63: Crash Type | AZ63: Urban | BA63: Suburban | BB63: Rural | BC63: Average | BG63: Minimum ADT | BH63: Fatality | BI63: Injury | BJ63: PDO | BQ63: 55 | BR63: 0.8329 | BS63: 315.1895 | BT63: 0.0671 | BU63: 0.0011 | BV63: 0.0031 | BW63: 0.0142 | BX63: 0.001 | CC63: 55 | CD63: 0.4842 | CE63: 259.9912 | CF63: 0.0217 | CG63: 0.0004 | CH63: 0.0026 | CI63: 0.0051 | CJ63: 0.0004 | DA63: Source: Texas Transportation Institute, 1994 | DH63: Source: ARRB Research Board TR VOC Model
D64: Level A (Severe) | E64: 1302300 | F64: $/event | H64: 13 | AR64: 57 | AS64: 0.034 | AT64: 0.0907 | AY64: Fatal Crash | AZ64: =ROUND(FatValue*AZ26+(InjAValue*AZ$12+InjBValue*AZ$13+InjCValue*AZ$14)*AZ33+NoInjValue*AZ41,-5) -> 15100000 | BA64: =ROUND(FatValue*BA26+(InjAValue*BA$12+InjBValue*BA$13+InjCValue*BA$14)*BA33+NoInjValue*BA41,-5) -> 15000000 | BB64: =ROUND(FatValue*BB26+(InjAValue*BB$12+InjBValue*BB$13+InjCValue*BB$14)*BB33+NoInjValue*BB41,-5) -> 15900000 | BC64: =ROUND(FatValue*BC26+(InjAValue*BC$12+InjBValue*BC$13+InjCValue*BC$14)*BC33+NoInjValue*BC41,-5) -> 15400000 | BG64: 0 | BH64: 0.25 | BI64: 0.694 | BJ64: 0.926 | BQ64: 56 | BR64: 0.8167 | BS64: 317.3875 | BT64: 0.0668 | BU64: 0.0011 | BV64: 0.0031 | BW64: 0.0143 | BX64: 0.001 | CC64: 56 | CD64: 0.4772 | CE64: 262.646 | CF64: 0.0218 | CG64: 0.0004 | CH64: 0.0026 | CI64: 0.0052 | CJ64: 0.0004
D65: Level B (Moderate) | E65: 256300 | F65: $/event | H65: 13 | T65: Percentage Reduction in Mortality per 365 Annual Cycling Miles | U65: 0.045 | V65: % | X65: 20 | AR65: 58 | AS65: 0.0343 | AT65: 0.095 | AY65: Injury Crash | AZ65: =ROUND((InjAValue*AZ$12+InjBValue*AZ$13+InjCValue*AZ$14)*AZ34+NoInjValue*AZ42,-2) -> 322000 | BA65: =ROUND((InjAValue*BA$12+InjBValue*BA$13+InjCValue*BA$14)*BA34+NoInjValue*BA42,-2) -> 321400 | BB65: =ROUND((InjAValue*BB$12+InjBValue*BB$13+InjCValue*BB$14)*BB34+NoInjValue*BB42,-2) -> 333800 | BC65: =ROUND((InjAValue*BC$12+InjBValue*BC$13+InjCValue*BC$14)*BC34+NoInjValue*BC42,-2) -> 323000 | BG65: 5000 | BH65: 0.192 | BI65: 0.803 | BJ65: 0.965 | BQ65: 57 | BR65: 0.8008 | BS65: 319.6009 | BT65: 0.0666 | BU65: 0.0011 | BV65: 0.0032 | BW65: 0.0144 | BX65: 0.001 | CC65: 57 | CD65: 0.4703 | CE65: 265.3279 | CF65: 0.022 | CG65: 0.0004 | CH65: 0.0026 | CI65: 0.0053 | CJ65: 0.0004
D66: Level C (Minor) | E66: 122400 | F66: $/event | H66: 13 | T66: Percentage Reduction in Mortality per 365 Annual Walking Miles | U66: 0.09 | V66: % | X66: 20 | AG66: TRIP PURPOSE FOR ACTIVE TRANSPORTATION TRIPS | AR66: 59 | AS66: 0.0345 | AT66: 0.0995 | AY66: PDO Crash | AZ66: =ROUND(NoInjValue*AZ43,-2) -> 9900 | BA66: =ROUND(NoInjValue*BA43,-2) -> 11200 | BB66: =ROUND(NoInjValue*BB43,-2) -> 8700 | BC66: =ROUND(NoInjValue*BC43,-2) -> 10800 | BG66: 10000 | BH66: 0.84 | BI66: 0.577 | BJ66: 0.978 | BQ66: 58 | BR66: 0.7852 | BS66: 321.8297 | BT66: 0.0664 | BU66: 0.0011 | BV66: 0.0032 | BW66: 0.0144 | BX66: 0.0011 | CC66: 58 | CD66: 0.4635 | CE66: 268.0372 | CF66: 0.0222 | CG66: 0.0004 | CH66: 0.0026 | CI66: 0.0054 | CJ66: 0.0004
AG67: (percent of trips) | AR67: 60 | AS67: 0.0348 | AT67: 0.1043 | AY67: All Types | AZ67: =ROUND(AZ50*AZ64+AZ51*AZ65+AZ52*AZ66,-2) -> 177500 | BA67: =ROUND(BA50*BA64+BA51*BA65+BA52*BA66,-2) -> 223400 | BB67: =ROUND(BB50*BB64+BB51*BB65+BB52*BB66,-2) -> 450000 | BC67: =ROUND(BC50*BC64+BC51*BC65+BC52*BC66,-2) -> 225400 | BQ67: 59 | BR67: 0.7699 | BS67: 324.074 | BT67: 0.0662 | BU67: 0.0012 | BV67: 0.0032 | BW67: 0.0145 | BX67: 0.0011 | CC67: 59 | CD67: 0.4568 | CE67: 270.7741 | CF67: 0.0223 | CG67: 0.0004 | CH67: 0.0027 | CI67: 0.0055 | CJ67: 0.0004
C68: Cost of Property Damage | E68: 5500 | F68: $/event | H68: 14 | T68: Morality Rate - All Causes (Aged 20-64) | U68: 252 | V68: #/100,000 people | X68: 25 | AR68: 61 | AS68: 0.0351 | AT68: 0.1062 | BQ68: 60 | BR68: 0.7549 | BS68: 326.334 | BT68: 0.066 | BU68: 0.0012 | BV68: 0.0032 | BW68: 0.0146 | BX68: 0.0011 | CC68: 60 | CD68: 0.4502 | CE68: 273.539 | CF68: 0.0225 | CG68: 0.0004 | CH68: 0.0027 | CI68: 0.0057 | CJ68: 0.0004
T69: Morality Rate - All Causes (Aged 20-74) | U69: 392 | V69: #/100,000 people | X69: 25 | AJ69: Urban | AR69: 62 | AS69: 0.0353 | AT69: 0.1083 | BQ69: 61 | BR69: 0.7519 | BS69: 328.7321 | BT69: 0.0672 | BU69: 0.0012 | BV69: 0.0032 | BW69: 0.0151 | BX69: 0.0011 | CC69: 61 | CD69: 0.4455 | CE69: 275.3018 | CF69: 0.0227 | CG69: 0.0005 | CH69: 0.0027 | CI69: 0.0058 | CJ69: 0.0004
C70: Cost of Highway Crash | AG70: Mode | AH70: Trip Purpose | AJ70: South | AK70: North | AL70: Rural | AR70: 63 | AS70: 0.0356 | AT70: 0.1104 | AX70: Source: Combination of above four tables | BF70: Source: Taylor and Jain, 1991 | BQ70: 62 | BR70: 0.749 | BS70: 331.1477 | BT70: 0.0684 | BU70: 0.0012 | BV70: 0.0033 | BW70: 0.0156 | BX70: 0.0011 | CC70: 62 | CD70: 0.4408 | CE70: 277.076 | CF70: 0.0229 | CG70: 0.0005 | CH70: 0.0027 | CI70: 0.0059 | CJ70: 0.0004
D71: Fatal Crash | E71: 15366900 | F71: $/crash | AG71: Cycling | AH71: Commuting | AJ71: 0.186 | AK71: 0.186 | AL71: 0.099 | AR71: 64 | AS71: 0.0358 | AT71: 0.1125 | BQ71: 63 | BR71: 0.746 | BS71: 333.5812 | BT71: 0.0697 | BU71: 0.0013 | BV71: 0.0033 | BW71: 0.016 | BX71: 0.0012 | CC71: 63 | CD71: 0.4362 | CE71: 278.8616 | CF71: 0.0231 | CG71: 0.0005 | CH71: 0.0028 | CI71: 0.0061 | CJ71: 0.0004
D72: Injury Crash | E72: 342400 | F72: $/crash | R72: Sources: 19) 2017 National Household Travel Survey, 20) 2017 WHO HEAT Model Documentation, 21) Hood et al., 2011, 22) Heuman et al., 2005, | AH72: Recreation | AJ72: 0.461 | AK72: 0.461 | AL72: 0.622 | AR72: 65 | AS72: 0.0361 | AT72: 0.1146 | BQ72: 64 | BR72: 0.743 | BS72: 336.0325 | BT72: 0.071 | BU72: 0.0013 | BV72: 0.0033 | BW72: 0.0165 | BX72: 0.0012 | CC72: 64 | CD72: 0.4316 | CE72: 280.6587 | CF72: 0.0233 | CG72: 0.0005 | CH72: 0.0028 | CI72: 0.0062 | CJ72: 0.0005
D73: PDO Crash | E73: 9700 | F73: $/crash | R73: 23) Maestas et al., 2018, 24) World Health Organization, 2003, 25) California Health and Human Services Agency, 2019 Final Deaths | AH73: Other Destination | AJ73: 0.353 | AK73: 0.353 | AL73: 0.279 | AR73: 66 | AS73: 0.0361 | AT73: 0.1138 | BQ73: 65 | BR73: 0.7401 | BS73: 338.5018 | BT73: 0.0723 | BU73: 0.0013 | BV73: 0.0033 | BW73: 0.0171 | BX73: 0.0012 | CC73: 65 | CD73: 0.4271 | CE73: 282.4673 | CF73: 0.0235 | CG73: 0.0005 | CH73: 0.0028 | CI73: 0.0064 | CJ73: 0.0005
D74: Average Cost | E74: =IF(ProjLoc=3,AvgAccCostR,AvgAccCostU) -> 177500 | F74: $/crash | AG74: Walking | AH74: Commuting | AJ74: 0.052 | AK74: 0.052 | AL74: 0.062 | AR74: 67 | AS74: 0.0362 | AT74: 0.113 | BQ74: 66 | BR74: 0.738 | BS74: 339.0778 | BT74: 0.0728 | BU74: 0.0014 | BV74: 0.0034 | BW74: 0.0172 | BX74: 0.0012 | CC74: 66 | CD74: 0.425 | CE74: 283.2451 | CF74: 0.0236 | CG74: 0.0005 | CH74: 0.0028 | CI74: 0.0065 | CJ74: 0.0005
AH75: Recreation | AJ75: 0.55 | AK75: 0.55 | AL75: 0.635 | AR75: 68 | AS75: 0.0363 | AT75: 0.1123 | BQ75: 67 | BR75: 0.7359 | BS75: 339.6547 | BT75: 0.0732 | BU75: 0.0014 | BV75: 0.0034 | BW75: 0.0173 | BX75: 0.0013 | CC75: 67 | CD75: 0.4229 | CE75: 284.025 | CF75: 0.0237 | CG75: 0.0005 | CH75: 0.0028 | CI75: 0.0066 | CJ75: 0.0005
C76: Statewide Highway Crash Rates | AH76: Other Destination | AJ76: 0.398 | AK76: 0.398 | AL76: 0.303 | AR76: 69 | AS76: 0.0364 | AT76: 0.1115 | BQ76: 68 | BR76: 0.7338 | BS76: 340.2326 | BT76: 0.0737 | BU76: 0.0014 | BV76: 0.0034 | BW76: 0.0175 | BX76: 0.0013 | CC76: 68 | CD76: 0.4208 | CE76: 284.807 | CF76: 0.0238 | CG76: 0.0005 | CH76: 0.0028 | CI76: 0.0067 | CJ76: 0.0005
D77: Fatal Crash | E77: =ROUND(4501/757442,3) -> 0.006 | F77: per mil veh-mi | H77: 15 | AR77: 70 | AS77: 0.0365 | AT77: 0.1107 | BQ77: 69 | BR77: 0.7318 | BS77: 340.8115 | BT77: 0.0742 | BU77: 0.0014 | BV77: 0.0034 | BW77: 0.0176 | BX77: 0.0013 | CC77: 69 | CD77: 0.4187 | CE77: 285.5912 | CF77: 0.0239 | CG77: 0.0005 | CH77: 0.0028 | CI77: 0.0068 | CJ77: 0.0005
D78: Injury Crash | E78: =ROUND(198383/757442,2) -> 0.26 | F78: per mil veh-mi | H78: 15 | BQ78: 70 | BR78: 0.7297 | BS78: 341.3914 | BT78: 0.0746 | BU78: 0.0014 | BV78: 0.0034 | BW78: 0.0178 | BX78: 0.0013 | CC78: 70 | CD78: 0.4166 | CE78: 286.3775 | CF78: 0.0241 | CG78: 0.0005 | CH78: 0.0028 | CI78: 0.0069 | CJ78: 0.0005
D79: PDO Crash | E79: =ROUND(423401/757442,2) -> 0.56 | F79: per mil veh-mi | H79: 15 | AF79: Source: 2017 National Household Travel Survey, California Sample | AQ79: * Includes motorcycles & medium duty vehicles
D80: Non-Freeway | E80: 0.82 | F80: per mil veh-mi | H80: 15 | AQ80: Note: Five mph is best estimate for idling | BP80: Truck | BQ80: 0 | BR80: 1.315 | BS80: 11.0294 | BT80: 1.0065 | BU80: 0.0001 | BV80: 0.0001 | BW80: 0.0703 | BX80: 0.0001 | CB80: Truck | CC80: 0 | CD80: 0.6659 | CE80: 5.1023 | CF80: 0.7656 | CG80: 0 | CH80: 0.0001 | CI80: 0.0203 | CJ80: 0
BQ81: 5 | BR81: 2.3136 | BS81: 1696.8926 | BT81: 2.1959 | BU81: 0.0482 | BV81: 0.0164 | BW81: 0.3065 | BX81: 0.046 | CC81: 5 | CD81: 0.6516 | CE81: 865.1623 | CF81: 0.4277 | CG81: 0.01 | CH81: 0.0083 | CI81: 0.0478 | CJ81: 0.0095
AQ82: Source: California Air Resources Board, | BQ82: 6 | BR82: 2.2436 | BS82: 1668.3322 | BT82: 2.2233 | BU82: 0.0464 | BV82: 0.0161 | BW82: 0.2881 | BX82: 0.0443 | CC82: 6 | CD82: 0.6625 | CE82: 866.0485 | CF82: 0.5016 | CG82: 0.0097 | CH82: 0.0083 | CI82: 0.0465 | CJ82: 0.0092
B83: Sources: 1) Office of Management and Budget (OMB), 2) Review of OMB and State | AQ83: EMFAC2021, 2024 & 2044 average | BQ83: 7 | BR83: 2.1757 | BS83: 1640.2524 | BT83: 2.2511 | BU83: 0.0447 | BV83: 0.0157 | BW83: 0.2708 | BX83: 0.0426 | CC83: 7 | CD83: 0.6737 | CE83: 866.9357 | CF83: 0.5882 | CG83: 0.0094 | CH83: 0.0082 | CI83: 0.0453 | CJ83: 0.009
B84: Treasurer's Office data, 3) Bureau of Labor Statistics (BLS) OES 2020, 4) BLS Employment | BQ84: 8 | BR84: 2.1098 | BS84: 1612.6453 | BT84: 2.2792 | BU84: 0.043 | BV84: 0.0154 | BW84: 0.2546 | BX84: 0.041 | CC84: 8 | CD84: 0.685 | CE84: 867.8238 | CF84: 0.6897 | CG84: 0.0091 | CH84: 0.0082 | CI84: 0.0441 | CJ84: 0.0087
B85: Cost Index, 5) USDOT Department Guidance 2021, 6) California Department of Transportation | BQ85: 9 | BR85: 2.046 | BS85: 1585.5029 | BT85: 2.3076 | BU85: 0.0414 | BV85: 0.0151 | BW85: 0.2393 | BX85: 0.0395 | CC85: 9 | CD85: 0.6966 | CE85: 868.7128 | CF85: 0.8088 | CG85: 0.0088 | CH85: 0.0082 | CI85: 0.043 | CJ85: 0.0084
B86: TSI and Traffic Operations, 7) IDAS model, 8) AAA Daily Fuel Gauge Report 2021, 9) California | BQ86: 10 | BR86: 1.9841 | BS86: 1558.8172 | BT86: 2.3365 | BU86: 0.0398 | BV86: 0.0148 | BW86: 0.2249 | BX86: 0.038 | CC86: 10 | CD86: 0.7083 | CE86: 869.6027 | CF86: 0.9484 | CG86: 0.0086 | CH86: 0.0081 | CI86: 0.0419 | CJ86: 0.0082
B87: Board of Equalization, 10) Caltrans Transportation Funding in California 2020, 11) AAA Your | BQ87: 11 | BR87: 1.8688 | BS87: 1490.2476 | BT87: 2.1839 | BU87: 0.0377 | BV87: 0.0141 | BW87: 0.2111 | BX87: 0.036 | CC87: 11 | CD87: 0.66 | CE87: 836.5388 | CF87: 0.8852 | CG87: 0.0083 | CH87: 0.0078 | CI87: 0.0398 | CJ87: 0.0079
B88: Driving Costs 2021, 12) American Transportation Research Institute 2021, 13) USDOT VSL, | BQ88: 12 | BR88: 1.7601 | BS88: 1424.6943 | BT88: 2.0413 | BU88: 0.0357 | BV88: 0.0135 | BW88: 0.1981 | BX88: 0.0341 | CC88: 12 | CD88: 0.615 | CE88: 804.7321 | CF88: 0.8261 | CG88: 0.008 | CH88: 0.0075 | CI88: 0.0378 | CJ88: 0.0077
B89: 14) NHTSA 2010, 15) Crash Data on California State Highways 2022 | BQ89: 13 | BR89: 1.6578 | BS89: 1362.0246 | BT89: 1.908 | BU89: 0.0338 | BV89: 0.0129 | BW89: 0.186 | BX89: 0.0323 | CC89: 13 | CD89: 0.5731 | CE89: 774.1348 | CF89: 0.771 | CG89: 0.0078 | CH89: 0.0073 | CI89: 0.0359 | CJ89: 0.0074
BQ90: 14 | BR90: 1.5615 | BS90: 1302.1116 | BT90: 1.7834 | BU90: 0.032 | BV90: 0.0124 | BW90: 0.1746 | BX90: 0.0306 | CC90: 14 | CD90: 0.534 | CE90: 744.7008 | CF90: 0.7196 | CG90: 0.0076 | CH90: 0.007 | CI90: 0.0341 | CJ90: 0.0072
BQ91: 15 | BR91: 1.4707 | BS91: 1244.834 | BT91: 1.667 | BU91: 0.0303 | BV91: 0.0118 | BW91: 0.1639 | BX91: 0.029 | CC91: 15 | CD91: 0.4976 | CE91: 716.386 | CF91: 0.6716 | CG91: 0.0073 | CH91: 0.0067 | CI91: 0.0324 | CJ91: 0.007
BQ92: 16 | BR92: 1.3769 | BS92: 1231.6228 | BT92: 1.6477 | BU92: 0.0282 | BV92: 0.0117 | BW92: 0.1517 | BX92: 0.0269 | CC92: 16 | CD92: 0.4584 | CE92: 707.567 | CF92: 0.6712 | CG92: 0.0069 | CH92: 0.0067 | CI92: 0.0303 | CJ92: 0.0066
BQ93: 17 | BR93: 1.289 | BS93: 1218.5517 | BT93: 1.6286 | BU93: 0.0262 | BV93: 0.0116 | BW93: 0.1404 | BX93: 0.0251 | CC93: 17 | CD93: 0.4222 | CE93: 698.8566 | CF93: 0.6709 | CG93: 0.0065 | CH93: 0.0066 | CI93: 0.0283 | CJ93: 0.0062
BQ94: 18 | BR94: 1.2067 | BS94: 1205.6194 | BT94: 1.6097 | BU94: 0.0244 | BV94: 0.0115 | BW94: 0.13 | BX94: 0.0233 | CC94: 18 | CD94: 0.389 | CE94: 690.2534 | CF94: 0.6706 | CG94: 0.0061 | CH94: 0.0065 | CI94: 0.0265 | CJ94: 0.0058
BQ95: 19 | BR95: 1.1297 | BS95: 1192.8244 | BT95: 1.591 | BU95: 0.0227 | BV95: 0.0113 | BW95: 0.1204 | BX95: 0.0217 | CC95: 19 | CD95: 0.3583 | CE95: 681.7562 | CF95: 0.6703 | CG95: 0.0057 | CH95: 0.0064 | CI95: 0.0247 | CJ95: 0.0055
BQ96: 20 | BR96: 1.0576 | BS96: 1180.1651 | BT96: 1.5726 | BU96: 0.0211 | BV96: 0.0112 | BW96: 0.1114 | BX96: 0.0201 | CC96: 20 | CD96: 0.33 | CE96: 673.3635 | CF96: 0.6699 | CG96: 0.0054 | CH96: 0.0063 | CI96: 0.0231 | CJ96: 0.0052
BQ97: 21 | BR97: 1.0154 | BS97: 1138.1322 | BT97: 1.5314 | BU97: 0.0208 | BV97: 0.0108 | BW97: 0.1089 | BX97: 0.0199 | CC97: 21 | CD97: 0.3157 | CE97: 654.8921 | CF97: 0.6323 | CG97: 0.0054 | CH97: 0.0062 | CI97: 0.023 | CJ97: 0.0051
BQ98: 22 | BR98: 0.9749 | BS98: 1097.5964 | BT98: 1.4913 | BU98: 0.0206 | BV98: 0.0104 | BW98: 0.1065 | BX98: 0.0197 | CC98: 22 | CD98: 0.3021 | CE98: 636.9274 | CF98: 0.5968 | CG98: 0.0053 | CH98: 0.006 | CI98: 0.0229 | CJ98: 0.0051
BQ99: 23 | BR99: 0.9361 | BS99: 1058.5043 | BT99: 1.4522 | BU99: 0.0204 | BV99: 0.0101 | BW99: 0.1041 | BX99: 0.0195 | CC99: 23 | CD99: 0.289 | CE99: 619.4555 | CF99: 0.5632 | CG99: 0.0053 | CH99: 0.0058 | CI99: 0.0227 | CJ99: 0.005
BQ100: 24 | BR100: 0.8988 | BS100: 1020.8046 | BT100: 1.4141 | BU100: 0.0201 | BV100: 0.0097 | BW100: 0.1017 | BX100: 0.0192 | CC100: 24 | CD100: 0.2765 | CE100: 602.4629 | CF100: 0.5316 | CG100: 0.0052 | CH100: 0.0057 | CI100: 0.0226 | CJ100: 0.005
BQ101: 25 | BR101: 0.8629 | BS101: 984.4475 | BT101: 1.3771 | BU101: 0.0199 | BV101: 0.0093 | BW101: 0.0995 | BX101: 0.019 | CC101: 25 | CD101: 0.2645 | CE101: 585.9364 | CF101: 0.5017 | CG101: 0.0052 | CH101: 0.0055 | CI101: 0.0225 | CJ101: 0.0049
BQ102: 26 | BR102: 0.8297 | BS102: 974.5904 | BT102: 1.3491 | BU102: 0.0188 | BV102: 0.0092 | BW102: 0.0935 | BX102: 0.018 | CC102: 26 | CD102: 0.2525 | CE102: 579.6648 | CF102: 0.4836 | CG102: 0.005 | CH102: 0.0054 | CI102: 0.0213 | CJ102: 0.0047
BQ103: 27 | BR103: 0.7977 | BS103: 964.8319 | BT103: 1.3216 | BU103: 0.0178 | BV103: 0.0091 | BW103: 0.0879 | BX103: 0.017 | CC103: 27 | CD103: 0.241 | CE103: 573.4603 | CF103: 0.4662 | CG103: 0.0047 | CH103: 0.0054 | CI103: 0.0202 | CJ103: 0.0045
BQ104: 28 | BR104: 0.767 | BS104: 955.1712 | BT104: 1.2948 | BU104: 0.0168 | BV104: 0.009 | BW104: 0.0827 | BX104: 0.0161 | CC104: 28 | CD104: 0.23 | CE104: 567.3222 | CF104: 0.4493 | CG104: 0.0045 | CH104: 0.0053 | CI104: 0.0191 | CJ104: 0.0043
BQ105: 29 | BR105: 0.7374 | BS105: 945.6072 | BT105: 1.2684 | BU105: 0.0159 | BV105: 0.0089 | BW105: 0.0777 | BX105: 0.0152 | CC105: 29 | CD105: 0.2196 | CE105: 561.2498 | CF105: 0.4331 | CG105: 0.0043 | CH105: 0.0053 | CI105: 0.0181 | CJ105: 0.0041
BQ106: 30 | BR106: 0.709 | BS106: 936.1389 | BT106: 1.2426 | BU106: 0.0151 | BV106: 0.0088 | BW106: 0.0731 | BX106: 0.0144 | CC106: 30 | CD106: 0.2096 | CE106: 555.2424 | CF106: 0.4175 | CG106: 0.0041 | CH106: 0.0052 | CI106: 0.0172 | CJ106: 0.0039
BQ107: 31 | BR107: 0.6779 | BS107: 941.2716 | BT107: 1.2298 | BU107: 0.0144 | BV107: 0.0089 | BW107: 0.0682 | BX107: 0.0137 | CC107: 31 | CD107: 0.2018 | CE107: 559.8303 | CF107: 0.4131 | CG107: 0.004 | CH107: 0.0052 | CI107: 0.0162 | CJ107: 0.0038
BQ108: 32 | BR108: 0.6482 | BS108: 946.4323 | BT108: 1.2171 | BU108: 0.0138 | BV108: 0.0089 | BW108: 0.0636 | BX108: 0.0131 | CC108: 32 | CD108: 0.1942 | CE108: 564.4561 | CF108: 0.4088 | CG108: 0.0039 | CH108: 0.0053 | CI108: 0.0153 | CJ108: 0.0038
BQ109: 33 | BR109: 0.6198 | BS109: 951.6214 | BT109: 1.2046 | BU109: 0.0131 | BV109: 0.0089 | BW109: 0.0593 | BX109: 0.0126 | CC109: 33 | CD109: 0.187 | CE109: 569.1201 | CF109: 0.4045 | CG109: 0.0039 | CH109: 0.0053 | CI109: 0.0144 | CJ109: 0.0037
BQ110: 34 | BR110: 0.5926 | BS110: 956.8389 | BT110: 1.1921 | BU110: 0.0126 | BV110: 0.009 | BW110: 0.0553 | BX110: 0.012 | CC110: 34 | CD110: 0.18 | CE110: 573.8226 | CF110: 0.4003 | CG110: 0.0038 | CH110: 0.0053 | CI110: 0.0136 | CJ110: 0.0036
BQ111: 35 | BR111: 0.5666 | BS111: 962.085 | BT111: 1.1798 | BU111: 0.012 | BV111: 0.009 | BW111: 0.0516 | BX111: 0.0115 | CC111: 35 | CD111: 0.1733 | CE111: 578.564 | CF111: 0.3961 | CG111: 0.0037 | CH111: 0.0054 | CI111: 0.0128 | CJ111: 0.0035
BQ112: 36 | BR112: 0.5505 | BS112: 967.4195 | BT112: 1.1663 | BU112: 0.0118 | BV112: 0.0091 | BW112: 0.0488 | BX112: 0.0113 | CC112: 36 | CD112: 0.1688 | CE112: 584.0671 | CF112: 0.3883 | CG112: 0.0038 | CH112: 0.0054 | CI112: 0.0122 | CJ112: 0.0036
BQ113: 37 | BR113: 0.5349 | BS113: 972.7836 | BT113: 1.1529 | BU113: 0.0116 | BV113: 0.0091 | BW113: 0.0462 | BX113: 0.011 | CC113: 37 | CD113: 0.1645 | CE113: 589.6225 | CF113: 0.3806 | CG113: 0.0038 | CH113: 0.0055 | CI113: 0.0116 | CJ113: 0.0037
BQ114: 38 | BR114: 0.5197 | BS114: 978.1775 | BT114: 1.1396 | BU114: 0.0113 | BV114: 0.0091 | BW114: 0.0437 | BX114: 0.0108 | CC114: 38 | CD114: 0.1603 | CE114: 595.2308 | CF114: 0.3731 | CG114: 0.0039 | CH114: 0.0055 | CI114: 0.0111 | CJ114: 0.0038
BQ115: 39 | BR115: 0.505 | BS115: 983.6013 | BT115: 1.1266 | BU115: 0.0111 | BV115: 0.0092 | BW115: 0.0413 | BX115: 0.0106 | CC115: 39 | CD115: 0.1561 | CE115: 600.8924 | CF115: 0.3658 | CG115: 0.004 | CH115: 0.0056 | CI115: 0.0105 | CJ115: 0.0038
BQ116: 40 | BR116: 0.4906 | BS116: 989.0551 | BT116: 1.1136 | BU116: 0.0109 | BV116: 0.0092 | BW116: 0.0391 | BX116: 0.0104 | CC116: 40 | CD116: 0.1521 | CE116: 606.6079 | CF116: 0.3586 | CG116: 0.0041 | CH116: 0.0056 | CI116: 0.01 | CJ116: 0.0039
BQ117: 41 | BR117: 0.4868 | BS117: 984.5077 | BT117: 1.0994 | BU117: 0.011 | BV117: 0.0092 | BW117: 0.0382 | BX117: 0.0105 | CC117: 41 | CD117: 0.1479 | CE117: 611.8629 | CF117: 0.353 | CG117: 0.0044 | CH117: 0.0057 | CI117: 0.0098 | CJ117: 0.0042
BQ118: 42 | BR118: 0.4829 | BS118: 979.9812 | BT118: 1.0854 | BU118: 0.0111 | BV118: 0.0091 | BW118: 0.0374 | BX118: 0.0106 | CC118: 42 | CD118: 0.1438 | CE118: 617.1633 | CF118: 0.3474 | CG118: 0.0046 | CH118: 0.0057 | CI118: 0.0096 | CJ118: 0.0044
BQ119: 43 | BR119: 0.4791 | BS119: 975.4754 | BT119: 1.0715 | BU119: 0.0111 | BV119: 0.0091 | BW119: 0.0366 | BX119: 0.0106 | CC119: 43 | CD119: 0.1399 | CE119: 622.5096 | CF119: 0.342 | CG119: 0.0049 | CH119: 0.0058 | CI119: 0.0094 | CJ119: 0.0047
BQ120: 44 | BR120: 0.4753 | BS120: 970.9904 | BT120: 1.0579 | BU120: 0.0112 | BV120: 0.0091 | BW120: 0.0359 | BX120: 0.0107 | CC120: 44 | CD120: 0.136 | CE120: 627.9023 | CF120: 0.3366 | CG120: 0.0052 | CH120: 0.0058 | CI120: 0.0093 | CJ120: 0.005
BQ121: 45 | BR121: 0.4716 | BS121: 966.5261 | BT121: 1.0444 | BU121: 0.0113 | BV121: 0.009 | BW121: 0.0351 | BX121: 0.0108 | CC121: 45 | CD121: 0.1323 | CE121: 633.3417 | CF121: 0.3314 | CG121: 0.0056 | CH121: 0.0059 | CI121: 0.0091 | CJ121: 0.0053
BQ122: 46 | BR122: 0.4762 | BS122: 930.2224 | BT122: 1.0417 | BU122: 0.0115 | BV122: 0.0087 | BW122: 0.0368 | BX122: 0.011 | CC122: 46 | CD122: 0.13 | CE122: 609.3532 | CF122: 0.3103 | CG122: 0.0057 | CH122: 0.0057 | CI122: 0.0093 | CJ122: 0.0054
BQ123: 47 | BR123: 0.4809 | BS123: 895.2823 | BT123: 1.0391 | BU123: 0.0118 | BV123: 0.0084 | BW123: 0.0386 | BX123: 0.0112 | CC123: 47 | CD123: 0.1278 | CE123: 586.2732 | CF123: 0.2906 | CG123: 0.0058 | CH123: 0.0055 | CI123: 0.0096 | CJ123: 0.0055
BQ124: 48 | BR124: 0.4857 | BS124: 861.6546 | BT124: 1.0364 | BU124: 0.012 | BV124: 0.0081 | BW124: 0.0405 | BX124: 0.0115 | CC124: 48 | CD124: 0.1256 | CE124: 564.0674 | CF124: 0.2722 | CG124: 0.0059 | CH124: 0.0053 | CI124: 0.0099 | CJ124: 0.0056
BQ125: 49 | BR125: 0.4905 | BS125: 829.2899 | BT125: 1.0338 | BU125: 0.0123 | BV125: 0.0078 | BW125: 0.0425 | BX125: 0.0117 | CC125: 49 | CD125: 0.1234 | CE125: 542.7027 | CF125: 0.2549 | CG125: 0.006 | CH125: 0.0051 | CI125: 0.0102 | CJ125: 0.0057
BQ126: 50 | BR126: 0.4953 | BS126: 798.141 | BT126: 1.0311 | BU126: 0.0125 | BV126: 0.0075 | BW126: 0.0445 | BX126: 0.012 | CC126: 50 | CD126: 0.1213 | CE126: 522.1472 | CF126: 0.2387 | CG126: 0.0061 | CH126: 0.0049 | CI126: 0.0105 | CJ126: 0.0058
BQ127: 51 | BR127: 0.4801 | BS127: 830.7086 | BT127: 1.0417 | BU127: 0.0131 | BV127: 0.0078 | BW127: 0.0425 | BX127: 0.0125 | CC127: 51 | CD127: 0.1184 | CE127: 546.1226 | CF127: 0.2548 | CG127: 0.0067 | CH127: 0.0051 | CI127: 0.0101 | CJ127: 0.0064
BQ128: 52 | BR128: 0.4653 | BS128: 864.6052 | BT128: 1.0523 | BU128: 0.0136 | BV128: 0.0081 | BW128: 0.0405 | BX128: 0.013 | CC128: 52 | CD128: 0.1156 | CE128: 571.1989 | CF128: 0.2719 | CG128: 0.0073 | CH128: 0.0053 | CI128: 0.0098 | CJ128: 0.007
BQ129: 53 | BR129: 0.451 | BS129: 899.8848 | BT129: 1.0631 | BU129: 0.0142 | BV129: 0.0085 | BW129: 0.0386 | BX129: 0.0136 | CC129: 53 | CD129: 0.1129 | CE129: 597.4266 | CF129: 0.2902 | CG129: 0.0079 | CH129: 0.0056 | CI129: 0.0094 | CJ129: 0.0076
BQ130: 54 | BR130: 0.4371 | BS130: 936.604 | BT130: 1.0739 | BU130: 0.0149 | BV130: 0.0088 | BW130: 0.0369 | BX130: 0.0142 | CC130: 54 | CD130: 0.1102 | CE130: 624.8585 | CF130: 0.3097 | CG130: 0.0087 | CH130: 0.0058 | CI130: 0.0091 | CJ130: 0.0083
BQ131: 55 | BR131: 0.4236 | BS131: 974.8216 | BT131: 1.0849 | BU131: 0.0155 | BV131: 0.0091 | BW131: 0.0352 | BX131: 0.0148 | CC131: 55 | CD131: 0.1076 | CE131: 653.5501 | CF131: 0.3306 | CG131: 0.0095 | CH131: 0.0061 | CI131: 0.0088 | CJ131: 0.0091
BQ132: 56 | BR132: 0.41 | BS132: 1022.8646 | BT132: 1.0832 | BU132: 0.0164 | BV132: 0.0096 | BW132: 0.0315 | BX132: 0.0157 | CC132: 56 | CD132: 0.1045 | CE132: 686.2747 | CF132: 0.3648 | CG132: 0.0105 | CH132: 0.0064 | CI132: 0.0085 | CJ132: 0.01
BQ133: 57 | BR133: 0.3969 | BS133: 1073.2754 | BT133: 1.0815 | BU133: 0.0173 | BV133: 0.0101 | BW133: 0.0282 | BX133: 0.0165 | CC133: 57 | CD133: 0.1015 | CE133: 720.6379 | CF133: 0.4025 | CG133: 0.0116 | CH133: 0.0067 | CI133: 0.0083 | CJ133: 0.0111
BQ134: 58 | BR134: 0.3841 | BS134: 1126.1707 | BT134: 1.0797 | BU134: 0.0183 | BV134: 0.0105 | BW134: 0.0252 | BX134: 0.0175 | CC134: 58 | CD134: 0.0986 | CE134: 756.7217 | CF134: 0.4442 | CG134: 0.0129 | CH134: 0.0071 | CI134: 0.008 | CJ134: 0.0123
BQ135: 59 | BR135: 0.3718 | BS135: 1181.6728 | BT135: 1.078 | BU135: 0.0193 | BV135: 0.0111 | BW135: 0.0226 | BX135: 0.0184 | CC135: 59 | CD135: 0.0957 | CE135: 794.6123 | CF135: 0.4902 | CG135: 0.0143 | CH135: 0.0074 | CI135: 0.0078 | CJ135: 0.0137
BQ136: 60 | BR136: 0.3599 | BS136: 1239.9103 | BT136: 1.0763 | BU136: 0.0203 | BV136: 0.0116 | BW136: 0.0202 | BX136: 0.0195 | CC136: 60 | CD136: 0.093 | CE136: 834.4002 | CF136: 0.5409 | CG136: 0.0158 | CH136: 0.0078 | CI136: 0.0076 | CJ136: 0.0151
BQ137: 61 | BR137: 0.3501 | BS137: 1264.0964 | BT137: 1.1266 | BU137: 0.0216 | BV137: 0.0118 | BW137: 0.0202 | BX137: 0.0206 | CC137: 61 | CD137: 0.0918 | CE137: 852.4879 | CF137: 0.5861 | CG137: 0.0169 | CH137: 0.008 | CI137: 0.0078 | CJ137: 0.0162
BQ138: 62 | BR138: 0.3406 | BS138: 1288.7544 | BT138: 1.1792 | BU138: 0.0229 | BV138: 0.0121 | BW138: 0.0201 | BX138: 0.0219 | CC138: 62 | CD138: 0.0907 | CE138: 870.9677 | CF138: 0.6351 | CG138: 0.0181 | CH138: 0.0082 | CI138: 0.0081 | CJ138: 0.0173
BQ139: 63 | BR139: 0.3313 | BS139: 1313.8933 | BT139: 1.2343 | BU139: 0.0243 | BV139: 0.0123 | BW139: 0.0201 | BX139: 0.0232 | CC139: 63 | CD139: 0.0896 | CE139: 889.8481 | CF139: 0.6882 | CG139: 0.0193 | CH139: 0.0083 | CI139: 0.0084 | CJ139: 0.0185
BQ140: 64 | BR140: 0.3223 | BS140: 1339.5226 | BT140: 1.292 | BU140: 0.0258 | BV140: 0.0126 | BW140: 0.0201 | BX140: 0.0247 | CC140: 64 | CD140: 0.0885 | CE140: 909.1377 | CF140: 0.7457 | CG140: 0.0206 | CH140: 0.0085 | CI140: 0.0086 | CJ140: 0.0197
BQ141: 65 | BR141: 0.3135 | BS141: 1365.6518 | BT141: 1.3524 | BU141: 0.0274 | BV141: 0.0128 | BW141: 0.02 | BX141: 0.0262 | CC141: 65 | CD141: 0.0874 | CE141: 928.8456 | CF141: 0.8081 | CG141: 0.022 | CH141: 0.0087 | CI141: 0.0089 | CJ141: 0.0211
BQ142: 66 | BR142: 0.3131 | BS142: 1350.2912 | BT142: 1.3589 | BU142: 0.0276 | BV142: 0.0127 | BW142: 0.0209 | BX142: 0.0264 | CC142: 66 | CD142: 0.0866 | CE142: 929.4837 | CF142: 0.8155 | CG142: 0.0223 | CH142: 0.0087 | CI142: 0.0091 | CJ142: 0.0213
BQ143: 67 | BR143: 0.3127 | BS143: 1335.1033 | BT143: 1.3655 | BU143: 0.0278 | BV143: 0.0125 | BW143: 0.0218 | BX143: 0.0266 | CC143: 67 | CD143: 0.0858 | CE143: 930.1224 | CF143: 0.823 | CG143: 0.0225 | CH143: 0.0087 | CI143: 0.0092 | CJ143: 0.0216
BQ144: 68 | BR144: 0.3124 | BS144: 1320.0862 | BT144: 1.3722 | BU144: 0.0281 | BV144: 0.0124 | BW144: 0.0228 | BX144: 0.0269 | CC144: 68 | CD144: 0.085 | CE144: 930.7614 | CF144: 0.8306 | CG144: 0.0228 | CH144: 0.0087 | CI144: 0.0094 | CJ144: 0.0218
BQ145: 69 | BR145: 0.312 | BS145: 1305.2381 | BT145: 1.3788 | BU145: 0.0283 | BV145: 0.0123 | BW145: 0.0238 | BX145: 0.0271 | CC145: 69 | CD145: 0.0842 | CE145: 931.4009 | CF145: 0.8383 | CG145: 0.023 | CH145: 0.0088 | CI145: 0.0095 | CJ145: 0.022
BQ146: 70 | BR146: 0.3116 | BS146: 1290.5569 | BT146: 1.3855 | BU146: 0.0286 | BV146: 0.0122 | BW146: 0.0248 | BX146: 0.0273 | CC146: 70 | CD146: 0.0834 | CE146: 932.0408 | CF146: 0.846 | CG146: 0.0233 | CH146: 0.0088 | CI146: 0.0097 | CJ146: 0.0223
BP148: Bus | BQ148: 0 | BR148: 1.7524 | BS148: 13.2318 | BT148: 0.5397 | BU148: 0.0001 | BV148: 0.0001 | BW148: 0.0815 | BX148: 0.0001 | CB148: Bus | CC148: 0 | CD148: 0.7539 | CE148: 6.0009 | CF148: 0.3925 | CG148: 0.0001 | CH148: 0.0001 | CI148: 0.0363 | CJ148: 0.0001
BQ149: 5 | BR149: 31.9638 | BS149: 5318.2891 | BT149: 4.1913 | BU149: 0.0385 | BV149: 0.0162 | BW149: 0.355 | BX149: 0.0368 | CC149: 5 | CD149: 4.4133 | CE149: 1358.904 | CF149: 0.8621 | CG149: 0.0056 | CH149: 0.0083 | CI149: 0.0694 | CJ149: 0.0053
BQ150: 6 | BR150: 29.9626 | BS150: 4954.2773 | BT150: 3.8723 | BU150: 0.0362 | BV150: 0.0157 | BW150: 0.3264 | BX150: 0.0346 | CC150: 6 | CD150: 3.5422 | CE150: 1229.3096 | CF150: 0.7928 | CG150: 0.0052 | CH150: 0.0079 | CI150: 0.061 | CJ150: 0.0049
BQ151: 7 | BR151: 28.0868 | BS151: 4615.1803 | BT151: 3.5776 | BU151: 0.0341 | BV151: 0.0153 | BW151: 0.3 | BX151: 0.0325 | CC151: 7 | CD151: 2.8431 | CE151: 1112.0741 | CF151: 0.729 | CG151: 0.0048 | CH151: 0.0075 | CI151: 0.0537 | CJ151: 0.0046
BQ152: 8 | BR152: 26.3284 | BS152: 4299.2929 | BT152: 3.3053 | BU152: 0.032 | BV152: 0.0149 | BW152: 0.2758 | BX152: 0.0306 | CC152: 8 | CD152: 2.282 | CE152: 1006.0191 | CF152: 0.6704 | CG152: 0.0045 | CH152: 0.0071 | CI152: 0.0472 | CJ152: 0.0042
BQ153: 9 | BR153: 24.6801 | BS153: 4005.0265 | BT153: 3.0537 | BU153: 0.0301 | BV153: 0.0145 | BW153: 0.2536 | BX153: 0.0287 | CC153: 9 | CD153: 1.8316 | CE153: 910.0782 | CF153: 0.6165 | CG153: 0.0042 | CH153: 0.0067 | CI153: 0.0415 | CJ153: 0.0039
BQ154: 10 | BR154: 23.1349 | BS154: 3730.9013 | BT154: 2.8213 | BU154: 0.0283 | BV154: 0.0141 | BW154: 0.2331 | BX154: 0.027 | CC154: 10 | CD154: 1.4701 | CE154: 823.2868 | CF154: 0.5669 | CG154: 0.0039 | CH154: 0.0063 | CI154: 0.0365 | CJ154: 0.0037
BQ155: 11 | BR155: 21.8499 | BS155: 3416.1438 | BT155: 2.5833 | BU155: 0.0253 | BV155: 0.0133 | BW155: 0.2059 | BX155: 0.0241 | CC155: 11 | CD155: 1.2749 | CE155: 759.9968 | CF155: 0.5047 | CG155: 0.0035 | CH155: 0.0059 | CI155: 0.0308 | CJ155: 0.0033
BQ156: 12 | BR156: 20.6362 | BS156: 3127.9409 | BT156: 2.3655 | BU156: 0.0226 | BV156: 0.0127 | BW156: 0.1819 | BX156: 0.0216 | CC156: 12 | CD156: 1.1056 | CE156: 701.5721 | CF156: 0.4493 | CG156: 0.0031 | CH156: 0.0055 | CI156: 0.0259 | CJ156: 0.0029
BQ157: 13 | BR157: 19.4899 | BS157: 2864.0522 | BT157: 2.166 | BU157: 0.0202 | BV157: 0.012 | BW157: 0.1606 | BX157: 0.0193 | CC157: 13 | CD157: 0.9588 | CE157: 647.6388 | CF157: 0.4 | CG157: 0.0028 | CH157: 0.0052 | CI157: 0.0219 | CJ157: 0.0026
BQ158: 14 | BR158: 18.4073 | BS158: 2622.4265 | BT158: 1.9833 | BU158: 0.018 | BV158: 0.0114 | BW158: 0.1419 | BX158: 0.0172 | CC158: 14 | CD158: 0.8315 | CE158: 597.8517 | CF158: 0.3561 | CG158: 0.0025 | CH158: 0.0048 | CI158: 0.0184 | CJ158: 0.0024
BQ159: 15 | BR159: 17.3848 | BS159: 2401.1855 | BT159: 1.816 | BU159: 0.0161 | BV159: 0.0108 | BW159: 0.1253 | BX159: 0.0154 | CC159: 15 | CD159: 0.7211 | CE159: 551.8919 | CF159: 0.3171 | CG159: 0.0022 | CH159: 0.0045 | CI159: 0.0155 | CJ159: 0.0021
BQ160: 16 | BR160: 19.1133 | BS160: 2343.2881 | BT160: 1.5686 | BU160: 0.0126 | BV160: 0.0092 | BW160: 0.1068 | BX160: 0.012 | CC160: 16 | CD160: 0.5336 | CE160: 427.0975 | CF160: 0.2446 | CG160: 0.0017 | CH160: 0.0035 | CI160: 0.0113 | CJ160: 0.0016
BQ161: 17 | BR161: 21.0138 | BS161: 2286.7867 | BT161: 1.3549 | BU161: 0.0098 | BV161: 0.0078 | BW161: 0.091 | BX161: 0.0093 | CC161: 17 | CD161: 0.3949 | CE161: 330.5218 | CF161: 0.1888 | CG161: 0.0013 | CH161: 0.0027 | CI161: 0.0082 | CJ161: 0.0012
BQ162: 18 | BR162: 23.1031 | BS162: 2231.6477 | BT162: 1.1703 | BU162: 0.0076 | BV162: 0.0066 | BW162: 0.0776 | BX162: 0.0073 | CC162: 18 | CD162: 0.2922 | CE162: 255.7839 | CF162: 0.1456 | CG162: 0.001 | CH162: 0.0021 | CI162: 0.006 | CJ162: 0.0009
BQ163: 19 | BR163: 25.4002 | BS163: 2177.8382 | BT163: 1.0108 | BU163: 0.006 | BV163: 0.0056 | BW163: 0.0661 | BX163: 0.0057 | CC163: 19 | CD163: 0.2162 | CE163: 197.9458 | CF163: 0.1124 | CG163: 0.0008 | CH163: 0.0017 | CI163: 0.0044 | CJ163: 0.0007
BQ164: 20 | BR164: 27.9257 | BS164: 2125.3262 | BT164: 0.8731 | BU164: 0.0046 | BV164: 0.0047 | BW164: 0.0563 | BX164: 0.0044 | CC164: 20 | CD164: 0.16 | CE164: 153.1861 | CF164: 0.0867 | CG164: 0.0006 | CH164: 0.0013 | CI164: 0.0032 | CJ164: 0.0005
BQ165: 21 | BR165: 21.3276 | BS165: 1958.9478 | BT165: 0.9662 | BU165: 0.0056 | BV165: 0.0055 | BW165: 0.0589 | BX165: 0.0053 | CC165: 21 | CD165: 0.1995 | CE165: 195.5079 | CF165: 0.11 | CG165: 0.0007 | CH165: 0.0016 | CI165: 0.0039 | CJ165: 0.0007
BQ166: 22 | BR166: 16.2884 | BS166: 1805.5941 | BT166: 1.0692 | BU166: 0.0067 | BV166: 0.0064 | BW166: 0.0616 | BX166: 0.0063 | CC166: 22 | CD166: 0.2487 | CE166: 249.5223 | CF166: 0.1395 | CG166: 0.0009 | CH166: 0.0021 | CI166: 0.0049 | CJ166: 0.0009
BQ167: 23 | BR167: 12.4399 | BS167: 1664.2455 | BT167: 1.1832 | BU167: 0.008 | BV167: 0.0075 | BW167: 0.0644 | BX167: 0.0076 | CC167: 23 | CD167: 0.31 | CE167: 318.4596 | CF167: 0.177 | CG167: 0.0012 | CH167: 0.0027 | CI167: 0.0061 | CJ167: 0.0011
BQ168: 24 | BR168: 9.5006 | BS168: 1533.9621 | BT168: 1.3094 | BU168: 0.0095 | BV168: 0.0087 | BW168: 0.0673 | BX168: 0.0091 | CC168: 24 | CD168: 0.3864 | CE168: 406.4427 | CF168: 0.2246 | CG168: 0.0015 | CH168: 0.0034 | CI168: 0.0076 | CJ168: 0.0014
BQ169: 25 | BR169: 7.2559 | BS169: 1413.8779 | BT169: 1.449 | BU169: 0.0114 | BV169: 0.0101 | BW169: 0.0704 | BX169: 0.0109 | CC169: 25 | CD169: 0.4817 | CE169: 518.7335 | CF169: 0.285 | CG169: 0.0019 | CH169: 0.0044 | CI169: 0.0094 | CJ169: 0.0018
BQ170: 26 | BR170: 7.1789 | BS170: 1378.7891 | BT170: 1.4072 | BU170: 0.0111 | BV170: 0.0099 | BW170: 0.0677 | BX170: 0.0106 | CC170: 26 | CD170: 0.4524 | CE170: 503.8763 | CF170: 0.2716 | CG170: 0.0018 | CH170: 0.0043 | CI170: 0.0089 | CJ170: 0.0017
BQ171: 27 | BR171: 7.1028 | BS171: 1344.571 | BT171: 1.3666 | BU171: 0.0108 | BV171: 0.0097 | BW171: 0.0651 | BX171: 0.0103 | CC171: 27 | CD171: 0.4249 | CE171: 489.4446 | CF171: 0.2589 | CG171: 0.0018 | CH171: 0.0042 | CI171: 0.0085 | CJ171: 0.0017
BQ172: 28 | BR172: 7.0275 | BS172: 1311.2022 | BT172: 1.3272 | BU172: 0.0105 | BV172: 0.0095 | BW172: 0.0626 | BX172: 0.01 | CC172: 28 | CD172: 0.3991 | CE172: 475.4262 | CF172: 0.2468 | CG172: 0.0017 | CH172: 0.004 | CI172: 0.0081 | CJ172: 0.0017
BQ173: 29 | BR173: 6.9529 | BS173: 1278.6615 | BT173: 1.289 | BU173: 0.0102 | BV173: 0.0094 | BW173: 0.0602 | BX173: 0.0097 | CC173: 29 | CD173: 0.3748 | CE173: 461.8094 | CF173: 0.2352 | CG173: 0.0017 | CH173: 0.0039 | CI173: 0.0077 | CJ173: 0.0016
BQ174: 30 | BR174: 6.8792 | BS174: 1246.9284 | BT174: 1.2518 | BU174: 0.0099 | BV174: 0.0092 | BW174: 0.0579 | BX174: 0.0095 | CC174: 30 | CD174: 0.352 | CE174: 448.5826 | CF174: 0.2242 | CG174: 0.0017 | CH174: 0.0038 | CI174: 0.0073 | CJ174: 0.0016
BQ175: 31 | BR175: 6.6944 | BS175: 1222.2643 | BT175: 1.234 | BU175: 0.01 | BV175: 0.0091 | BW175: 0.0564 | BX175: 0.0095 | CC175: 31 | CD175: 0.3357 | CE175: 444.9934 | CF175: 0.218 | CG175: 0.0017 | CH175: 0.0038 | CI175: 0.0071 | CJ175: 0.0016
BQ176: 32 | BR176: 6.5146 | BS176: 1198.088 | BT176: 1.2165 | BU176: 0.01 | BV176: 0.009 | BW176: 0.055 | BX176: 0.0096 | CC176: 32 | CD176: 0.3202 | CE176: 441.4329 | CF176: 0.2121 | CG176: 0.0017 | CH176: 0.0038 | CI176: 0.007 | CJ176: 0.0016
BQ177: 33 | BR177: 6.3396 | BS177: 1174.39 | BT177: 1.1992 | BU177: 0.0101 | BV177: 0.0089 | BW177: 0.0536 | BX177: 0.0096 | CC177: 33 | CD177: 0.3054 | CE177: 437.9009 | CF177: 0.2062 | CG177: 0.0018 | CH177: 0.0038 | CI177: 0.0068 | CJ177: 0.0017
BQ178: 34 | BR178: 6.1693 | BS178: 1151.1607 | BT178: 1.1822 | BU178: 0.0101 | BV178: 0.0088 | BW178: 0.0523 | BX178: 0.0097 | CC178: 34 | CD178: 0.2913 | CE178: 434.3972 | CF178: 0.2006 | CG178: 0.0018 | CH178: 0.0038 | CI178: 0.0066 | CJ178: 0.0017
BQ179: 35 | BR179: 6.0035 | BS179: 1128.3909 | BT179: 1.1654 | BU179: 0.0102 | BV179: 0.0087 | BW179: 0.051 | BX179: 0.0097 | CC179: 35 | CD179: 0.2779 | CE179: 430.9215 | CF179: 0.1951 | CG179: 0.0018 | CH179: 0.0037 | CI179: 0.0065 | CJ179: 0.0017
BQ180: 36 | BR180: 5.7912 | BS180: 1115.9714 | BT180: 1.1584 | BU180: 0.0103 | BV180: 0.0087 | BW180: 0.0498 | BX180: 0.0099 | CC180: 36 | CD180: 0.2673 | CE180: 436.4497 | CF180: 0.1926 | CG180: 0.0019 | CH180: 0.0038 | CI180: 0.0064 | CJ180: 0.0018
BQ181: 37 | BR181: 5.5864 | BS181: 1103.6886 | BT181: 1.1514 | BU181: 0.0104 | BV181: 0.0087 | BW181: 0.0487 | BX181: 0.01 | CC181: 37 | CD181: 0.2571 | CE181: 442.0488 | CF181: 0.1902 | CG181: 0.002 | CH181: 0.0039 | CI181: 0.0064 | CJ181: 0.0019
BQ182: 38 | BR182: 5.3889 | BS182: 1091.541 | BT182: 1.1445 | BU182: 0.0106 | BV182: 0.0087 | BW182: 0.0476 | BX182: 0.0101 | CC182: 38 | CD182: 0.2473 | CE182: 447.7198 | CF182: 0.1877 | CG182: 0.0021 | CH182: 0.0039 | CI182: 0.0063 | CJ182: 0.002
BQ183: 39 | BR183: 5.1983 | BS183: 1079.5271 | BT183: 1.1376 | BU183: 0.0107 | BV183: 0.0087 | BW183: 0.0466 | BX183: 0.0102 | CC183: 39 | CD183: 0.2378 | CE183: 453.4634 | CF183: 0.1854 | CG183: 0.0022 | CH183: 0.004 | CI183: 0.0063 | CJ183: 0.0021
BQ184: 40 | BR184: 5.0145 | BS184: 1067.6455 | BT184: 1.1308 | BU184: 0.0108 | BV184: 0.0087 | BW184: 0.0455 | BX184: 0.0103 | CC184: 40 | CD184: 0.2288 | CE184: 459.2808 | CF184: 0.183 | CG184: 0.0023 | CH184: 0.0041 | CI184: 0.0062 | CJ184: 0.0022
BQ185: 41 | BR185: 4.8804 | BS185: 1062.5605 | BT185: 1.1354 | BU185: 0.0109 | BV185: 0.0087 | BW185: 0.0446 | BX185: 0.0104 | CC185: 41 | CD185: 0.2233 | CE185: 464.4658 | CF185: 0.1794 | CG185: 0.0023 | CH185: 0.0041 | CI185: 0.0061 | CJ185: 0.0022
BQ186: 42 | BR186: 4.7499 | BS186: 1057.4997 | BT186: 1.1399 | BU186: 0.0109 | BV186: 0.0087 | BW186: 0.0436 | BX186: 0.0105 | CC186: 42 | CD186: 0.2179 | CE186: 469.7092 | CF186: 0.1759 | CG186: 0.0024 | CH186: 0.0042 | CI186: 0.006 | CJ186: 0.0023
BQ187: 43 | BR187: 4.6229 | BS187: 1052.463 | BT187: 1.1446 | BU187: 0.011 | BV187: 0.0087 | BW187: 0.0427 | BX187: 0.0105 | CC187: 43 | CD187: 0.2127 | CE187: 475.0119 | CF187: 0.1724 | CG187: 0.0025 | CH187: 0.0042 | CI187: 0.0059 | CJ187: 0.0024
BQ188: 44 | BR188: 4.4993 | BS188: 1047.4503 | BT188: 1.1492 | BU188: 0.0111 | BV188: 0.0087 | BW188: 0.0418 | BX188: 0.0106 | CC188: 44 | CD188: 0.2076 | CE188: 480.3744 | CF188: 0.1691 | CG188: 0.0026 | CH188: 0.0043 | CI188: 0.0059 | CJ188: 0.0025
BQ189: 45 | BR189: 4.3791 | BS189: 1042.4615 | BT189: 1.1538 | BU189: 0.0111 | BV189: 0.0088 | BW189: 0.0409 | BX189: 0.0106 | CC189: 45 | CD189: 0.2026 | CE189: 485.7975 | CF189: 0.1657 | CG189: 0.0027 | CH189: 0.0044 | CI189: 0.0058 | CJ189: 0.0026
BQ190: 46 | BR190: 4.3262 | BS190: 1046.1259 | BT190: 1.144 | BU190: 0.011 | BV190: 0.0088 | BW190: 0.0401 | BX190: 0.0105 | CC190: 46 | CD190: 0.2012 | CE190: 489.0084 | CF190: 0.1615 | CG190: 0.0028 | CH190: 0.0044 | CI190: 0.0057 | CJ190: 0.0026
BQ191: 47 | BR191: 4.274 | BS191: 1049.8033 | BT191: 1.1342 | BU191: 0.0109 | BV191: 0.0089 | BW191: 0.0392 | BX191: 0.0104 | CC191: 47 | CD191: 0.1997 | CE191: 492.2406 | CF191: 0.1573 | CG191: 0.0028 | CH191: 0.0044 | CI191: 0.0056 | CJ191: 0.0027
BQ192: 48 | BR192: 4.2223 | BS192: 1053.4936 | BT192: 1.1245 | BU192: 0.0107 | BV192: 0.0089 | BW192: 0.0384 | BX192: 0.0103 | CC192: 48 | CD192: 0.1983 | CE192: 495.4942 | CF192: 0.1532 | CG192: 0.0029 | CH192: 0.0045 | CI192: 0.0055 | CJ192: 0.0028
BQ193: 49 | BR193: 4.1714 | BS193: 1057.1969 | BT193: 1.1148 | BU193: 0.0106 | BV193: 0.009 | BW193: 0.0377 | BX193: 0.0101 | CC193: 49 | CD193: 0.1969 | CE193: 498.7693 | CF193: 0.1493 | CG193: 0.003 | CH193: 0.0045 | CI193: 0.0054 | CJ193: 0.0028
BQ194: 50 | BR194: 4.121 | BS194: 1060.9131 | BT194: 1.1053 | BU194: 0.0105 | BV194: 0.009 | BW194: 0.0369 | BX194: 0.01 | CC194: 50 | CD194: 0.1955 | CE194: 502.066 | CF194: 0.1454 | CG194: 0.003 | CH194: 0.0045 | CI194: 0.0054 | CJ194: 0.0029
BQ195: 51 | BR195: 4.0545 | BS195: 1079.6318 | BT195: 1.1102 | BU195: 0.0107 | BV195: 0.0092 | BW195: 0.0371 | BX195: 0.0102 | CC195: 51 | CD195: 0.1974 | CE195: 514.7106 | CF195: 0.1497 | CG195: 0.0032 | CH195: 0.0047 | CI195: 0.0054 | CJ195: 0.0031
BQ196: 52 | BR196: 3.9891 | BS196: 1098.6808 | BT196: 1.115 | BU196: 0.0108 | BV196: 0.0094 | BW196: 0.0373 | BX196: 0.0104 | CC196: 52 | CD196: 0.1995 | CE196: 527.6737 | CF196: 0.154 | CG196: 0.0034 | CH196: 0.0048 | CI196: 0.0055 | CJ196: 0.0033
BQ197: 53 | BR197: 3.9248 | BS197: 1118.0659 | BT197: 1.1199 | BU197: 0.011 | BV197: 0.0096 | BW197: 0.0374 | BX197: 0.0105 | CC197: 53 | CD197: 0.2015 | CE197: 540.9633 | CF197: 0.1585 | CG197: 0.0037 | CH197: 0.0049 | CI197: 0.0056 | CJ197: 0.0035
BQ198: 54 | BR198: 3.8615 | BS198: 1137.7929 | BT198: 1.1249 | BU198: 0.0112 | BV198: 0.0098 | BW198: 0.0376 | BX198: 0.0107 | CC198: 54 | CD198: 0.2036 | CE198: 554.5876 | CF198: 0.1632 | CG198: 0.0039 | CH198: 0.005 | CI198: 0.0057 | CJ198: 0.0037
BQ199: 55 | BR199: 3.7992 | BS199: 1157.8681 | BT199: 1.1298 | BU199: 0.0114 | BV199: 0.0101 | BW199: 0.0378 | BX199: 0.0109 | CC199: 55 | CD199: 0.2056 | CE199: 568.555 | CF199: 0.168 | CG199: 0.0041 | CH199: 0.0052 | CI199: 0.0058 | CJ199: 0.0039
BQ200: 56 | BR200: 3.683 | BS200: 1184.1948 | BT200: 1.1319 | BU200: 0.0118 | BV200: 0.0103 | BW200: 0.038 | BX200: 0.0113 | CC200: 56 | CD200: 0.1997 | CE200: 594.1363 | CF200: 0.1821 | CG200: 0.0046 | CH200: 0.0054 | CI200: 0.006 | CJ200: 0.0044
BQ201: 57 | BR201: 3.5703 | BS201: 1211.1202 | BT201: 1.1339 | BU201: 0.0122 | BV201: 0.0106 | BW201: 0.0382 | BX201: 0.0117 | CC201: 57 | CD201: 0.194 | CE201: 620.8686 | CF201: 0.1975 | CG201: 0.0051 | CH201: 0.0057 | CI201: 0.0062 | CJ201: 0.0048
BQ202: 58 | BR202: 3.4611 | BS202: 1238.6578 | BT202: 1.136 | BU202: 0.0127 | BV202: 0.0109 | BW202: 0.0384 | BX202: 0.0121 | CC202: 58 | CD202: 0.1885 | CE202: 648.8037 | CF202: 0.2141 | CG202: 0.0056 | CH202: 0.0059 | CI202: 0.0065 | CJ202: 0.0053
BQ203: 59 | BR203: 3.3552 | BS203: 1266.8214 | BT203: 1.138 | BU203: 0.0131 | BV203: 0.0113 | BW203: 0.0386 | BX203: 0.0125 | CC203: 59 | CD203: 0.1831 | CE203: 677.9957 | CF203: 0.2321 | CG203: 0.0062 | CH203: 0.0062 | CI203: 0.0067 | CJ203: 0.0059
... 13 more rows
